Body,Body Name,Date,TransNo,Amount � (Excl VAT),Supplier name,Supplier ID,Expense Area,Expense Type,Expense Code
http://opendatacommunities.org/id/london-borough-council/sutton,London Borough of Sutton,28/09/2017,6919287,"2,070.00",A K Gulati  & Co,18813,Peoples Services Directorate,Children Assessments,G329
http://opendatacommunities.org/id/london-borough-council/sutton,London Borough of Sutton,06/11/2017,6919676,"1,355.00",A T Sound Hire,10306,"Environment, Housing & Regeneration Directorate",Other Equipment-Hire,F070
http://opendatacommunities.org/id/london-borough-council/sutton,London Borough of Sutton,17/11/2017,6920425,760,A T Sound Hire,10306,Resources Directorate,Materials - General,F100
http://opendatacommunities.org/id/london-borough-council/sutton,London Borough of Sutton,01/10/2017,6919705,"1,546.90",A To Z Property Management Ltd,26729,"Environment, Housing & Regeneration Directorate",Bed and Breakfast Accommodation,G400
http://opendatacommunities.org/id/london-borough-council/sutton,London Borough of Sutton,01/10/2017,6919706,"1,546.90",A To Z Property Management Ltd,26729,"Environment, Housing & Regeneration Directorate",Bed and Breakfast Accommodation,G400
http://opendatacommunities.org/id/london-borough-council/sutton,London Borough of Sutton,07/11/2017,6919902,"1,600.00",A2 Dominion,29864,Peoples Services Directorate,Approved Lodgings,H323
http://opendatacommunities.org/id/london-borough-council/sutton,London Borough of Sutton,07/11/2017,40129036,"2,280.00",Abbeyfield Kent Society,28532,Peoples Services Directorate,Residential Care - Ext Provider,G310
http://opendatacommunities.org/id/london-borough-council/sutton,London Borough of Sutton,27/10/2015,6919736,"4,620.00",Abslett Properties Ltd,26401,"Environment, Housing & Regeneration Directorate",Bed and Breakfast Accommodation,G400
http://opendatacommunities.org/id/london-borough-council/sutton,London Borough of Sutton,28/12/2016,6919737,"2,988.00",Abslett Properties Ltd,26401,"Environment, Housing & Regeneration Directorate",Bed and Breakfast Accommodation,G400
http://opendatacommunities.org/id/london-borough-council/sutton,London Borough of Sutton,09/10/2017,6917991,"4,851.00",Absolute Care Services Ltd,10021,Peoples Services Directorate,Homecare Core Services,G336
http://opendatacommunities.org/id/london-borough-council/sutton,London Borough of Sutton,16/10/2017,6918526,"4,851.00",Absolute Care Services Ltd,10021,Peoples Services Directorate,Homecare Core Services,G336
http://opendatacommunities.org/id/london-borough-council/sutton,London Borough of Sutton,23/10/2017,6918861,"4,851.00",Absolute Care Services Ltd,10021,Peoples Services Directorate,Homecare Core Services,G336
http://opendatacommunities.org/id/london-borough-council/sutton,London Borough of Sutton,23/10/2017,6918863,"5,070.19",Absolute Care Services Ltd,10021,Peoples Services Directorate,Homecare Core Services,G336
http://opendatacommunities.org/id/london-borough-council/sutton,London Borough of Sutton,23/10/2017,6918865,921.69,Absolute Care Services Ltd,10021,Peoples Services Directorate,Homecare Core Services,G336
http://opendatacommunities.org/id/london-borough-council/sutton,London Borough of Sutton,30/10/2017,6919278,"4,851.00",Absolute Care Services Ltd,10021,Peoples Services Directorate,Homecare Core Services,G336
http://opendatacommunities.org/id/london-borough-council/sutton,London Borough of Sutton,06/11/2017,6919738,"5,070.19",Absolute Care Services Ltd,10021,Peoples Services Directorate,Homecare Core Services,G336
http://opendatacommunities.org/id/london-borough-council/sutton,London Borough of Sutton,06/11/2017,6919739,"4,851.00",Absolute Care Services Ltd,10021,Peoples Services Directorate,Homecare Core Services,G336
http://opendatacommunities.org/id/london-borough-council/sutton,London Borough of Sutton,06/11/2017,6919740,921.69,Absolute Care Services Ltd,10021,Peoples Services Directorate,Homecare Core Services,G336
http://opendatacommunities.org/id/london-borough-council/sutton,London Borough of Sutton,06/11/2017,6919741,"5,766.81",Absolute Care Services Ltd,10021,Peoples Services Directorate,Homecare Core Services,G336
http://opendatacommunities.org/id/london-borough-council/sutton,London Borough of Sutton,06/11/2017,6919742,486.42,Absolute Care Services Ltd,10021,Peoples Services Directorate,Homecare Core Services,G336
http://opendatacommunities.org/id/london-borough-council/sutton,London Borough of Sutton,13/11/2017,6920138,"5,070.19",Absolute Care Services Ltd,10021,Peoples Services Directorate,Homecare Core Services,G336
http://opendatacommunities.org/id/london-borough-council/sutton,London Borough of Sutton,13/11/2017,6920140,"5,766.81",Absolute Care Services Ltd,10021,Peoples Services Directorate,Homecare Core Services,G336
http://opendatacommunities.org/id/london-borough-council/sutton,London Borough of Sutton,13/11/2017,6920141,486.42,Absolute Care Services Ltd,10021,Peoples Services Directorate,Homecare Core Services,G336
http://opendatacommunities.org/id/london-borough-council/sutton,London Borough of Sutton,13/11/2017,6920142,921.69,Absolute Care Services Ltd,10021,Peoples Services Directorate,Homecare Core Services,G336
http://opendatacommunities.org/id/london-borough-council/sutton,London Borough of Sutton,20/11/2017,6920528,"5,070.19",Absolute Care Services Ltd,10021,Peoples Services Directorate,Homecare Core Services,G336
http://opendatacommunities.org/id/london-borough-council/sutton,London Borough of Sutton,20/11/2017,6920530,"5,766.81",Absolute Care Services Ltd,10021,Peoples Services Directorate,Homecare Core Services,G336
http://opendatacommunities.org/id/london-borough-council/sutton,London Borough of Sutton,20/11/2017,6920531,486.42,Absolute Care Services Ltd,10021,Peoples Services Directorate,Homecare Core Services,G336
http://opendatacommunities.org/id/london-borough-council/sutton,London Borough of Sutton,20/11/2017,6920532,921.69,Absolute Care Services Ltd,10021,Peoples Services Directorate,Homecare Core Services,G336
http://opendatacommunities.org/id/london-borough-council/sutton,London Borough of Sutton,27/11/2017,6920806,"5,070.19",Absolute Care Services Ltd,10021,Peoples Services Directorate,Homecare Core Services,G336
http://opendatacommunities.org/id/london-borough-council/sutton,London Borough of Sutton,27/11/2017,6920808,"5,766.81",Absolute Care Services Ltd,10021,Peoples Services Directorate,Homecare Core Services,G336
http://opendatacommunities.org/id/london-borough-council/sutton,London Borough of Sutton,27/11/2017,6920809,921.69,Absolute Care Services Ltd,10021,Peoples Services Directorate,Homecare Core Services,G336
http://opendatacommunities.org/id/london-borough-council/sutton,London Borough of Sutton,27/11/2017,6920810,486.42,Absolute Care Services Ltd,10021,Peoples Services Directorate,Homecare Core Services,G336
http://opendatacommunities.org/id/london-borough-council/sutton,London Borough of Sutton,17/05/2017,40127716,501.65,Absolute Care Services Ltd,10021,Peoples Services Directorate,Home Care,G334
http://opendatacommunities.org/id/london-borough-council/sutton,London Borough of Sutton,26/05/2017,40127717,442.4,Absolute Care Services Ltd,10021,Peoples Services Directorate,Home Care,G334
http://opendatacommunities.org/id/london-borough-council/sutton,London Borough of Sutton,27/08/2017,40128129,447.62,Absolute Care Services Ltd,10021,Peoples Services Directorate,Home Care,G334
http://opendatacommunities.org/id/london-borough-council/sutton,London Borough of Sutton,27/08/2017,40128185,596.82,Absolute Care Services Ltd,10021,Peoples Services Directorate,Home Care,G334
http://opendatacommunities.org/id/london-borough-council/sutton,London Borough of Sutton,27/08/2017,40128256,447.62,Absolute Care Services Ltd,10021,Peoples Services Directorate,Home Care,G334
http://opendatacommunities.org/id/london-borough-council/sutton,London Borough of Sutton,27/08/2017,40128270,447.62,Absolute Care Services Ltd,10021,Peoples Services Directorate,Home Care,G334
http://opendatacommunities.org/id/london-borough-council/sutton,London Borough of Sutton,27/08/2017,40128307,447.62,Absolute Care Services Ltd,10021,Peoples Services Directorate,Home Care,G334
http://opendatacommunities.org/id/london-borough-council/sutton,London Borough of Sutton,27/08/2017,40128310,497.35,Absolute Care Services Ltd,10021,Peoples Services Directorate,Home Care,G334
http://opendatacommunities.org/id/london-borough-council/sutton,London Borough of Sutton,27/08/2017,40128343,"2,415.00",Absolute Care Services Ltd,10021,Peoples Services Directorate,Home Care,G334
http://opendatacommunities.org/id/london-borough-council/sutton,London Borough of Sutton,18/06/2017,40128445,742.47,Absolute Care Services Ltd,10021,Peoples Services Directorate,Home Care,G334
http://opendatacommunities.org/id/london-borough-council/sutton,London Borough of Sutton,27/08/2017,40128446,742.47,Absolute Care Services Ltd,10021,Peoples Services Directorate,Home Care,G334
http://opendatacommunities.org/id/london-borough-council/sutton,London Borough of Sutton,03/09/2017,40128447,742.47,Absolute Care Services Ltd,10021,Peoples Services Directorate,Home Care,G334
http://opendatacommunities.org/id/london-borough-council/sutton,London Borough of Sutton,27/08/2017,40128452,426.3,Absolute Care Services Ltd,10021,Peoples Services Directorate,Home Care,G334
http://opendatacommunities.org/id/london-borough-council/sutton,London Borough of Sutton,03/09/2017,40128453,426.3,Absolute Care Services Ltd,10021,Peoples Services Directorate,Home Care,G334
http://opendatacommunities.org/id/london-borough-council/sutton,London Borough of Sutton,18/06/2017,40128607,596.82,Absolute Care Services Ltd,10021,Peoples Services Directorate,Home Care,G334
http://opendatacommunities.org/id/london-borough-council/sutton,London Borough of Sutton,27/08/2017,40128608,596.82,Absolute Care Services Ltd,10021,Peoples Services Directorate,Home Care,G334
http://opendatacommunities.org/id/london-borough-council/sutton,London Borough of Sutton,03/09/2017,40128609,569.69,Absolute Care Services Ltd,10021,Peoples Services Directorate,Home Care,G334
http://opendatacommunities.org/id/london-borough-council/sutton,London Borough of Sutton,18/06/2017,40128610,596.82,Absolute Care Services Ltd,10021,Peoples Services Directorate,Home Care,G334
http://opendatacommunities.org/id/london-borough-council/sutton,London Borough of Sutton,27/08/2017,40128611,603.93,Absolute Care Services Ltd,10021,Peoples Services Directorate,Home Care,G334
http://opendatacommunities.org/id/london-borough-council/sutton,London Borough of Sutton,03/09/2017,40128612,596.82,Absolute Care Services Ltd,10021,Peoples Services Directorate,Home Care,G334
http://opendatacommunities.org/id/london-borough-council/sutton,London Borough of Sutton,18/06/2017,40128785,547.09,Absolute Care Services Ltd,10021,Peoples Services Directorate,Home Care,G334
http://opendatacommunities.org/id/london-borough-council/sutton,London Borough of Sutton,27/08/2017,40128786,547.09,Absolute Care Services Ltd,10021,Peoples Services Directorate,Home Care,G334
http://opendatacommunities.org/id/london-borough-council/sutton,London Borough of Sutton,03/09/2017,40128787,547.09,Absolute Care Services Ltd,10021,Peoples Services Directorate,Home Care,G334
http://opendatacommunities.org/id/london-borough-council/sutton,London Borough of Sutton,15/10/2017,40135305,596.82,Absolute Care Services Ltd,10021,Peoples Services Directorate,Home Care,G334
http://opendatacommunities.org/id/london-borough-council/sutton,London Borough of Sutton,15/10/2017,40135320,547.09,Absolute Care Services Ltd,10021,Peoples Services Directorate,Home Care,G334
http://opendatacommunities.org/id/london-borough-council/sutton,London Borough of Sutton,15/10/2017,40135327,767.34,Absolute Care Services Ltd,10021,Peoples Services Directorate,Home Care,G334
http://opendatacommunities.org/id/london-borough-council/sutton,London Borough of Sutton,17/09/2017,40135338,483.14,Absolute Care Services Ltd,10021,Peoples Services Directorate,Home Care,G334
http://opendatacommunities.org/id/london-borough-council/sutton,London Borough of Sutton,24/09/2017,40135339,497.35,Absolute Care Services Ltd,10021,Peoples Services Directorate,Home Care,G334
http://opendatacommunities.org/id/london-borough-council/sutton,London Borough of Sutton,01/10/2017,40135340,497.35,Absolute Care Services Ltd,10021,Peoples Services Directorate,Home Care,G334
http://opendatacommunities.org/id/london-borough-council/sutton,London Borough of Sutton,08/10/2017,40135357,426.56,Absolute Care Services Ltd,10021,Peoples Services Directorate,Home Care,G334
http://opendatacommunities.org/id/london-borough-council/sutton,London Borough of Sutton,08/10/2017,40135358,433.44,Absolute Care Services Ltd,10021,Peoples Services Directorate,Home Care,G334
http://opendatacommunities.org/id/london-borough-council/sutton,London Borough of Sutton,17/09/2017,40135365,583.93,Absolute Care Services Ltd,10021,Peoples Services Directorate,Home Care,G334
http://opendatacommunities.org/id/london-borough-council/sutton,London Borough of Sutton,17/09/2017,40135373,500.84,Absolute Care Services Ltd,10021,Peoples Services Directorate,Home Care,G334
http://opendatacommunities.org/id/london-borough-council/sutton,London Borough of Sutton,08/10/2017,40135387,433.44,Absolute Care Services Ltd,10021,Peoples Services Directorate,Home Care,G334
http://opendatacommunities.org/id/london-borough-council/sutton,London Borough of Sutton,10/09/2017,40135482,497.35,Absolute Care Services Ltd,10021,Peoples Services Directorate,Home Care,G334
http://opendatacommunities.org/id/london-borough-council/sutton,London Borough of Sutton,01/10/2017,40135516,447.62,Absolute Care Services Ltd,10021,Peoples Services Directorate,Home Care,G334
http://opendatacommunities.org/id/london-borough-council/sutton,London Borough of Sutton,08/10/2017,40135517,447.62,Absolute Care Services Ltd,10021,Peoples Services Directorate,Home Care,G334
http://opendatacommunities.org/id/london-borough-council/sutton,London Borough of Sutton,15/10/2017,40135518,447.62,Absolute Care Services Ltd,10021,Peoples Services Directorate,Home Care,G334
http://opendatacommunities.org/id/london-borough-council/sutton,London Borough of Sutton,22/10/2017,40135537,583.93,Absolute Care Services Ltd,10021,Peoples Services Directorate,Home Care,G334
http://opendatacommunities.org/id/london-borough-council/sutton,London Borough of Sutton,22/10/2017,40135554,500.84,Absolute Care Services Ltd,10021,Peoples Services Directorate,Home Care,G334
http://opendatacommunities.org/id/london-borough-council/sutton,London Borough of Sutton,08/10/2017,40135606,468.58,Absolute Care Services Ltd,10021,Peoples Services Directorate,Home Care,G334
http://opendatacommunities.org/id/london-borough-council/sutton,London Borough of Sutton,10/09/2017,40135652,447.62,Absolute Care Services Ltd,10021,Peoples Services Directorate,Home Care,G334
http://opendatacommunities.org/id/london-borough-council/sutton,London Borough of Sutton,17/09/2017,40135653,447.62,Absolute Care Services Ltd,10021,Peoples Services Directorate,Home Care,G334
http://opendatacommunities.org/id/london-borough-council/sutton,London Borough of Sutton,24/09/2017,40135654,447.62,Absolute Care Services Ltd,10021,Peoples Services Directorate,Home Care,G334
http://opendatacommunities.org/id/london-borough-council/sutton,London Borough of Sutton,01/10/2017,40135655,447.62,Absolute Care Services Ltd,10021,Peoples Services Directorate,Home Care,G334
http://opendatacommunities.org/id/london-borough-council/sutton,London Borough of Sutton,08/10/2017,40135656,447.62,Absolute Care Services Ltd,10021,Peoples Services Directorate,Home Care,G334
http://opendatacommunities.org/id/london-borough-council/sutton,London Borough of Sutton,15/10/2017,40135657,447.62,Absolute Care Services Ltd,10021,Peoples Services Directorate,Home Care,G334
http://opendatacommunities.org/id/london-borough-council/sutton,London Borough of Sutton,10/09/2017,40135691,497.35,Absolute Care Services Ltd,10021,Peoples Services Directorate,Home Care,G334
http://opendatacommunities.org/id/london-borough-council/sutton,London Borough of Sutton,17/09/2017,40135692,497.35,Absolute Care Services Ltd,10021,Peoples Services Directorate,Home Care,G334
http://opendatacommunities.org/id/london-borough-council/sutton,London Borough of Sutton,24/09/2017,40135693,497.35,Absolute Care Services Ltd,10021,Peoples Services Directorate,Home Care,G334
http://opendatacommunities.org/id/london-borough-council/sutton,London Borough of Sutton,01/10/2017,40135694,497.35,Absolute Care Services Ltd,10021,Peoples Services Directorate,Home Care,G334
http://opendatacommunities.org/id/london-borough-council/sutton,London Borough of Sutton,08/10/2017,40135695,497.35,Absolute Care Services Ltd,10021,Peoples Services Directorate,Home Care,G334
http://opendatacommunities.org/id/london-borough-council/sutton,London Borough of Sutton,15/10/2017,40135696,497.35,Absolute Care Services Ltd,10021,Peoples Services Directorate,Home Care,G334
http://opendatacommunities.org/id/london-borough-council/sutton,London Borough of Sutton,10/09/2017,40135728,447.62,Absolute Care Services Ltd,10021,Peoples Services Directorate,Home Care,G334
http://opendatacommunities.org/id/london-borough-council/sutton,London Borough of Sutton,17/09/2017,40135729,447.62,Absolute Care Services Ltd,10021,Peoples Services Directorate,Home Care,G334
http://opendatacommunities.org/id/london-borough-council/sutton,London Borough of Sutton,24/09/2017,40135730,447.62,Absolute Care Services Ltd,10021,Peoples Services Directorate,Home Care,G334
http://opendatacommunities.org/id/london-borough-council/sutton,London Borough of Sutton,01/10/2017,40135731,447.62,Absolute Care Services Ltd,10021,Peoples Services Directorate,Home Care,G334
http://opendatacommunities.org/id/london-borough-council/sutton,London Borough of Sutton,08/10/2017,40135732,447.62,Absolute Care Services Ltd,10021,Peoples Services Directorate,Home Care,G334
http://opendatacommunities.org/id/london-borough-council/sutton,London Borough of Sutton,15/10/2017,40135733,447.62,Absolute Care Services Ltd,10021,Peoples Services Directorate,Home Care,G334
http://opendatacommunities.org/id/london-borough-council/sutton,London Borough of Sutton,10/09/2017,40135756,"2,415.00",Absolute Care Services Ltd,10021,Peoples Services Directorate,Home Care,G334
http://opendatacommunities.org/id/london-borough-council/sutton,London Borough of Sutton,17/09/2017,40135757,"2,415.00",Absolute Care Services Ltd,10021,Peoples Services Directorate,Home Care,G334
http://opendatacommunities.org/id/london-borough-council/sutton,London Borough of Sutton,24/09/2017,40135758,"2,415.00",Absolute Care Services Ltd,10021,Peoples Services Directorate,Home Care,G334
http://opendatacommunities.org/id/london-borough-council/sutton,London Borough of Sutton,01/10/2017,40135759,"2,415.00",Absolute Care Services Ltd,10021,Peoples Services Directorate,Home Care,G334
http://opendatacommunities.org/id/london-borough-council/sutton,London Borough of Sutton,08/10/2017,40135760,"2,415.00",Absolute Care Services Ltd,10021,Peoples Services Directorate,Home Care,G334
http://opendatacommunities.org/id/london-borough-council/sutton,London Borough of Sutton,10/09/2017,40135908,447.62,Absolute Care Services Ltd,10021,Peoples Services Directorate,Home Care,G334
http://opendatacommunities.org/id/london-borough-council/sutton,London Borough of Sutton,17/09/2017,40135909,447.62,Absolute Care Services Ltd,10021,Peoples Services Directorate,Home Care,G334
http://opendatacommunities.org/id/london-borough-council/sutton,London Borough of Sutton,24/09/2017,40135910,447.62,Absolute Care Services Ltd,10021,Peoples Services Directorate,Home Care,G334
http://opendatacommunities.org/id/london-borough-council/sutton,London Borough of Sutton,01/10/2017,40135911,447.62,Absolute Care Services Ltd,10021,Peoples Services Directorate,Home Care,G334
http://opendatacommunities.org/id/london-borough-council/sutton,London Borough of Sutton,08/10/2017,40135912,447.62,Absolute Care Services Ltd,10021,Peoples Services Directorate,Home Care,G334
http://opendatacommunities.org/id/london-borough-council/sutton,London Borough of Sutton,15/10/2017,40135913,447.62,Absolute Care Services Ltd,10021,Peoples Services Directorate,Home Care,G334
http://opendatacommunities.org/id/london-borough-council/sutton,London Borough of Sutton,31/10/2017,1245070,"1,216.00",Access Mobility Transport Ltd,27456,Peoples Services Directorate,Hired Peoples Transport (Children),E072
http://opendatacommunities.org/id/london-borough-council/sutton,London Borough of Sutton,31/10/2017,1245071,"3,256.00",Access Mobility Transport Ltd,27456,Peoples Services Directorate,Hired Peoples Transport (Children),E072
http://opendatacommunities.org/id/london-borough-council/sutton,London Borough of Sutton,31/10/2017,6920837,"6,535.00",Accessible Solutions,99815,"Environment, Housing & Regeneration Directorate",Grants -Made,Y610
http://opendatacommunities.org/id/london-borough-council/sutton,London Borough of Sutton,04/10/2017,40130275,"5,130.03",Acorn Homes UK Ltd,25726,Peoples Services Directorate,Approved Lodgings,H323
http://opendatacommunities.org/id/london-borough-council/sutton,London Borough of Sutton,01/10/2017,40130323,"10,407.01",Acorn Homes UK Ltd,25726,Peoples Services Directorate,Residential Care-Children,G330
http://opendatacommunities.org/id/london-borough-council/sutton,London Borough of Sutton,07/11/2017,40128807,"2,903.20",Acorn Lodge,15804,Peoples Services Directorate,Residential Care - Ext Provider,G310
http://opendatacommunities.org/id/london-borough-council/sutton,London Borough of Sutton,07/11/2017,40129172,"3,042.36",Acorn Residential Home,15828,Peoples Services Directorate,Residential Care - Ext Provider,G310
http://opendatacommunities.org/id/london-borough-council/sutton,London Borough of Sutton,03/11/2017,6919780,"1,200.00",Active Prospects,13617,Peoples Services Directorate,Supported Living - Ext Provider,G306
http://opendatacommunities.org/id/london-borough-council/sutton,London Borough of Sutton,02/11/2017,6919937,"1,200.00",Active Prospects,13617,Peoples Services Directorate,Supported Living - Ext Provider,G306
http://opendatacommunities.org/id/london-borough-council/sutton,London Borough of Sutton,12/10/2017,6919999,"1,310.25",Active Prospects,13617,Peoples Services Directorate,Provisions - General,F150
http://opendatacommunities.org/id/london-borough-council/sutton,London Borough of Sutton,09/11/2017,6920116,"1,200.00",Active Prospects,13617,Peoples Services Directorate,Supported Living - Ext Provider,G306
http://opendatacommunities.org/id/london-borough-council/sutton,London Borough of Sutton,16/11/2017,6920399,"1,200.00",Active Prospects,13617,Peoples Services Directorate,Supported Living - Ext Provider,G306
http://opendatacommunities.org/id/london-borough-council/sutton,London Borough of Sutton,18/10/2017,6920557,"1,200.00",Active Prospects,13617,Peoples Services Directorate,Provisions - General,F150
http://opendatacommunities.org/id/london-borough-council/sutton,London Borough of Sutton,21/11/2017,6920566,"1,200.00",Active Prospects,13617,Peoples Services Directorate,Supported Living - Ext Provider,G306
http://opendatacommunities.org/id/london-borough-council/sutton,London Borough of Sutton,28/11/2017,6920915,"1,200.00",Active Prospects,13617,Peoples Services Directorate,Supported Living - Ext Provider,G306
http://opendatacommunities.org/id/london-borough-council/sutton,London Borough of Sutton,10/11/2017,1245169,"196,065.50",Adecco Uk Ltd,10059,Resources Directorate,Suspense/Holding Accounts,X550
http://opendatacommunities.org/id/london-borough-council/sutton,London Borough of Sutton,20/11/2017,5015670,"-161,445.51",Adecco Uk Ltd,10059,Resources Directorate,Suspense/Holding Accounts,X550
http://opendatacommunities.org/id/london-borough-council/sutton,London Borough of Sutton,27/10/2017,6919297,"178,757.08",Adecco Uk Ltd,10059,Resources Directorate,Suspense/Holding Accounts,X550
http://opendatacommunities.org/id/london-borough-council/sutton,London Borough of Sutton,02/11/2017,6919643,"169,150.11",Adecco Uk Ltd,10059,Resources Directorate,Suspense/Holding Accounts,X550
http://opendatacommunities.org/id/london-borough-council/sutton,London Borough of Sutton,16/11/2017,1245505,"161,445.51",Adecco Uk Ltd,10059,Resources Directorate,Suspense/Holding Accounts,X550
http://opendatacommunities.org/id/london-borough-council/sutton,London Borough of Sutton,20/11/2017,1245502,"161,445.51",Adecco Uk Ltd,10059,Resources Directorate,Suspense/Holding Accounts,X550
http://opendatacommunities.org/id/london-borough-council/sutton,London Borough of Sutton,22/11/2017,1245676,"145,919.77",Adecco Uk Ltd,10059,Resources Directorate,Suspense/Holding Accounts,X550
http://opendatacommunities.org/id/london-borough-council/sutton,London Borough of Sutton,30/11/2017,1245951,"181,374.38",Adecco Uk Ltd,10059,Resources Directorate,Suspense/Holding Accounts,X550
http://opendatacommunities.org/id/london-borough-council/sutton,London Borough of Sutton,10/11/2017,6920070,"4,166.66",Advocacy For All,24795,Peoples Services Directorate,Provider Contract Payments,F470
http://opendatacommunities.org/id/london-borough-council/sutton,London Borough of Sutton,10/11/2017,6920071,"15,833.33",Advocacy For All,24795,Peoples Services Directorate,Provider Contract Payments,F470
http://opendatacommunities.org/id/london-borough-council/sutton,London Borough of Sutton,16/11/2017,6920405,"7,500.00",Aecom Infrastructure & Environment UK Ltd,29144,"Environment, Housing & Regeneration Directorate",Community Initiatives,F322
http://opendatacommunities.org/id/london-borough-council/sutton,London Borough of Sutton,07/11/2017,40129183,"7,511.00",Aims Care Partnership (Leighton House Ltd),12628,Peoples Services Directorate,Residential Care - Ext Provider,G310
http://opendatacommunities.org/id/london-borough-council/sutton,London Borough of Sutton,07/11/2017,40128835,"5,278.00",Aitch Care Homes,20446,Peoples Services Directorate,Residential Care - Ext Provider,G310
http://opendatacommunities.org/id/london-borough-council/sutton,London Borough of Sutton,07/11/2017,40128872,"8,400.16",Aitch Care Homes,20446,Peoples Services Directorate,Residential Care - Ext Provider,G310
http://opendatacommunities.org/id/london-borough-council/sutton,London Borough of Sutton,01/11/2017,6919587,"1,426.50",All Security Ltd,97190,"Environment, Housing & Regeneration Directorate",Agency Services,G431
http://opendatacommunities.org/id/london-borough-council/sutton,London Borough of Sutton,07/11/2017,6919825,"1,750.00",Allen Lane Ltd,18334,Resources Directorate,Agency Staff - Other,A301
http://opendatacommunities.org/id/london-borough-council/sutton,London Borough of Sutton,07/11/2017,6919826,"3,235.30",Allen Lane Ltd,18334,Resources Directorate,Agency Staff - Other,A301
http://opendatacommunities.org/id/london-borough-council/sutton,London Borough of Sutton,14/11/2017,6920262,"1,294.12",Allen Lane Ltd,18334,Resources Directorate,Agency Staff - Other,A301
http://opendatacommunities.org/id/london-borough-council/sutton,London Borough of Sutton,14/11/2017,6920275,"2,800.00",Allen Lane Ltd,18334,Resources Directorate,Agency Staff - Other,A301
http://opendatacommunities.org/id/london-borough-council/sutton,London Borough of Sutton,07/11/2017,40128937,"3,625.00",Alliance Care (Dale Homes) Ltd T/A Uplands Care Home,26835,Peoples Services Directorate,Nursing Care - Ext Provider,G311
http://opendatacommunities.org/id/london-borough-council/sutton,London Borough of Sutton,07/11/2017,40128811,"6,234.48",Allied Care (Mhs) Ltd,10145,Peoples Services Directorate,Residential Care - Ext Provider,G310
http://opendatacommunities.org/id/london-borough-council/sutton,London Borough of Sutton,31/10/2017,6919595,485,Alljos Services Limited,99815,"Environment, Housing & Regeneration Directorate",Grants -Made,Y610
http://opendatacommunities.org/id/london-borough-council/sutton,London Borough of Sutton,01/11/2017,6919609,"1,286.95",Allstar Business Solutions,24482,"Environment, Housing & Regeneration Directorate",Fuel Etc,E030
http://opendatacommunities.org/id/london-borough-council/sutton,London Borough of Sutton,07/11/2017,40129137,"4,400.00",Allswell Care Services Ltd,20761,Peoples Services Directorate,Residential Care - Ext Provider,G310
http://opendatacommunities.org/id/london-borough-council/sutton,London Borough of Sutton,07/11/2017,40129185,"6,370.00",Allswell Care Services Ltd,20761,Peoples Services Directorate,Residential Care - Ext Provider,G310
http://opendatacommunities.org/id/london-borough-council/sutton,London Borough of Sutton,07/11/2017,40129225,"3,480.00",Allswell Care Services Ltd,20761,Peoples Services Directorate,Residential Care - Ext Provider,G310
http://opendatacommunities.org/id/london-borough-council/sutton,London Borough of Sutton,31/10/2017,6920686,"8,250.00",Alzheimers Society Sutton Branch,10114,Peoples Services Directorate,Provider Contract Payments,F470
http://opendatacommunities.org/id/london-borough-council/sutton,London Borough of Sutton,30/09/2017,40136141,"13,285.67",Amegreen Childrens Services,27145,Peoples Services Directorate,Residential Care-Children,G330
http://opendatacommunities.org/id/london-borough-council/sutton,London Borough of Sutton,07/11/2017,6919906,"2,000.00",REDACTED - PERSONAL DATA,99863,Peoples Services Directorate,Approved Lodgings,H323
http://opendatacommunities.org/id/london-borough-council/sutton,London Borough of Sutton,29/09/2017,6920991,"44,407.62",Ameo Professional Services Ltd,27868,Resources Directorate,Internal Fees - Project Management,Y180
http://opendatacommunities.org/id/london-borough-council/sutton,London Borough of Sutton,31/10/2017,6920992,"53,035.32",Ameo Professional Services Ltd,27868,Resources Directorate,Internal Fees - Project Management,Y180
http://opendatacommunities.org/id/london-borough-council/sutton,London Borough of Sutton,27/04/2017,40132221,460.36,Ana Homecare Ltd,29136,Peoples Services Directorate,Home Care,G334
http://opendatacommunities.org/id/london-borough-council/sutton,London Borough of Sutton,27/04/2017,40132225,444.82,Ana Homecare Ltd,29136,Peoples Services Directorate,Home Care,G334
http://opendatacommunities.org/id/london-borough-council/sutton,London Borough of Sutton,27/04/2017,40132228,523.93,Ana Homecare Ltd,29136,Peoples Services Directorate,Home Care,G334
http://opendatacommunities.org/id/london-borough-council/sutton,London Borough of Sutton,12/05/2017,40132231,452.11,Ana Homecare Ltd,29136,Peoples Services Directorate,Home Care,G334
http://opendatacommunities.org/id/london-borough-council/sutton,London Borough of Sutton,12/05/2017,40132235,519.06,Ana Homecare Ltd,29136,Peoples Services Directorate,Home Care,G334
http://opendatacommunities.org/id/london-borough-council/sutton,London Borough of Sutton,12/05/2017,40132239,514.42,Ana Homecare Ltd,29136,Peoples Services Directorate,Home Care,G334
http://opendatacommunities.org/id/london-borough-council/sutton,London Borough of Sutton,26/10/2017,40130345,"14,809.14",Anderida Adolescent Care Ltd,26195,Peoples Services Directorate,Residential Care-Children,G330
http://opendatacommunities.org/id/london-borough-council/sutton,London Borough of Sutton,06/11/2017,6919669,"1,900.00",Andy Stewart,26808,"Environment, Housing & Regeneration Directorate",General Office Expenses,F235
http://opendatacommunities.org/id/london-borough-council/sutton,London Borough of Sutton,01/11/2017,6919956,"2,360.00",Angel Lettings,18658,"Environment, Housing & Regeneration Directorate",General Office Expenses,F235
http://opendatacommunities.org/id/london-borough-council/sutton,London Borough of Sutton,30/09/2017,6917738,"5,775.24",Apetito Ltd,10206,Peoples Services Directorate,Provisions - General,F150
http://opendatacommunities.org/id/london-borough-council/sutton,London Borough of Sutton,31/10/2017,6919675,"5,936.50",Apetito Ltd,10206,Peoples Services Directorate,Provisions - General,F150
http://opendatacommunities.org/id/london-borough-council/sutton,London Borough of Sutton,31/10/2017,6920073,"10,540.80",Apex Housing Solutions Ltd,29950,"Environment, Housing & Regeneration Directorate",Bed and Breakfast Accommodation,G400
http://opendatacommunities.org/id/london-borough-council/sutton,London Borough of Sutton,03/04/2017,6920060,"2,232.00",APL Properties,26226,"Environment, Housing & Regeneration Directorate",Bed and Breakfast Accommodation,G400
http://opendatacommunities.org/id/london-borough-council/sutton,London Borough of Sutton,03/05/2017,6920061,"2,160.00",APL Properties,26226,"Environment, Housing & Regeneration Directorate",Bed and Breakfast Accommodation,G400
http://opendatacommunities.org/id/london-borough-council/sutton,London Borough of Sutton,03/06/2017,6920062,"2,160.00",APL Properties,26226,"Environment, Housing & Regeneration Directorate",Bed and Breakfast Accommodation,G400
http://opendatacommunities.org/id/london-borough-council/sutton,London Borough of Sutton,03/07/2017,6920063,"1,827.00",APL Properties,26226,"Environment, Housing & Regeneration Directorate",Bed and Breakfast Accommodation,G400
http://opendatacommunities.org/id/london-borough-council/sutton,London Borough of Sutton,03/08/2017,6920064,"1,085.00",APL Properties,26226,"Environment, Housing & Regeneration Directorate",Bed and Breakfast Accommodation,G400
http://opendatacommunities.org/id/london-borough-council/sutton,London Borough of Sutton,04/09/2017,6920065,770,APL Properties,26226,"Environment, Housing & Regeneration Directorate",Bed and Breakfast Accommodation,G400
http://opendatacommunities.org/id/london-borough-council/sutton,London Borough of Sutton,03/02/2017,6920066,"2,232.00",APL Properties,26226,"Environment, Housing & Regeneration Directorate",Bed and Breakfast Accommodation,G400
http://opendatacommunities.org/id/london-borough-council/sutton,London Borough of Sutton,03/03/2017,6920067,"2,016.00",APL Properties,26226,"Environment, Housing & Regeneration Directorate",Bed and Breakfast Accommodation,G400
http://opendatacommunities.org/id/london-borough-council/sutton,London Borough of Sutton,22/10/2017,40128116,441,Aquaflocare Ltd,26274,Peoples Services Directorate,Home Care,G334
http://opendatacommunities.org/id/london-borough-council/sutton,London Borough of Sutton,22/10/2017,40128124,539,Aquaflocare Ltd,26274,Peoples Services Directorate,Home Care,G334
http://opendatacommunities.org/id/london-borough-council/sutton,London Borough of Sutton,09/07/2017,40128419,518,Aquaflocare Ltd,26274,Peoples Services Directorate,Home Care,G334
http://opendatacommunities.org/id/london-borough-council/sutton,London Borough of Sutton,22/10/2017,40128420,518,Aquaflocare Ltd,26274,Peoples Services Directorate,Home Care,G334
http://opendatacommunities.org/id/london-borough-council/sutton,London Borough of Sutton,01/11/2017,6919631,"4,473.00",Architype Ltd,25419,Peoples Services Directorate,External Fees  - Architects,Y100
http://opendatacommunities.org/id/london-borough-council/sutton,London Borough of Sutton,01/11/2017,6919753,"10,824.00",Architype Ltd,25419,Peoples Services Directorate,External Fees  - Architects,Y100
http://opendatacommunities.org/id/london-borough-council/sutton,London Borough of Sutton,23/09/2017,6920088,"2,210.00",Ardleigh Improvements Ltd,97701,Peoples Services Directorate,Building Works -Main Contractor,Y350
http://opendatacommunities.org/id/london-borough-council/sutton,London Borough of Sutton,23/09/2017,6920088,"2,210.00",Ardleigh Improvements Ltd,97701,Peoples Services Directorate,Building Works -Main Contractor,Y350
http://opendatacommunities.org/id/london-borough-council/sutton,London Borough of Sutton,23/09/2017,6920090,"4,250.00",Ardleigh Improvements Ltd,97701,Peoples Services Directorate,Building Works -Main Contractor,Y350
http://opendatacommunities.org/id/london-borough-council/sutton,London Borough of Sutton,23/09/2017,6920090,"4,250.00",Ardleigh Improvements Ltd,97701,Peoples Services Directorate,Building Works -Main Contractor,Y350
http://opendatacommunities.org/id/london-borough-council/sutton,London Borough of Sutton,16/10/2017,40130341,"18,378.57",Area Camden Ltd,29908,Peoples Services Directorate,Residential Care-Children,G330
http://opendatacommunities.org/id/london-borough-council/sutton,London Borough of Sutton,02/10/2017,6919441,"7,644.54",Arnold & Self,16110,"Environment, Housing & Regeneration Directorate",Bed and Breakfast Accommodation,G400
http://opendatacommunities.org/id/london-borough-council/sutton,London Borough of Sutton,26/06/2017,6919929,660,Arnold & Self,16110,"Environment, Housing & Regeneration Directorate",Bed and Breakfast Accommodation,G400
http://opendatacommunities.org/id/london-borough-council/sutton,London Borough of Sutton,02/11/2017,6920121,"7,759.85",Arnold & Self,16110,"Environment, Housing & Regeneration Directorate",Bed and Breakfast Accommodation,G400
http://opendatacommunities.org/id/london-borough-council/sutton,London Borough of Sutton,11/09/2017,6920685,"7,566.51",Arnold & Self,16110,"Environment, Housing & Regeneration Directorate",Bed and Breakfast Accommodation,G400
http://opendatacommunities.org/id/london-borough-council/sutton,London Borough of Sutton,20/10/2017,6920080,"7,755.00",Ascendit Lifts Limited,99815,"Environment, Housing & Regeneration Directorate",Grants -Made,Y610
http://opendatacommunities.org/id/london-borough-council/sutton,London Borough of Sutton,28/09/2017,6920657,"5,665.00",Ascendit Lifts Limited,99815,"Environment, Housing & Regeneration Directorate",Grants -Made,Y610
http://opendatacommunities.org/id/london-borough-council/sutton,London Borough of Sutton,18/10/2017,6920020,"5,220.00",Ascendit Lifts Ltd,99815,"Environment, Housing & Regeneration Directorate",Grants -Made,Y610
http://opendatacommunities.org/id/london-borough-council/sutton,London Borough of Sutton,01/10/2017,40131274,850.33,Ashbrook House Ltd,23499,Peoples Services Directorate,Supported Living - Ext Provider,G306
http://opendatacommunities.org/id/london-borough-council/sutton,London Borough of Sutton,07/11/2017,40128925,"1,587.07",Ashlong House Ltd,23101,Peoples Services Directorate,Residential Care - Client Cont ( Net Paymt ),G351
http://opendatacommunities.org/id/london-borough-council/sutton,London Borough of Sutton,01/10/2017,40131306,"2,058.40",Ashlong House Ltd,23101,Peoples Services Directorate,Supported Living - Ext Provider,G306
http://opendatacommunities.org/id/london-borough-council/sutton,London Borough of Sutton,07/11/2017,40128939,"3,852.52",Ashtead House Ltd,29629,Peoples Services Directorate,Nursing Care - Ext Provider,G311
http://opendatacommunities.org/id/london-borough-council/sutton,London Borough of Sutton,07/11/2017,40128938,"3,600.00",Asprey Healthcare Ltd (Smallbrook Care Home),29112,Peoples Services Directorate,Residential Care - Ext Provider,G310
http://opendatacommunities.org/id/london-borough-council/sutton,London Borough of Sutton,07/11/2017,40129194,"3,639.72",Assurance Care Services Ltd T/A Christ the King Residential Care Homes,27458,Peoples Services Directorate,Residential Care - Ext Provider,G310
http://opendatacommunities.org/id/london-borough-council/sutton,London Borough of Sutton,01/11/2017,6919464,"17,540.63",Atkins Ltd,10307,Peoples Services Directorate,External Fees  - Architects,Y100
http://opendatacommunities.org/id/london-borough-council/sutton,London Borough of Sutton,01/11/2017,6919554,"1,790.91",Atkins Ltd,10307,"Environment, Housing & Regeneration Directorate",Building Works -Main Contractor,Y350
http://opendatacommunities.org/id/london-borough-council/sutton,London Borough of Sutton,23/11/2017,6920690,"11,985.00",Atkins Ltd,10307,"Environment, Housing & Regeneration Directorate",Surveys & Analysis,Y685
http://opendatacommunities.org/id/london-borough-council/sutton,London Borough of Sutton,23/11/2017,6920691,"3,300.00",Atkins Ltd,10307,"Environment, Housing & Regeneration Directorate",External Fees  - Engineers,Y110
http://opendatacommunities.org/id/london-borough-council/sutton,London Borough of Sutton,07/11/2017,40128832,"4,580.72",Autism & Aspergers Care Services,10327,Peoples Services Directorate,Residential Care - Ext Provider,G310
http://opendatacommunities.org/id/london-borough-council/sutton,London Borough of Sutton,07/11/2017,40129038,"2,805.00",Avante Ltd (Weybourne),24009,Peoples Services Directorate,Residential Care - Ext Provider,G310
http://opendatacommunities.org/id/london-borough-council/sutton,London Borough of Sutton,16/11/2017,6920382,875,Axiom Traffic Ltd,23141,"Environment, Housing & Regeneration Directorate","Surveys, Trial Holes Etc",Y200
http://opendatacommunities.org/id/london-borough-council/sutton,London Borough of Sutton,07/11/2017,40128985,"3,200.00",Balcombe Care Homes Ltd,10367,Peoples Services Directorate,Nursing Care - Ext Provider,G311
http://opendatacommunities.org/id/london-borough-council/sutton,London Borough of Sutton,07/11/2017,40129146,"3,200.00",Balcombe Care Homes Ltd,10367,Peoples Services Directorate,Nursing Care - Ext Provider,G311
http://opendatacommunities.org/id/london-borough-council/sutton,London Borough of Sutton,31/10/2017,1244546,"1,275.00",Bandon Hill Primary,10372,Peoples Services Directorate,Special Educational Needs,G331
http://opendatacommunities.org/id/london-borough-council/sutton,London Borough of Sutton,07/11/2017,40128890,"4,000.00",Barchester Healthcare - Atfield House,27028,Peoples Services Directorate,Nursing Care - Ext Provider,G311
http://opendatacommunities.org/id/london-borough-council/sutton,London Borough of Sutton,20/11/2017,40135242,"1,909.00",Barnardo's,10370,Peoples Services Directorate,Provider Contract Payments,F470
http://opendatacommunities.org/id/london-borough-council/sutton,London Borough of Sutton,20/11/2017,40135244,451,Barnardo's,10370,Peoples Services Directorate,Provider Contract Payments,F470
http://opendatacommunities.org/id/london-borough-council/sutton,London Borough of Sutton,20/11/2017,40135245,616,Barnardo's,10370,Peoples Services Directorate,Provider Contract Payments,F470
http://opendatacommunities.org/id/london-borough-council/sutton,London Borough of Sutton,20/11/2017,40135247,546,Barnardo's,10370,Peoples Services Directorate,Provider Contract Payments,F470
http://opendatacommunities.org/id/london-borough-council/sutton,London Borough of Sutton,20/11/2017,40135248,504,Barnardo's,10370,Peoples Services Directorate,Provider Contract Payments,F470
http://opendatacommunities.org/id/london-borough-council/sutton,London Borough of Sutton,20/11/2017,40135249,441,Barnardo's,10370,Peoples Services Directorate,Provider Contract Payments,F470
http://opendatacommunities.org/id/london-borough-council/sutton,London Borough of Sutton,20/11/2017,40135250,638,Barnardo's,10370,Peoples Services Directorate,Provider Contract Payments,F470
http://opendatacommunities.org/id/london-borough-council/sutton,London Borough of Sutton,20/11/2017,40135254,528,Barnardo's,10370,Peoples Services Directorate,Provider Contract Payments,F470
http://opendatacommunities.org/id/london-borough-council/sutton,London Borough of Sutton,20/11/2017,40135257,718.75,Barnardo's,10370,Peoples Services Directorate,Provider Contract Payments,F470
http://opendatacommunities.org/id/london-borough-council/sutton,London Borough of Sutton,20/11/2017,40135259,630,Barnardo's,10370,Peoples Services Directorate,Provider Contract Payments,F470
http://opendatacommunities.org/id/london-borough-council/sutton,London Borough of Sutton,20/11/2017,40135262,440,Barnardo's,10370,Peoples Services Directorate,Provider Contract Payments,F470
http://opendatacommunities.org/id/london-borough-council/sutton,London Borough of Sutton,20/11/2017,40135263,550,Barnardo's,10370,Peoples Services Directorate,Provider Contract Payments,F470
http://opendatacommunities.org/id/london-borough-council/sutton,London Borough of Sutton,23/10/2017,6920602,"1,555.00",Barrow Hedges Primary School,10383,Peoples Services Directorate,Building Works -Main Contractor,Y350
http://opendatacommunities.org/id/london-borough-council/sutton,London Borough of Sutton,01/12/2017,6920774,"1,465.67",Barts Health Nhs Trust,28991,Peoples Services Directorate,Provider Contract Payments,F470
http://opendatacommunities.org/id/london-borough-council/sutton,London Borough of Sutton,08/11/2017,1245532,"15,986.24",Beckmead School,27897,Peoples Services Directorate,Top-up Funding,G064
http://opendatacommunities.org/id/london-borough-council/sutton,London Borough of Sutton,20/09/2017,40130316,"15,300.67",Benjamin UK Ltd,23244,Peoples Services Directorate,Residential Care-Children,G330
http://opendatacommunities.org/id/london-borough-council/sutton,London Borough of Sutton,21/09/2017,40130317,"18,356.34",Benjamin UK Ltd,23244,Peoples Services Directorate,Residential Care-Children,G330
http://opendatacommunities.org/id/london-borough-council/sutton,London Borough of Sutton,21/09/2017,40130318,"10,066.38",Benjamin UK Ltd,23244,Peoples Services Directorate,Residential Care-Children,G330
http://opendatacommunities.org/id/london-borough-council/sutton,London Borough of Sutton,07/11/2017,40128990,"6,746.14",Bertinaley Care Ltd T/A Angel Lodge,27109,Peoples Services Directorate,Interim Placements - Ext Provider,G317
http://opendatacommunities.org/id/london-borough-council/sutton,London Borough of Sutton,31/10/2017,6919992,"3,441.00",Bestcourt UK Ltd,10441,"Environment, Housing & Regeneration Directorate",Bed and Breakfast Accommodation,G400
http://opendatacommunities.org/id/london-borough-council/sutton,London Borough of Sutton,07/11/2017,40128998,"2,019.96",Beverley Lodge Nursing Home,10434,Peoples Services Directorate,Nursing Care - Ext Provider,G311
http://opendatacommunities.org/id/london-borough-council/sutton,London Borough of Sutton,07/11/2017,40129049,"2,800.00",Beverley Lodge Nursing Home,10434,Peoples Services Directorate,Nursing Care - Ext Provider,G311
http://opendatacommunities.org/id/london-borough-council/sutton,London Borough of Sutton,07/11/2017,40129079,"2,226.40",Beverley Lodge Nursing Home,10434,Peoples Services Directorate,Nursing Care - Ext Provider,G311
http://opendatacommunities.org/id/london-borough-council/sutton,London Borough of Sutton,07/11/2017,40129154,"2,139.39",Beverley Lodge Nursing Home,10434,Peoples Services Directorate,Nursing Care - Ext Provider,G311
http://opendatacommunities.org/id/london-borough-council/sutton,London Borough of Sutton,07/11/2017,40129210,"3,400.00",Beverley Lodge Nursing Home,10434,Peoples Services Directorate,Nursing Care - Ext Provider,G311
http://opendatacommunities.org/id/london-borough-council/sutton,London Borough of Sutton,23/10/2017,40127813,490,Beyond Community Care Services Ltd,29933,Peoples Services Directorate,Home Care,G334
http://opendatacommunities.org/id/london-borough-council/sutton,London Borough of Sutton,06/11/2017,40131822,490,Beyond Community Care Services Ltd,29933,Peoples Services Directorate,Home Care,G334
http://opendatacommunities.org/id/london-borough-council/sutton,London Borough of Sutton,30/10/2017,40131828,490,Beyond Community Care Services Ltd,29933,Peoples Services Directorate,Home Care,G334
http://opendatacommunities.org/id/london-borough-council/sutton,London Borough of Sutton,13/11/2017,40132215,490,Beyond Community Care Services Ltd,29933,Peoples Services Directorate,Home Care,G334
http://opendatacommunities.org/id/london-borough-council/sutton,London Borough of Sutton,24/10/2017,6919017,"14,980.00",Bibliotheca Ltd,28968,"Environment, Housing & Regeneration Directorate",Equipment It,Y523
http://opendatacommunities.org/id/london-borough-council/sutton,London Borough of Sutton,24/10/2017,6919018,750,Bibliotheca Ltd,28968,"Environment, Housing & Regeneration Directorate",Equipment It,Y523
http://opendatacommunities.org/id/london-borough-council/sutton,London Borough of Sutton,30/10/2017,6919293,750,Bibliotheca Ltd,28968,"Environment, Housing & Regeneration Directorate",Equipment It,Y523
http://opendatacommunities.org/id/london-borough-council/sutton,London Borough of Sutton,30/10/2017,6919294,"14,980.00",Bibliotheca Ltd,28968,"Environment, Housing & Regeneration Directorate",Equipment It,Y523
http://opendatacommunities.org/id/london-borough-council/sutton,London Borough of Sutton,30/10/2017,6919304,"1,580.00",Bibliotheca Ltd,28968,"Environment, Housing & Regeneration Directorate",Equipment It,Y523
http://opendatacommunities.org/id/london-borough-council/sutton,London Borough of Sutton,21/11/2017,6920523,"14,980.00",Bibliotheca Ltd,28968,"Environment, Housing & Regeneration Directorate",Equipment It,Y523
http://opendatacommunities.org/id/london-borough-council/sutton,London Borough of Sutton,21/11/2017,6920525,750,Bibliotheca Ltd,28968,"Environment, Housing & Regeneration Directorate",Equipment It,Y523
http://opendatacommunities.org/id/london-borough-council/sutton,London Borough of Sutton,21/11/2017,6920576,"1,500.00",Bibliotheca Ltd,28968,"Environment, Housing & Regeneration Directorate",Equipment It,Y523
http://opendatacommunities.org/id/london-borough-council/sutton,London Borough of Sutton,21/11/2017,6920577,"4,275.00",Bibliotheca Ltd,28968,"Environment, Housing & Regeneration Directorate",Equipment It,Y523
http://opendatacommunities.org/id/london-borough-council/sutton,London Borough of Sutton,21/11/2017,6920578,"14,980.00",Bibliotheca Ltd,28968,"Environment, Housing & Regeneration Directorate",Equipment It,Y523
http://opendatacommunities.org/id/london-borough-council/sutton,London Borough of Sutton,21/11/2017,6920579,"21,975.00",Bibliotheca Ltd,28968,"Environment, Housing & Regeneration Directorate",Equipment It,Y523
http://opendatacommunities.org/id/london-borough-council/sutton,London Borough of Sutton,21/11/2017,6920581,"4,245.00",Bibliotheca Ltd,28968,"Environment, Housing & Regeneration Directorate",Equipment It,Y523
http://opendatacommunities.org/id/london-borough-council/sutton,London Borough of Sutton,21/11/2017,6920582,"9,940.00",Bibliotheca Ltd,28968,"Environment, Housing & Regeneration Directorate",Equipment It,Y523
http://opendatacommunities.org/id/london-borough-council/sutton,London Borough of Sutton,28/11/2017,6920865,"14,980.00",Bibliotheca Ltd,28968,"Environment, Housing & Regeneration Directorate",Equipment It,Y523
http://opendatacommunities.org/id/london-borough-council/sutton,London Borough of Sutton,28/11/2017,6920866,"4,945.00",Bibliotheca Ltd,28968,"Environment, Housing & Regeneration Directorate",Equipment It,Y523
http://opendatacommunities.org/id/london-borough-council/sutton,London Borough of Sutton,28/09/2017,6917468,456.09,Bidvest Foodservice,14589,Peoples Services Directorate,Refreshments,F155
http://opendatacommunities.org/id/london-borough-council/sutton,London Borough of Sutton,16/06/2017,6919599,"10,000.00",Biscon Planning Ltd,28579,"Environment, Housing & Regeneration Directorate",Contractual Consultant Fees,G430
http://opendatacommunities.org/id/london-borough-council/sutton,London Borough of Sutton,31/10/2017,6919395,"1,222.50",Blinky Media,27832,Resources Directorate,Miscellaneous Expenses,F620
http://opendatacommunities.org/id/london-borough-council/sutton,London Borough of Sutton,23/11/2017,6920703,"6,365.82",Bloom Procurement Services Ltd,29692,Peoples Services Directorate,Contractual Consultant Fees,G430
http://opendatacommunities.org/id/london-borough-council/sutton,London Borough of Sutton,03/07/2017,1245523,"19,850.00",Blossom House Lower School,10507,Peoples Services Directorate,Independent Schools,G325
http://opendatacommunities.org/id/london-borough-council/sutton,London Borough of Sutton,31/05/2017,1245524,"1,000.00",Blossom House Lower School,10507,Peoples Services Directorate,Independent Schools,G325
http://opendatacommunities.org/id/london-borough-council/sutton,London Borough of Sutton,01/11/2017,1245528,"-3,000.00",Blossom House Lower School,10507,Peoples Services Directorate,Independent Schools,G325
http://opendatacommunities.org/id/london-borough-council/sutton,London Borough of Sutton,12/10/2017,40131645,"4,000.00",Bolinda UK Ltd,10558,Peoples Services Directorate,Books,F006
http://opendatacommunities.org/id/london-borough-council/sutton,London Borough of Sutton,31/10/2017,6919932,"1,500.00",Bottomline Technologies Ltd,25145,Resources Directorate,Fees - Computer Software,F384
http://opendatacommunities.org/id/london-borough-council/sutton,London Borough of Sutton,01/11/2017,6919589,600,Bournemouth University,10556,Peoples Services Directorate,Training - Course Fees,A520
http://opendatacommunities.org/id/london-borough-council/sutton,London Borough of Sutton,07/11/2017,40128915,"1,942.48",Bridge House Care Centre,10620,Peoples Services Directorate,Nursing Care - Ext Provider,G311
http://opendatacommunities.org/id/london-borough-council/sutton,London Borough of Sutton,07/11/2017,40128962,"3,000.00",Bridge House Care Centre,10620,Peoples Services Directorate,Nursing Care - Ext Provider,G311
http://opendatacommunities.org/id/london-borough-council/sutton,London Borough of Sutton,07/11/2017,40129013,"3,400.00",Bridge House Care Centre,10620,Peoples Services Directorate,Nursing Care - Ext Provider,G311
http://opendatacommunities.org/id/london-borough-council/sutton,London Borough of Sutton,07/11/2017,40129014,"2,034.96",Bridge House Care Centre,10620,Peoples Services Directorate,Nursing Care - Ext Provider,G311
http://opendatacommunities.org/id/london-borough-council/sutton,London Borough of Sutton,07/11/2017,40129072,"21,240.00",Bridge House Care Centre,10620,Peoples Services Directorate,Nursing Care - Ext Provider,G311
http://opendatacommunities.org/id/london-borough-council/sutton,London Borough of Sutton,07/11/2017,40129073,"2,033.92",Bridge House Care Centre,10620,Peoples Services Directorate,Nursing Care - Ext Provider,G311
http://opendatacommunities.org/id/london-borough-council/sutton,London Borough of Sutton,07/11/2017,40129103,"2,892.86",Bridge House Care Centre,10620,Peoples Services Directorate,Nursing Care - Ext Provider,G311
http://opendatacommunities.org/id/london-borough-council/sutton,London Borough of Sutton,07/11/2017,40129104,"3,475.36",Bridge House Care Centre,10620,Peoples Services Directorate,Nursing Care - Ext Provider,G311
http://opendatacommunities.org/id/london-borough-council/sutton,London Borough of Sutton,07/11/2017,40129131,"2,005.84",Bridge House Care Centre,10620,Peoples Services Directorate,Nursing Care - Ext Provider,G311
http://opendatacommunities.org/id/london-borough-council/sutton,London Borough of Sutton,07/11/2017,40129177,"3,380.00",Bridge House Care Centre,10620,Peoples Services Directorate,Nursing Care - Ext Provider,G311
http://opendatacommunities.org/id/london-borough-council/sutton,London Borough of Sutton,07/11/2017,40129178,"1,996.00",Bridge House Care Centre,10620,Peoples Services Directorate,Nursing Care - Ext Provider,G311
http://opendatacommunities.org/id/london-borough-council/sutton,London Borough of Sutton,07/11/2017,40129223,"3,200.00",Bridge House Care Centre,10620,Peoples Services Directorate,Nursing Care - Ext Provider,G311
http://opendatacommunities.org/id/london-borough-council/sutton,London Borough of Sutton,11/11/2017,6920168,700,Britaniacrest Recycling Ltd,25243,Resources Directorate,"Bulk Refuse Containers, Paladin Bins and Refuse Ch",D810
http://opendatacommunities.org/id/london-borough-council/sutton,London Borough of Sutton,07/11/2017,40129050,"2,710.40",British Home & Hospital For Incurables,10589,Peoples Services Directorate,Nursing Care - Ext Provider,G311
http://opendatacommunities.org/id/london-borough-council/sutton,London Borough of Sutton,07/11/2017,40129080,"2,439.36",British Home & Hospital For Incurables,10589,Peoples Services Directorate,Nursing Care - Ext Provider,G311
http://opendatacommunities.org/id/london-borough-council/sutton,London Borough of Sutton,07/11/2017,40129211,"2,439.36",British Home & Hospital For Incurables,10589,Peoples Services Directorate,Nursing Care - Ext Provider,G311
http://opendatacommunities.org/id/london-borough-council/sutton,London Borough of Sutton,03/10/2017,6918230,"2,373.50",British Telecommunications Plc,10574,Resources Directorate,"Telephones - Mobile, Pagers etc.",F374
http://opendatacommunities.org/id/london-borough-council/sutton,London Borough of Sutton,03/10/2017,6918231,628.5,British Telecommunications Plc,10574,Resources Directorate,"Telephones - Mobile, Pagers etc.",F374
http://opendatacommunities.org/id/london-borough-council/sutton,London Borough of Sutton,07/11/2017,6919828,"12,110.00",British Telecommunications Plc,10574,"Environment, Housing & Regeneration Directorate",Alts To Undertakers Plant-Telecom,Y243
http://opendatacommunities.org/id/london-borough-council/sutton,London Borough of Sutton,07/11/2017,40128881,"3,642.86",Broadlands Nursing Home,10586,Peoples Services Directorate,Nursing Care - Short Term Placements,G328
http://opendatacommunities.org/id/london-borough-council/sutton,London Borough of Sutton,07/11/2017,40128949,"3,277.16",Broadlands Nursing Home,10586,Peoples Services Directorate,Nursing Care - Ext Provider,G311
http://opendatacommunities.org/id/london-borough-council/sutton,London Borough of Sutton,07/11/2017,40129051,"3,380.00",Broadlands Nursing Home,10586,Peoples Services Directorate,Nursing Care - Ext Provider,G311
http://opendatacommunities.org/id/london-borough-council/sutton,London Borough of Sutton,07/11/2017,40129052,"3,380.00",Broadlands Nursing Home,10586,Peoples Services Directorate,Nursing Care - Ext Provider,G311
http://opendatacommunities.org/id/london-borough-council/sutton,London Borough of Sutton,07/11/2017,40129081,"3,400.00",Broadlands Nursing Home,10586,Peoples Services Directorate,Nursing Care - Ext Provider,G311
http://opendatacommunities.org/id/london-borough-council/sutton,London Borough of Sutton,07/11/2017,40129212,"2,945.00",Broadlands Nursing Home,10586,Peoples Services Directorate,Nursing Care - Ext Provider,G311
http://opendatacommunities.org/id/london-borough-council/sutton,London Borough of Sutton,07/11/2017,40129213,"1,835.60",Broadlands Nursing Home,10586,Peoples Services Directorate,Nursing Care - Ext Provider,G311
http://opendatacommunities.org/id/london-borough-council/sutton,London Borough of Sutton,30/09/2016,40136123,"3,514.26",Broadwood Educational Services Ltd,24807,Peoples Services Directorate,Residential Care-Children,G330
http://opendatacommunities.org/id/london-borough-council/sutton,London Borough of Sutton,31/10/2017,6919392,"1,680.00",Bromley & Croydon Women's Aid,26394,Peoples Services Directorate,C.C.A Rent & Utilities,H211
http://opendatacommunities.org/id/london-borough-council/sutton,London Borough of Sutton,15/11/2017,6920298,"1,400.00",Bromley & Croydon Women's Aid,26394,Peoples Services Directorate,C.C.A Rent & Utilities,H211
http://opendatacommunities.org/id/london-borough-council/sutton,London Borough of Sutton,30/10/2017,6920126,960,Bruce Holroyd Associates,26196,Peoples Services Directorate,Personal Requisites,F106
http://opendatacommunities.org/id/london-borough-council/sutton,London Borough of Sutton,30/10/2017,6920127,960,Bruce Holroyd Associates,26196,Peoples Services Directorate,Personal Requisites,F106
http://opendatacommunities.org/id/london-borough-council/sutton,London Borough of Sutton,29/09/2017,1244562,"8,766.00",Brunswick Cars 9761/1961276/Loc09,10611,Peoples Services Directorate,Hired Peoples Transport (Children),E072
http://opendatacommunities.org/id/london-borough-council/sutton,London Borough of Sutton,29/09/2017,1244563,"4,165.50",Brunswick Cars 9761/1961276/Loc09,10611,Peoples Services Directorate,Hired Peoples Transport (Children),E072
http://opendatacommunities.org/id/london-borough-council/sutton,London Borough of Sutton,29/09/2017,1244564,"6,650.00",Brunswick Cars 9761/1961276/Loc09,10611,Peoples Services Directorate,Hired Peoples Transport (Children),E072
http://opendatacommunities.org/id/london-borough-council/sutton,London Borough of Sutton,29/09/2017,1244565,"4,425.00",Brunswick Cars 9761/1961276/Loc09,10611,Peoples Services Directorate,Hired Peoples Transport (Children),E072
http://opendatacommunities.org/id/london-borough-council/sutton,London Borough of Sutton,29/09/2017,1244566,"5,155.00",Brunswick Cars 9761/1961276/Loc09,10611,Peoples Services Directorate,Hired Peoples Transport (Children),E072
http://opendatacommunities.org/id/london-borough-council/sutton,London Borough of Sutton,29/09/2017,1244567,"4,986.00",Brunswick Cars 9761/1961276/Loc09,10611,Peoples Services Directorate,Hired Peoples Transport (Children),E072
http://opendatacommunities.org/id/london-borough-council/sutton,London Borough of Sutton,29/09/2017,1244568,"4,320.00",Brunswick Cars 9761/1961276/Loc09,10611,Peoples Services Directorate,Hired Peoples Transport (Children),E072
http://opendatacommunities.org/id/london-borough-council/sutton,London Borough of Sutton,29/09/2017,1244569,"6,479.00",Brunswick Cars 9761/1961276/Loc09,10611,Peoples Services Directorate,Hired Peoples Transport (Children),E072
http://opendatacommunities.org/id/london-borough-council/sutton,London Borough of Sutton,29/09/2017,1244570,"5,785.50",Brunswick Cars 9761/1961276/Loc09,10611,Peoples Services Directorate,Hired Peoples Transport (Children),E072
http://opendatacommunities.org/id/london-borough-council/sutton,London Borough of Sutton,29/09/2017,1244571,"4,339.50",Brunswick Cars 9761/1961276/Loc09,10611,Peoples Services Directorate,Hired Peoples Transport (Children),E072
http://opendatacommunities.org/id/london-borough-council/sutton,London Borough of Sutton,29/09/2017,1244572,"4,200.00",Brunswick Cars 9761/1961276/Loc09,10611,Peoples Services Directorate,Hired Peoples Transport (Children),E072
http://opendatacommunities.org/id/london-borough-council/sutton,London Borough of Sutton,29/09/2017,1244573,"3,546.00",Brunswick Cars 9761/1961276/Loc09,10611,Peoples Services Directorate,Hired Peoples Transport (Children),E072
http://opendatacommunities.org/id/london-borough-council/sutton,London Borough of Sutton,29/09/2017,1244574,"2,973.50",Brunswick Cars 9761/1961276/Loc09,10611,Peoples Services Directorate,Hired Peoples Transport (Children),E072
http://opendatacommunities.org/id/london-borough-council/sutton,London Borough of Sutton,29/09/2017,1244575,"3,888.00",Brunswick Cars 9761/1961276/Loc09,10611,Peoples Services Directorate,Hired Peoples Transport (Children),E072
http://opendatacommunities.org/id/london-borough-council/sutton,London Borough of Sutton,29/09/2017,1244576,"3,788.00",Brunswick Cars 9761/1961276/Loc09,10611,Peoples Services Directorate,Hired Peoples Transport (Children),E072
http://opendatacommunities.org/id/london-borough-council/sutton,London Borough of Sutton,29/09/2017,1244577,"5,054.00",Brunswick Cars 9761/1961276/Loc09,10611,Peoples Services Directorate,Hired Peoples Transport (Children),E072
http://opendatacommunities.org/id/london-borough-council/sutton,London Borough of Sutton,29/09/2017,1244578,"3,570.00",Brunswick Cars 9761/1961276/Loc09,10611,Peoples Services Directorate,Hired Peoples Transport (Children),E072
http://opendatacommunities.org/id/london-borough-council/sutton,London Borough of Sutton,29/09/2017,1244579,"2,194.00",Brunswick Cars 9761/1961276/Loc09,10611,Peoples Services Directorate,Hired Peoples Transport (Children),E072
http://opendatacommunities.org/id/london-borough-council/sutton,London Borough of Sutton,29/09/2017,1244580,"3,315.00",Brunswick Cars 9761/1961276/Loc09,10611,Peoples Services Directorate,Hired Peoples Transport (Children),E072
http://opendatacommunities.org/id/london-borough-council/sutton,London Borough of Sutton,29/09/2017,1244581,"3,895.00",Brunswick Cars 9761/1961276/Loc09,10611,Peoples Services Directorate,Hired Peoples Transport (Children),E072
http://opendatacommunities.org/id/london-borough-council/sutton,London Borough of Sutton,29/09/2017,1244582,"4,256.00",Brunswick Cars 9761/1961276/Loc09,10611,Peoples Services Directorate,Hired Peoples Transport (Children),E072
http://opendatacommunities.org/id/london-borough-council/sutton,London Borough of Sutton,29/09/2017,1244583,"4,201.50",Brunswick Cars 9761/1961276/Loc09,10611,Peoples Services Directorate,Hired Peoples Transport (Children),E072
http://opendatacommunities.org/id/london-borough-council/sutton,London Borough of Sutton,29/09/2017,1244584,"8,949.00",Brunswick Cars 9761/1961276/Loc09,10611,Peoples Services Directorate,Hired Peoples Transport (Children),E072
http://opendatacommunities.org/id/london-borough-council/sutton,London Borough of Sutton,29/09/2017,1244585,"3,059.00",Brunswick Cars 9761/1961276/Loc09,10611,Peoples Services Directorate,Hired Peoples Transport (Children),E072
http://opendatacommunities.org/id/london-borough-council/sutton,London Borough of Sutton,29/09/2017,1244586,"5,852.00",Brunswick Cars 9761/1961276/Loc09,10611,Peoples Services Directorate,Hired Peoples Transport (Children),E072
http://opendatacommunities.org/id/london-borough-council/sutton,London Borough of Sutton,29/09/2017,1244587,"4,997.00",Brunswick Cars 9761/1961276/Loc09,10611,Peoples Services Directorate,Hired Peoples Transport (Children),E072
http://opendatacommunities.org/id/london-borough-council/sutton,London Borough of Sutton,29/09/2017,1244588,"3,780.00",Brunswick Cars 9761/1961276/Loc09,10611,Peoples Services Directorate,Hired Peoples Transport (Children),E072
http://opendatacommunities.org/id/london-borough-council/sutton,London Borough of Sutton,29/09/2017,1244589,"2,261.00",Brunswick Cars 9761/1961276/Loc09,10611,Peoples Services Directorate,Hired Peoples Transport (Children),E072
http://opendatacommunities.org/id/london-borough-council/sutton,London Borough of Sutton,29/09/2017,1244590,"5,871.00",Brunswick Cars 9761/1961276/Loc09,10611,Peoples Services Directorate,Hired Peoples Transport (Children),E072
http://opendatacommunities.org/id/london-borough-council/sutton,London Borough of Sutton,29/09/2017,1244591,"3,546.00",Brunswick Cars 9761/1961276/Loc09,10611,Peoples Services Directorate,Hired Peoples Transport (Children),E072
http://opendatacommunities.org/id/london-borough-council/sutton,London Borough of Sutton,29/09/2017,1244592,"3,420.00",Brunswick Cars 9761/1961276/Loc09,10611,Peoples Services Directorate,Hired Peoples Transport (Children),E072
http://opendatacommunities.org/id/london-borough-council/sutton,London Borough of Sutton,29/09/2017,1244593,"7,700.00",Brunswick Cars 9761/1961276/Loc09,10611,Peoples Services Directorate,Hired Peoples Transport (Children),E072
http://opendatacommunities.org/id/london-borough-council/sutton,London Borough of Sutton,29/09/2017,1244594,"1,862.00",Brunswick Cars 9761/1961276/Loc09,10611,Peoples Services Directorate,Hired Peoples Transport (Children),E072
http://opendatacommunities.org/id/london-borough-council/sutton,London Borough of Sutton,29/09/2017,1244595,"4,788.00",Brunswick Cars 9761/1961276/Loc09,10611,Peoples Services Directorate,Hired Peoples Transport (Children),E072
http://opendatacommunities.org/id/london-borough-council/sutton,London Borough of Sutton,29/09/2017,1244596,"3,278.00",Brunswick Cars 9761/1961276/Loc09,10611,Peoples Services Directorate,Hired Peoples Transport (Children),E072
http://opendatacommunities.org/id/london-borough-council/sutton,London Borough of Sutton,29/09/2017,1244598,557,Brunswick Cars 9761/1961276/Loc09,10611,Peoples Services Directorate,Hired Peoples Transport (Children),E072
http://opendatacommunities.org/id/london-borough-council/sutton,London Borough of Sutton,29/09/2017,1244600,"1,652.00",Brunswick Cars 9761/1961276/Loc09,10611,Peoples Services Directorate,Hired Peoples Transport (Children),E072
http://opendatacommunities.org/id/london-borough-council/sutton,London Borough of Sutton,29/09/2017,1244601,"2,240.00",Brunswick Cars 9761/1961276/Loc09,10611,Peoples Services Directorate,Hired Peoples Transport (Children),E072
http://opendatacommunities.org/id/london-borough-council/sutton,London Borough of Sutton,29/09/2017,1244602,"1,329.50",Brunswick Cars 9761/1961276/Loc09,10611,Peoples Services Directorate,Hired Peoples Transport (Children),E072
http://opendatacommunities.org/id/london-borough-council/sutton,London Borough of Sutton,29/09/2017,1244603,550,Brunswick Cars 9761/1961276/Loc09,10611,Peoples Services Directorate,Hired Peoples Transport (Children),E072
http://opendatacommunities.org/id/london-borough-council/sutton,London Borough of Sutton,29/09/2017,1244604,"1,845.00",Brunswick Cars 9761/1961276/Loc09,10611,Peoples Services Directorate,Hired Peoples Transport (Children),E072
http://opendatacommunities.org/id/london-borough-council/sutton,London Borough of Sutton,29/09/2017,1244605,"2,700.00",Brunswick Cars 9761/1961276/Loc09,10611,Peoples Services Directorate,Hired Peoples Transport (Children),E072
http://opendatacommunities.org/id/london-borough-council/sutton,London Borough of Sutton,29/09/2017,1244607,"2,090.00",Brunswick Cars 9761/1961276/Loc09,10611,Peoples Services Directorate,Hired Peoples Transport (Children),E072
http://opendatacommunities.org/id/london-borough-council/sutton,London Borough of Sutton,31/10/2017,1244968,"1,984.00",Brunswick Cars 9761/1961276/Loc09,10611,Peoples Services Directorate,Hired Peoples Transport (Children),E072
http://opendatacommunities.org/id/london-borough-council/sutton,London Borough of Sutton,31/10/2017,1244969,"2,176.00",Brunswick Cars 9761/1961276/Loc09,10611,Peoples Services Directorate,Hired Peoples Transport (Children),E072
http://opendatacommunities.org/id/london-borough-council/sutton,London Borough of Sutton,31/10/2017,1244970,"2,550.00",Brunswick Cars 9761/1961276/Loc09,10611,Peoples Services Directorate,Hired Peoples Transport (Children),E072
http://opendatacommunities.org/id/london-borough-council/sutton,London Borough of Sutton,31/10/2017,1244974,"4,182.00",Brunswick Cars 9761/1961276/Loc09,10611,Peoples Services Directorate,Hired Peoples Transport (Children),E072
http://opendatacommunities.org/id/london-borough-council/sutton,London Borough of Sutton,31/10/2017,1245008,969,Brunswick Cars 9761/1961276/Loc09,10611,Peoples Services Directorate,Hired Peoples Transport (Children),E072
http://opendatacommunities.org/id/london-borough-council/sutton,London Borough of Sutton,31/10/2017,1245009,"2,771.00",Brunswick Cars 9761/1961276/Loc09,10611,Peoples Services Directorate,Hired Peoples Transport (Children),E072
http://opendatacommunities.org/id/london-borough-council/sutton,London Borough of Sutton,31/10/2017,1245010,"8,288.00",Brunswick Cars 9761/1961276/Loc09,10611,Peoples Services Directorate,Hired Peoples Transport (Children),E072
http://opendatacommunities.org/id/london-borough-council/sutton,London Borough of Sutton,31/10/2017,1245011,"4,280.00",Brunswick Cars 9761/1961276/Loc09,10611,Peoples Services Directorate,Hired Peoples Transport (Children),E072
http://opendatacommunities.org/id/london-borough-council/sutton,London Borough of Sutton,31/10/2017,1245012,"2,975.00",Brunswick Cars 9761/1961276/Loc09,10611,Peoples Services Directorate,Hired Peoples Transport (Children),E072
http://opendatacommunities.org/id/london-borough-council/sutton,London Borough of Sutton,31/10/2017,1245013,"5,320.00",Brunswick Cars 9761/1961276/Loc09,10611,Peoples Services Directorate,Hired Peoples Transport (Children),E072
http://opendatacommunities.org/id/london-borough-council/sutton,London Borough of Sutton,31/10/2017,1245014,"5,015.00",Brunswick Cars 9761/1961276/Loc09,10611,Peoples Services Directorate,Hired Peoples Transport (Children),E072
http://opendatacommunities.org/id/london-borough-council/sutton,London Borough of Sutton,31/10/2017,1245015,"4,272.00",Brunswick Cars 9761/1961276/Loc09,10611,Peoples Services Directorate,Hired Peoples Transport (Children),E072
http://opendatacommunities.org/id/london-borough-council/sutton,London Borough of Sutton,31/10/2017,1245016,"4,709.00",Brunswick Cars 9761/1961276/Loc09,10611,Peoples Services Directorate,Hired Peoples Transport (Children),E072
http://opendatacommunities.org/id/london-borough-council/sutton,London Borough of Sutton,31/10/2017,1245017,"4,080.00",Brunswick Cars 9761/1961276/Loc09,10611,Peoples Services Directorate,Hired Peoples Transport (Children),E072
http://opendatacommunities.org/id/london-borough-council/sutton,London Borough of Sutton,31/10/2017,1245018,"7,161.00",Brunswick Cars 9761/1961276/Loc09,10611,Peoples Services Directorate,Hired Peoples Transport (Children),E072
http://opendatacommunities.org/id/london-borough-council/sutton,London Borough of Sutton,31/10/2017,1245019,"4,872.00",Brunswick Cars 9761/1961276/Loc09,10611,Peoples Services Directorate,Hired Peoples Transport (Children),E072
http://opendatacommunities.org/id/london-borough-council/sutton,London Borough of Sutton,31/10/2017,1245020,"4,339.50",Brunswick Cars 9761/1961276/Loc09,10611,Peoples Services Directorate,Hired Peoples Transport (Children),E072
http://opendatacommunities.org/id/london-borough-council/sutton,London Borough of Sutton,31/10/2017,1245021,"3,468.00",Brunswick Cars 9761/1961276/Loc09,10611,Peoples Services Directorate,Hired Peoples Transport (Children),E072
http://opendatacommunities.org/id/london-borough-council/sutton,London Borough of Sutton,31/10/2017,1245022,"3,349.00",Brunswick Cars 9761/1961276/Loc09,10611,Peoples Services Directorate,Hired Peoples Transport (Children),E072
http://opendatacommunities.org/id/london-borough-council/sutton,London Borough of Sutton,31/10/2017,1245023,"2,504.00",Brunswick Cars 9761/1961276/Loc09,10611,Peoples Services Directorate,Hired Peoples Transport (Children),E072
http://opendatacommunities.org/id/london-borough-council/sutton,London Borough of Sutton,31/10/2017,1245024,"3,672.00",Brunswick Cars 9761/1961276/Loc09,10611,Peoples Services Directorate,Hired Peoples Transport (Children),E072
http://opendatacommunities.org/id/london-borough-council/sutton,London Borough of Sutton,31/10/2017,1245025,"2,912.00",Brunswick Cars 9761/1961276/Loc09,10611,Peoples Services Directorate,Hired Peoples Transport (Children),E072
http://opendatacommunities.org/id/london-borough-council/sutton,London Borough of Sutton,31/10/2017,1245026,"1,649.00",Brunswick Cars 9761/1961276/Loc09,10611,Peoples Services Directorate,Hired Peoples Transport (Children),E072
http://opendatacommunities.org/id/london-borough-council/sutton,London Borough of Sutton,31/10/2017,1245027,"4,256.00",Brunswick Cars 9761/1961276/Loc09,10611,Peoples Services Directorate,Hired Peoples Transport (Children),E072
http://opendatacommunities.org/id/london-borough-council/sutton,London Borough of Sutton,31/10/2017,1245028,"3,385.00",Brunswick Cars 9761/1961276/Loc09,10611,Peoples Services Directorate,Hired Peoples Transport (Children),E072
http://opendatacommunities.org/id/london-borough-council/sutton,London Borough of Sutton,31/10/2017,1245029,"1,960.00",Brunswick Cars 9761/1961276/Loc09,10611,Peoples Services Directorate,Hired Peoples Transport (Children),E072
http://opendatacommunities.org/id/london-borough-council/sutton,London Borough of Sutton,31/10/2017,1245030,"3,120.00",Brunswick Cars 9761/1961276/Loc09,10611,Peoples Services Directorate,Hired Peoples Transport (Children),E072
http://opendatacommunities.org/id/london-borough-council/sutton,London Borough of Sutton,31/10/2017,1245031,"3,280.00",Brunswick Cars 9761/1961276/Loc09,10611,Peoples Services Directorate,Hired Peoples Transport (Children),E072
http://opendatacommunities.org/id/london-borough-council/sutton,London Borough of Sutton,31/10/2017,1245032,"3,584.00",Brunswick Cars 9761/1961276/Loc09,10611,Peoples Services Directorate,Hired Peoples Transport (Children),E072
http://opendatacommunities.org/id/london-borough-council/sutton,London Borough of Sutton,31/10/2017,1245033,"3,512.00",Brunswick Cars 9761/1961276/Loc09,10611,Peoples Services Directorate,Hired Peoples Transport (Children),E072
http://opendatacommunities.org/id/london-borough-council/sutton,London Borough of Sutton,31/10/2017,1245034,"7,536.00",Brunswick Cars 9761/1961276/Loc09,10611,Peoples Services Directorate,Hired Peoples Transport (Children),E072
http://opendatacommunities.org/id/london-borough-council/sutton,London Borough of Sutton,31/10/2017,1245035,"2,576.00",Brunswick Cars 9761/1961276/Loc09,10611,Peoples Services Directorate,Hired Peoples Transport (Children),E072
http://opendatacommunities.org/id/london-borough-council/sutton,London Borough of Sutton,31/10/2017,1245036,"1,768.00",Brunswick Cars 9761/1961276/Loc09,10611,Peoples Services Directorate,Hired Peoples Transport (Children),E072
http://opendatacommunities.org/id/london-borough-council/sutton,London Borough of Sutton,31/10/2017,1245037,"4,928.00",Brunswick Cars 9761/1961276/Loc09,10611,Peoples Services Directorate,Hired Peoples Transport (Children),E072
http://opendatacommunities.org/id/london-borough-council/sutton,London Borough of Sutton,31/10/2017,1245038,"4,208.00",Brunswick Cars 9761/1961276/Loc09,10611,Peoples Services Directorate,Hired Peoples Transport (Children),E072
http://opendatacommunities.org/id/london-borough-council/sutton,London Borough of Sutton,31/10/2017,1245039,"3,570.00",Brunswick Cars 9761/1961276/Loc09,10611,Peoples Services Directorate,Hired Peoples Transport (Children),E072
http://opendatacommunities.org/id/london-borough-council/sutton,London Borough of Sutton,31/10/2017,1245040,"2,023.00",Brunswick Cars 9761/1961276/Loc09,10611,Peoples Services Directorate,Hired Peoples Transport (Children),E072
http://opendatacommunities.org/id/london-borough-council/sutton,London Borough of Sutton,31/10/2017,1245041,"4,944.00",Brunswick Cars 9761/1961276/Loc09,10611,Peoples Services Directorate,Hired Peoples Transport (Children),E072
http://opendatacommunities.org/id/london-borough-council/sutton,London Borough of Sutton,31/10/2017,1245042,"3,102.00",Brunswick Cars 9761/1961276/Loc09,10611,Peoples Services Directorate,Hired Peoples Transport (Children),E072
http://opendatacommunities.org/id/london-borough-council/sutton,London Borough of Sutton,31/10/2017,1245043,"3,040.00",Brunswick Cars 9761/1961276/Loc09,10611,Peoples Services Directorate,Hired Peoples Transport (Children),E072
http://opendatacommunities.org/id/london-borough-council/sutton,London Borough of Sutton,31/10/2017,1245044,"2,848.00",Brunswick Cars 9761/1961276/Loc09,10611,Peoples Services Directorate,Hired Peoples Transport (Children),E072
http://opendatacommunities.org/id/london-borough-council/sutton,London Borough of Sutton,31/10/2017,1245045,"1,462.00",Brunswick Cars 9761/1961276/Loc09,10611,Peoples Services Directorate,Hired Peoples Transport (Children),E072
http://opendatacommunities.org/id/london-borough-council/sutton,London Borough of Sutton,31/10/2017,1245046,"8,000.00",Brunswick Cars 9761/1961276/Loc09,10611,Peoples Services Directorate,Hired Peoples Transport (Children),E072
http://opendatacommunities.org/id/london-borough-council/sutton,London Borough of Sutton,31/10/2017,1245049,"3,010.00",Brunswick Cars 9761/1961276/Loc09,10611,Peoples Services Directorate,Hired Peoples Transport (Children),E072
http://opendatacommunities.org/id/london-borough-council/sutton,London Borough of Sutton,31/10/2017,1245050,"1,462.00",Brunswick Cars 9761/1961276/Loc09,10611,Peoples Services Directorate,Hired Peoples Transport (Children),E072
http://opendatacommunities.org/id/london-borough-council/sutton,London Borough of Sutton,31/10/2017,1245051,"1,504.00",Brunswick Cars 9761/1961276/Loc09,10611,Peoples Services Directorate,Hired Peoples Transport (Children),E072
http://opendatacommunities.org/id/london-borough-council/sutton,London Borough of Sutton,31/10/2017,1245052,"1,568.00",Brunswick Cars 9761/1961276/Loc09,10611,Peoples Services Directorate,Hired Peoples Transport (Children),E072
http://opendatacommunities.org/id/london-borough-council/sutton,London Borough of Sutton,31/10/2017,1245053,"2,128.00",Brunswick Cars 9761/1961276/Loc09,10611,Peoples Services Directorate,Hired Peoples Transport (Children),E072
http://opendatacommunities.org/id/london-borough-council/sutton,London Borough of Sutton,31/10/2017,1245054,"2,144.00",Brunswick Cars 9761/1961276/Loc09,10611,Peoples Services Directorate,Hired Peoples Transport (Children),E072
http://opendatacommunities.org/id/london-borough-council/sutton,London Borough of Sutton,31/10/2017,1245055,"4,522.00",Brunswick Cars 9761/1961276/Loc09,10611,Peoples Services Directorate,Hired Peoples Transport (Children),E072
http://opendatacommunities.org/id/london-borough-council/sutton,London Borough of Sutton,31/10/2017,1245056,"1,888.00",Brunswick Cars 9761/1961276/Loc09,10611,Peoples Services Directorate,Hired Peoples Transport (Children),E072
http://opendatacommunities.org/id/london-borough-council/sutton,London Borough of Sutton,31/10/2017,1245057,"3,451.00",Brunswick Cars 9761/1961276/Loc09,10611,Peoples Services Directorate,Hired Peoples Transport (Children),E072
http://opendatacommunities.org/id/london-borough-council/sutton,London Borough of Sutton,31/10/2017,1245058,"1,605.00",Brunswick Cars 9761/1961276/Loc09,10611,Peoples Services Directorate,Hired Peoples Transport (Children),E072
http://opendatacommunities.org/id/london-borough-council/sutton,London Borough of Sutton,31/10/2017,1245059,"1,887.00",Brunswick Cars 9761/1961276/Loc09,10611,Peoples Services Directorate,Hired Peoples Transport (Children),E072
http://opendatacommunities.org/id/london-borough-council/sutton,London Borough of Sutton,31/10/2017,1245060,"1,377.00",Brunswick Cars 9761/1961276/Loc09,10611,Peoples Services Directorate,Hired Peoples Transport (Children),E072
http://opendatacommunities.org/id/london-borough-council/sutton,London Borough of Sutton,31/10/2017,1245061,"2,023.00",Brunswick Cars 9761/1961276/Loc09,10611,Peoples Services Directorate,Hired Peoples Transport (Children),E072
http://opendatacommunities.org/id/london-borough-council/sutton,London Borough of Sutton,31/10/2017,1245062,"2,006.00",Brunswick Cars 9761/1961276/Loc09,10611,Peoples Services Directorate,Hired Peoples Transport (Children),E072
http://opendatacommunities.org/id/london-borough-council/sutton,London Borough of Sutton,31/10/2017,1245063,"2,091.00",Brunswick Cars 9761/1961276/Loc09,10611,Peoples Services Directorate,Hired Peoples Transport (Children),E072
http://opendatacommunities.org/id/london-borough-council/sutton,London Borough of Sutton,31/10/2017,1245064,"1,760.00",Brunswick Cars 9761/1961276/Loc09,10611,Peoples Services Directorate,Hired Peoples Transport (Children),E072
http://opendatacommunities.org/id/london-borough-council/sutton,London Borough of Sutton,31/10/2017,1245065,"3,825.00",Brunswick Cars 9761/1961276/Loc09,10611,Peoples Services Directorate,Hired Peoples Transport (Children),E072
http://opendatacommunities.org/id/london-borough-council/sutton,London Borough of Sutton,31/10/2017,1245066,"5,170.00",Brunswick Cars 9761/1961276/Loc09,10611,Peoples Services Directorate,Hired Peoples Transport (Children),E072
http://opendatacommunities.org/id/london-borough-council/sutton,London Borough of Sutton,31/10/2017,1245067,"1,184.00",Brunswick Cars 9761/1961276/Loc09,10611,Peoples Services Directorate,Hired Peoples Transport (Children),E072
http://opendatacommunities.org/id/london-borough-council/sutton,London Borough of Sutton,31/10/2017,1245068,"1,396.00",Brunswick Cars 9761/1961276/Loc09,10611,Peoples Services Directorate,Hired Peoples Transport (Children),E072
http://opendatacommunities.org/id/london-borough-council/sutton,London Borough of Sutton,31/10/2017,1245069,495,Brunswick Cars 9761/1961276/Loc09,10611,Peoples Services Directorate,Hired Peoples Transport (Children),E072
http://opendatacommunities.org/id/london-borough-council/sutton,London Borough of Sutton,09/11/2017,6920642,"2,250.00",BTFI,25814,Chief Executive's Directorate,Fees - Other,F299
http://opendatacommunities.org/id/london-borough-council/sutton,London Borough of Sutton,30/10/2017,6919442,"2,606.88",Built Off-Site Ltd,28510,Peoples Services Directorate,Building Works -Main Contractor,Y350
http://opendatacommunities.org/id/london-borough-council/sutton,London Borough of Sutton,31/10/2017,6920027,"160,781.59",Built Off-Site Ltd,28510,Peoples Services Directorate,Building Works -Main Contractor,Y350
http://opendatacommunities.org/id/london-borough-council/sutton,London Borough of Sutton,21/11/2017,6920709,"42,622.73",Built Off-Site Ltd,28510,Peoples Services Directorate,Building Works -Main Contractor,Y350
http://opendatacommunities.org/id/london-borough-council/sutton,London Borough of Sutton,31/10/2017,6920333,"1,302.00",Buller Hotel,23493,"Environment, Housing & Regeneration Directorate",Bed and Breakfast Accommodation,G400
http://opendatacommunities.org/id/london-borough-council/sutton,London Borough of Sutton,31/10/2017,6920334,"1,190.40",Buller Hotel,23493,"Environment, Housing & Regeneration Directorate",Bed and Breakfast Accommodation,G400
http://opendatacommunities.org/id/london-borough-council/sutton,London Borough of Sutton,31/10/2017,6920335,"1,116.00",Buller Hotel,23493,"Environment, Housing & Regeneration Directorate",Bed and Breakfast Accommodation,G400
http://opendatacommunities.org/id/london-borough-council/sutton,London Borough of Sutton,31/10/2017,6920336,"1,302.00",Buller Hotel,23493,"Environment, Housing & Regeneration Directorate",Bed and Breakfast Accommodation,G400
http://opendatacommunities.org/id/london-borough-council/sutton,London Borough of Sutton,31/10/2017,6920337,844.8,Buller Hotel,23493,"Environment, Housing & Regeneration Directorate",Bed and Breakfast Accommodation,G400
http://opendatacommunities.org/id/london-borough-council/sutton,London Borough of Sutton,31/10/2017,6920338,"1,302.00",Buller Hotel,23493,"Environment, Housing & Regeneration Directorate",Bed and Breakfast Accommodation,G400
http://opendatacommunities.org/id/london-borough-council/sutton,London Borough of Sutton,31/10/2017,6920339,"1,302.00",Buller Hotel,23493,"Environment, Housing & Regeneration Directorate",Bed and Breakfast Accommodation,G400
http://opendatacommunities.org/id/london-borough-council/sutton,London Borough of Sutton,07/11/2017,40128877,"1,868.00",Bupa Care Services,10175,Peoples Services Directorate,Residential Care - Ext Provider,G310
http://opendatacommunities.org/id/london-borough-council/sutton,London Borough of Sutton,07/11/2017,40129021,"1,971.80",Bupa Care Services,10175,Peoples Services Directorate,Nursing Care - Ext Provider,G311
http://opendatacommunities.org/id/london-borough-council/sutton,London Borough of Sutton,07/11/2017,40129031,"3,436.00",Bupa Care Services,10175,Peoples Services Directorate,Nursing Care - Ext Provider,G311
http://opendatacommunities.org/id/london-borough-council/sutton,London Borough of Sutton,07/11/2017,40128842,"2,439.56",Burlington Nursing Home Ltd,19236,Peoples Services Directorate,Nursing Care - Ext Provider,G311
http://opendatacommunities.org/id/london-borough-council/sutton,London Borough of Sutton,07/11/2017,40128823,"7,824.28",Butterfly's Care Homes Ltd,28860,Peoples Services Directorate,Residential Care - Ext Provider,G310
http://opendatacommunities.org/id/london-borough-council/sutton,London Borough of Sutton,20/11/2017,6920654,"28,500.00",BWT Law LLP Solicitors,99827,Peoples Services Directorate,Purchase Price,Y010
http://opendatacommunities.org/id/london-borough-council/sutton,London Borough of Sutton,16/10/2017,6919810,660,Calm Training Ltd,29698,Peoples Services Directorate,Training - Course Fees,A520
http://opendatacommunities.org/id/london-borough-council/sutton,London Borough of Sutton,14/11/2017,6920391,660,Calm Training Ltd,29698,Peoples Services Directorate,Training - Course Fees,A520
http://opendatacommunities.org/id/london-borough-council/sutton,London Borough of Sutton,07/11/2017,40129147,"4,705.24",Cambian Asperger Syndrome Services Ltd,12082,Peoples Services Directorate,Residential Care - Ext Provider,G310
http://opendatacommunities.org/id/london-borough-council/sutton,London Borough of Sutton,08/11/2017,40136132,585.71,Cambian Childcare Ltd,26117,Peoples Services Directorate,Residential Care-Children,G330
http://opendatacommunities.org/id/london-borough-council/sutton,London Borough of Sutton,07/11/2017,40129195,"3,884.56",Canterbury Oast Trust,10755,Peoples Services Directorate,Residential Care - Ext Provider,G310
http://opendatacommunities.org/id/london-borough-council/sutton,London Borough of Sutton,16/11/2017,6920632,"1,000.00",Capital Traffic Management Ltd,24034,"Environment, Housing & Regeneration Directorate","Surveys, Trial Holes Etc",Y200
http://opendatacommunities.org/id/london-borough-council/sutton,London Borough of Sutton,31/10/2017,40130403,"10,000.06",Care 4 Children Residential Services Ltd,29992,Peoples Services Directorate,Residential Care-Children,G330
http://opendatacommunities.org/id/london-borough-council/sutton,London Borough of Sutton,07/11/2017,40128898,"2,267.40",Care Base(Redhill)Ltd t/a Acorn Court Care Home,24206,Peoples Services Directorate,Residential Care - Ext Provider,G310
http://opendatacommunities.org/id/london-borough-council/sutton,London Borough of Sutton,01/11/2017,6919418,"5,585.08",Care Connections Ltd,10798,Peoples Services Directorate,Supported Living - Ext Provider,G306
http://opendatacommunities.org/id/london-borough-council/sutton,London Borough of Sutton,01/10/2017,6919882,"5,585.08",Care Connections Ltd,10798,Peoples Services Directorate,Supported Living - Ext Provider,G306
http://opendatacommunities.org/id/london-borough-council/sutton,London Borough of Sutton,07/11/2017,40129053,"3,080.00",Care Direct Uk Ltd  (David House),27080,Peoples Services Directorate,Residential Care - Ext Provider,G310
http://opendatacommunities.org/id/london-borough-council/sutton,London Borough of Sutton,07/11/2017,40129083,"3,053.24",Care Direct Uk Ltd  (David House),27080,Peoples Services Directorate,Residential Care - Ext Provider,G310
http://opendatacommunities.org/id/london-borough-council/sutton,London Borough of Sutton,31/10/2017,6919581,"1,453.20",Care Monitoring 2000 Ltd,20716,Peoples Services Directorate,Telephones - Other Expenses,F373
http://opendatacommunities.org/id/london-borough-council/sutton,London Borough of Sutton,21/11/2017,1245804,680,Care Staff Solutions,28778,Peoples Services Directorate,Hired Peoples Transport (Children),E072
http://opendatacommunities.org/id/london-borough-council/sutton,London Borough of Sutton,07/11/2017,40128833,"3,800.00",Care UK Homecare Ltd,10853,Peoples Services Directorate,Nursing Care - Ext Provider,G311
http://opendatacommunities.org/id/london-borough-council/sutton,London Borough of Sutton,01/10/2017,40131246,"4,060.00",Care Unlimited Domcare Ltd,28906,Peoples Services Directorate,Supported Living - Ext Provider,G306
http://opendatacommunities.org/id/london-borough-council/sutton,London Borough of Sutton,01/10/2017,40131247,"4,060.00",Care Unlimited Domcare Ltd,28906,Peoples Services Directorate,Supported Living - Ext Provider,G306
http://opendatacommunities.org/id/london-borough-council/sutton,London Borough of Sutton,01/10/2017,40131256,"4,060.00",Care Unlimited Domcare Ltd,28906,Peoples Services Directorate,Supported Living - Ext Provider,G306
http://opendatacommunities.org/id/london-borough-council/sutton,London Borough of Sutton,01/10/2017,40131259,"4,060.00",Care Unlimited Domcare Ltd,28906,Peoples Services Directorate,Supported Living - Ext Provider,G306
http://opendatacommunities.org/id/london-borough-council/sutton,London Borough of Sutton,01/10/2017,40131268,"4,060.00",Care Unlimited Domcare Ltd,28906,Peoples Services Directorate,Supported Living - Ext Provider,G306
http://opendatacommunities.org/id/london-borough-council/sutton,London Borough of Sutton,07/11/2017,40128888,"3,020.00",Care Unlimited Group Ltd,10774,Peoples Services Directorate,Interim Placements - Ext Provider,G317
http://opendatacommunities.org/id/london-borough-council/sutton,London Borough of Sutton,07/11/2017,40128936,"2,550.00",Care Unlimited Group Ltd,10774,Peoples Services Directorate,Interim Placements - Ext Provider,G317
http://opendatacommunities.org/id/london-borough-council/sutton,London Borough of Sutton,07/11/2017,40129118,"1,780.00",Care Unlimited Group Ltd,10774,Peoples Services Directorate,Residential Care - Ext Provider,G310
http://opendatacommunities.org/id/london-borough-council/sutton,London Borough of Sutton,07/11/2017,40129196,"1,692.00",Care Unlimited Group Ltd,10774,Peoples Services Directorate,Residential Care - Ext Provider,G310
http://opendatacommunities.org/id/london-borough-council/sutton,London Borough of Sutton,27/10/2017,40127725,547.96,Caremark (Sutton),25541,Peoples Services Directorate,Home Care,G334
http://opendatacommunities.org/id/london-borough-council/sutton,London Borough of Sutton,15/10/2017,40128142,602.53,Caremark (Sutton),25541,Peoples Services Directorate,Home Care,G334
http://opendatacommunities.org/id/london-borough-council/sutton,London Borough of Sutton,22/10/2017,40128143,602.53,Caremark (Sutton),25541,Peoples Services Directorate,Home Care,G334
http://opendatacommunities.org/id/london-borough-council/sutton,London Borough of Sutton,15/10/2017,40128262,712.08,Caremark (Sutton),25541,Peoples Services Directorate,Home Care,G334
http://opendatacommunities.org/id/london-borough-council/sutton,London Borough of Sutton,22/10/2017,40128263,712.08,Caremark (Sutton),25541,Peoples Services Directorate,Home Care,G334
http://opendatacommunities.org/id/london-borough-council/sutton,London Borough of Sutton,15/10/2017,40128296,766.85,Caremark (Sutton),25541,Peoples Services Directorate,Home Care,G334
http://opendatacommunities.org/id/london-borough-council/sutton,London Borough of Sutton,22/10/2017,40128297,766.85,Caremark (Sutton),25541,Peoples Services Directorate,Home Care,G334
http://opendatacommunities.org/id/london-borough-council/sutton,London Borough of Sutton,15/10/2017,40131765,602.53,Caremark (Sutton),25541,Peoples Services Directorate,Home Care,G334
http://opendatacommunities.org/id/london-borough-council/sutton,London Borough of Sutton,22/10/2017,40131766,602.53,Caremark (Sutton),25541,Peoples Services Directorate,Home Care,G334
http://opendatacommunities.org/id/london-borough-council/sutton,London Borough of Sutton,29/10/2017,40131825,603.81,Caremark (Sutton),25541,Peoples Services Directorate,Home Care,G334
http://opendatacommunities.org/id/london-borough-council/sutton,London Borough of Sutton,29/10/2017,40131842,602.53,Caremark (Sutton),25541,Peoples Services Directorate,Home Care,G334
http://opendatacommunities.org/id/london-borough-council/sutton,London Borough of Sutton,29/10/2017,40131853,672.95,Caremark (Sutton),25541,Peoples Services Directorate,Home Care,G334
http://opendatacommunities.org/id/london-borough-council/sutton,London Borough of Sutton,29/10/2017,40131861,766.85,Caremark (Sutton),25541,Peoples Services Directorate,Home Care,G334
http://opendatacommunities.org/id/london-borough-council/sutton,London Borough of Sutton,29/10/2017,40131865,547.75,Caremark (Sutton),25541,Peoples Services Directorate,Home Care,G334
http://opendatacommunities.org/id/london-borough-council/sutton,London Borough of Sutton,12/11/2017,40135490,446.03,Caremark (Sutton),25541,Peoples Services Directorate,Home Care,G334
http://opendatacommunities.org/id/london-borough-council/sutton,London Borough of Sutton,12/11/2017,40135499,719.9,Caremark (Sutton),25541,Peoples Services Directorate,Home Care,G334
http://opendatacommunities.org/id/london-borough-council/sutton,London Borough of Sutton,12/11/2017,40135512,766.85,Caremark (Sutton),25541,Peoples Services Directorate,Home Care,G334
http://opendatacommunities.org/id/london-borough-council/sutton,London Borough of Sutton,12/11/2017,40135523,547.75,Caremark (Sutton),25541,Peoples Services Directorate,Home Care,G334
http://opendatacommunities.org/id/london-borough-council/sutton,London Borough of Sutton,12/11/2017,40135583,603.81,Caremark (Sutton),25541,Peoples Services Directorate,Home Care,G334
http://opendatacommunities.org/id/london-borough-council/sutton,London Borough of Sutton,07/11/2017,40128971,"5,405.88",Caretech Community Services Ltd,10791,Peoples Services Directorate,Residential Care - Ext Provider,G310
http://opendatacommunities.org/id/london-borough-council/sutton,London Borough of Sutton,07/11/2017,40129139,"5,270.48",Caretech Community Services Ltd,10791,Peoples Services Directorate,Residential Care - Ext Provider,G310
http://opendatacommunities.org/id/london-borough-council/sutton,London Borough of Sutton,07/11/2017,40129189,"5,270.48",Caretech Community Services Ltd,10791,Peoples Services Directorate,Residential Care - Ext Provider,G310
http://opendatacommunities.org/id/london-borough-council/sutton,London Borough of Sutton,07/11/2017,40129190,"5,270.48",Caretech Community Services Ltd,10791,Peoples Services Directorate,Residential Care - Ext Provider,G310
http://opendatacommunities.org/id/london-borough-council/sutton,London Borough of Sutton,01/10/2017,40131264,"2,092.50",Caretech Community Services Ltd,10791,Peoples Services Directorate,One to One Care,G335
http://opendatacommunities.org/id/london-borough-council/sutton,London Borough of Sutton,07/11/2017,40128912,"2,625.28",Carlene House,10763,Peoples Services Directorate,Residential Care - Ext Provider,G310
http://opendatacommunities.org/id/london-borough-council/sutton,London Borough of Sutton,07/11/2017,40129067,"2,682.68",Carlene House,10763,Peoples Services Directorate,Residential Care - Ext Provider,G310
http://opendatacommunities.org/id/london-borough-council/sutton,London Borough of Sutton,07/11/2017,40129098,"2,740.64",Carlene House,10763,Peoples Services Directorate,Residential Care - Ext Provider,G310
http://opendatacommunities.org/id/london-borough-council/sutton,London Borough of Sutton,07/11/2017,40129099,"2,654.68",Carlene House,10763,Peoples Services Directorate,Residential Care - Ext Provider,G310
http://opendatacommunities.org/id/london-borough-council/sutton,London Borough of Sutton,07/11/2017,40129100,"2,630.60",Carlene House,10763,Peoples Services Directorate,Residential Care - Ext Provider,G310
http://opendatacommunities.org/id/london-borough-council/sutton,London Borough of Sutton,07/11/2017,40129101,"4,440.00",Carlene House,10763,Peoples Services Directorate,Residential Care - Ext Provider,G310
http://opendatacommunities.org/id/london-borough-council/sutton,London Borough of Sutton,07/11/2017,40129173,"2,625.28",Carlene House,10763,Peoples Services Directorate,Residential Care - Ext Provider,G310
http://opendatacommunities.org/id/london-borough-council/sutton,London Borough of Sutton,01/10/2017,40129341,917.12,Carshalton News,10752,Peoples Services Directorate,Books,F006
http://opendatacommunities.org/id/london-borough-council/sutton,London Borough of Sutton,12/11/2017,40136418,418.33,Carshalton News,10752,Peoples Services Directorate,Books,F006
http://opendatacommunities.org/id/london-borough-council/sutton,London Borough of Sutton,15/10/2017,40130336,"15,392.21",Castle Homes Ltd,10759,Peoples Services Directorate,Residential Care-Children,G330
http://opendatacommunities.org/id/london-borough-council/sutton,London Borough of Sutton,04/08/2017,6915340,"1,024.52",Castle Water Ltd (collection account - Thames (other),27112,Peoples Services Directorate,Sewerage - Metered,D695
http://opendatacommunities.org/id/london-borough-council/sutton,London Borough of Sutton,28/09/2017,6919426,714.48,Castle Water Ltd (collection account - Thames (other),27112,Resources Directorate,Sewerage - Metered,D695
http://opendatacommunities.org/id/london-borough-council/sutton,London Borough of Sutton,27/07/2017,6919439,486.91,Castle Water Ltd (collection account - Thames (other),27112,Peoples Services Directorate,Sewerage - Metered,D695
http://opendatacommunities.org/id/london-borough-council/sutton,London Borough of Sutton,25/10/2017,6919481,"1,559.90",Castle Water Ltd (collection account - Thames (other),27112,"Environment, Housing & Regeneration Directorate",Sewerage - Metered,D695
http://opendatacommunities.org/id/london-borough-council/sutton,London Borough of Sutton,27/07/2017,6919483,835.52,Castle Water Ltd (collection account - Thames (other),27112,"Environment, Housing & Regeneration Directorate",Sewerage - Metered,D695
http://opendatacommunities.org/id/london-borough-council/sutton,London Borough of Sutton,24/10/2017,6919484,523.84,Castle Water Ltd (collection account - Thames (other),27112,"Environment, Housing & Regeneration Directorate",Sewerage - Metered,D695
http://opendatacommunities.org/id/london-borough-council/sutton,London Borough of Sutton,24/10/2017,6919503,416.21,Castle Water Ltd (collection account - Thames (other),27112,"Environment, Housing & Regeneration Directorate",Sewerage - Metered,D695
http://opendatacommunities.org/id/london-borough-council/sutton,London Borough of Sutton,26/07/2017,6919508,627.01,Castle Water Ltd (collection account - Thames (other),27112,"Environment, Housing & Regeneration Directorate",Sewerage - Metered,D695
http://opendatacommunities.org/id/london-borough-council/sutton,London Borough of Sutton,25/10/2017,6919983,561.85,Castle Water Ltd (collection account - Thames (other),27112,Peoples Services Directorate,Water - Metered,D690
http://opendatacommunities.org/id/london-borough-council/sutton,London Borough of Sutton,30/08/2017,6920590,958.45,Castle Water Ltd (collection account - Thames (other),27112,"Environment, Housing & Regeneration Directorate",Sewerage - Metered,D695
http://opendatacommunities.org/id/london-borough-council/sutton,London Borough of Sutton,18/10/2017,6920591,953.21,Castle Water Ltd (collection account - Thames (other),27112,"Environment, Housing & Regeneration Directorate",Sewerage - Metered,D695
http://opendatacommunities.org/id/london-borough-council/sutton,London Borough of Sutton,12/11/2017,6920295,"1,055.95",Caysh Enterprise Cic,28016,Peoples Services Directorate,Approved Lodgings,H323
http://opendatacommunities.org/id/london-borough-council/sutton,London Borough of Sutton,28/11/2017,1245745,"29,666.67",Caysh Housing Project,23133,"Environment, Housing & Regeneration Directorate",Supporting People - Teenage Parent Services,H247
http://opendatacommunities.org/id/london-borough-council/sutton,London Borough of Sutton,31/10/2017,6919352,960.24,Caysh Housing Project,23133,Peoples Services Directorate,Approved Lodgings,H323
http://opendatacommunities.org/id/london-borough-council/sutton,London Borough of Sutton,31/10/2017,6919353,"1,240.31",Caysh Housing Project,23133,Peoples Services Directorate,Approved Lodgings,H323
http://opendatacommunities.org/id/london-borough-council/sutton,London Borough of Sutton,31/10/2017,6919354,"1,229.77",Caysh Housing Project,23133,Peoples Services Directorate,Approved Lodgings,H323
http://opendatacommunities.org/id/london-borough-council/sutton,London Borough of Sutton,31/10/2017,6919355,648.21,Caysh Housing Project,23133,Peoples Services Directorate,Approved Lodgings,H323
http://opendatacommunities.org/id/london-borough-council/sutton,London Borough of Sutton,31/10/2017,6919356,660.66,Caysh Housing Project,23133,Peoples Services Directorate,Approved Lodgings,H323
http://opendatacommunities.org/id/london-borough-council/sutton,London Borough of Sutton,31/10/2017,6919357,"1,256.12",Caysh Housing Project,23133,Peoples Services Directorate,Approved Lodgings,H323
http://opendatacommunities.org/id/london-borough-council/sutton,London Borough of Sutton,31/10/2017,6919358,"1,256.12",Caysh Housing Project,23133,Peoples Services Directorate,Approved Lodgings,H323
http://opendatacommunities.org/id/london-borough-council/sutton,London Borough of Sutton,31/10/2017,6919359,"1,365.55",Caysh Housing Project,23133,Peoples Services Directorate,Approved Lodgings,H323
http://opendatacommunities.org/id/london-borough-council/sutton,London Borough of Sutton,31/10/2017,6919360,"1,296.42",Caysh Housing Project,23133,Peoples Services Directorate,Approved Lodgings,H323
http://opendatacommunities.org/id/london-borough-council/sutton,London Borough of Sutton,31/10/2017,6919361,"1,296.42",Caysh Housing Project,23133,Peoples Services Directorate,Approved Lodgings,H323
http://opendatacommunities.org/id/london-borough-council/sutton,London Borough of Sutton,31/10/2017,6919362,"1,365.55",Caysh Housing Project,23133,Peoples Services Directorate,Approved Lodgings,H323
http://opendatacommunities.org/id/london-borough-council/sutton,London Borough of Sutton,31/10/2017,6919363,"1,365.55",Caysh Housing Project,23133,Peoples Services Directorate,Approved Lodgings,H323
http://opendatacommunities.org/id/london-borough-council/sutton,London Borough of Sutton,13/11/2017,6920175,"1,463.00",Caysh Housing Project,23133,Peoples Services Directorate,Approved Lodgings,H323
http://opendatacommunities.org/id/london-borough-council/sutton,London Borough of Sutton,01/11/2017,40130892,"6,019.65",Cengage Learning Services Ltd,20462,Peoples Services Directorate,Books,F006
http://opendatacommunities.org/id/london-borough-council/sutton,London Borough of Sutton,16/10/2017,6919886,"1,732.12",Central & North West London Nhs Foundation Trust,28976,Peoples Services Directorate,Provider Contract Payments,F470
http://opendatacommunities.org/id/london-borough-council/sutton,London Borough of Sutton,17/11/2017,6920864,"128,917.17",Central Bedfordshire Council,99863,Peoples Services Directorate,Provisions,X630
http://opendatacommunities.org/id/london-borough-council/sutton,London Borough of Sutton,01/11/2017,6920418,"341,696.93",Cheam Park Farm Primary School (LEO Academy Trust),23882,Peoples Services Directorate,Building Works -Main Contractor,Y350
http://opendatacommunities.org/id/london-borough-council/sutton,London Borough of Sutton,31/10/2017,1245288,850,Cheam Station Cars,15604,Peoples Services Directorate,Hired Peoples Transport (Children),E072
http://opendatacommunities.org/id/london-borough-council/sutton,London Borough of Sutton,31/10/2017,1245289,"2,846.00",Cheam Station Cars,15604,Peoples Services Directorate,Hired Peoples Transport (Children),E072
http://opendatacommunities.org/id/london-borough-council/sutton,London Borough of Sutton,31/10/2017,1245290,"1,728.00",Cheam Station Cars,15604,Peoples Services Directorate,Hired Peoples Transport (Children),E072
http://opendatacommunities.org/id/london-borough-council/sutton,London Borough of Sutton,31/10/2017,1245291,"2,890.00",Cheam Station Cars,15604,Peoples Services Directorate,Hired Peoples Transport (Children),E072
http://opendatacommunities.org/id/london-borough-council/sutton,London Borough of Sutton,31/10/2017,1245292,567,Cheam Station Cars,15604,Peoples Services Directorate,Hired Peoples Transport (Children),E072
http://opendatacommunities.org/id/london-borough-council/sutton,London Borough of Sutton,31/10/2017,1245293,650,Cheam Station Cars,15604,Peoples Services Directorate,Hired Peoples Transport (Children),E072
http://opendatacommunities.org/id/london-borough-council/sutton,London Borough of Sutton,31/10/2017,1245294,960,Cheam Station Cars,15604,Peoples Services Directorate,Hired Peoples Transport (Children),E072
http://opendatacommunities.org/id/london-borough-council/sutton,London Borough of Sutton,31/10/2017,1245295,928,Cheam Station Cars,15604,Peoples Services Directorate,Hired Peoples Transport (Children),E072
http://opendatacommunities.org/id/london-borough-council/sutton,London Borough of Sutton,31/10/2017,1245297,"3,063.00",Cheam Station Cars,15604,Peoples Services Directorate,Hired Peoples Transport (Children),E072
http://opendatacommunities.org/id/london-borough-council/sutton,London Borough of Sutton,31/10/2017,1245299,737,Cheam Station Cars,15604,Peoples Services Directorate,Hired Peoples Transport (Children),E072
http://opendatacommunities.org/id/london-borough-council/sutton,London Borough of Sutton,31/10/2017,1245300,"1,595.00",Cheam Station Cars,15604,Peoples Services Directorate,Hired Peoples Transport (Children),E072
http://opendatacommunities.org/id/london-borough-council/sutton,London Borough of Sutton,31/10/2017,1245301,"2,375.00",Cheam Station Cars,15604,Peoples Services Directorate,Hired Peoples Transport (Children),E072
http://opendatacommunities.org/id/london-borough-council/sutton,London Borough of Sutton,31/10/2017,1245302,800,Cheam Station Cars,15604,Peoples Services Directorate,Hired Peoples Transport (Children),E072
http://opendatacommunities.org/id/london-borough-council/sutton,London Borough of Sutton,31/10/2017,1245303,625,Cheam Station Cars,15604,Peoples Services Directorate,Hired Peoples Transport (Children),E072
http://opendatacommunities.org/id/london-borough-council/sutton,London Borough of Sutton,31/10/2017,1245304,"1,972.00",Cheam Station Cars,15604,Peoples Services Directorate,Hired Peoples Transport (Children),E072
http://opendatacommunities.org/id/london-borough-council/sutton,London Borough of Sutton,31/10/2017,1245305,"2,624.00",Cheam Station Cars,15604,Peoples Services Directorate,Hired Peoples Transport (Children),E072
http://opendatacommunities.org/id/london-borough-council/sutton,London Borough of Sutton,31/10/2017,1245306,"1,575.00",Cheam Station Cars,15604,Peoples Services Directorate,Hired Peoples Transport (Children),E072
http://opendatacommunities.org/id/london-borough-council/sutton,London Borough of Sutton,31/10/2017,1245307,"1,621.00",Cheam Station Cars,15604,Peoples Services Directorate,Hired Peoples Transport (Children),E072
http://opendatacommunities.org/id/london-borough-council/sutton,London Borough of Sutton,31/10/2017,1245308,"2,496.00",Cheam Station Cars,15604,Peoples Services Directorate,Hired Peoples Transport (Children),E072
http://opendatacommunities.org/id/london-borough-council/sutton,London Borough of Sutton,31/10/2017,1245311,"1,225.00",Cheam Station Cars,15604,Peoples Services Directorate,Hired Peoples Transport (Children),E072
http://opendatacommunities.org/id/london-borough-council/sutton,London Borough of Sutton,31/10/2017,1245312,"1,040.00",Cheam Station Cars,15604,Peoples Services Directorate,Hired Peoples Transport (Children),E072
http://opendatacommunities.org/id/london-borough-council/sutton,London Borough of Sutton,31/10/2017,1245313,"1,960.00",Cheam Station Cars,15604,Peoples Services Directorate,Hired Peoples Transport (Children),E072
http://opendatacommunities.org/id/london-borough-council/sutton,London Borough of Sutton,31/10/2017,1245314,"1,700.00",Cheam Station Cars,15604,Peoples Services Directorate,Hired Peoples Transport (Children),E072
http://opendatacommunities.org/id/london-borough-council/sutton,London Borough of Sutton,07/11/2017,40128899,775.25,Chegworth Nursing Home Bayswift Ltd,10908,Peoples Services Directorate,Nursing Care - 3rd party top up payment,G360
http://opendatacommunities.org/id/london-borough-council/sutton,London Borough of Sutton,07/11/2017,40128900,"2,781.64",Chegworth Nursing Home Bayswift Ltd,10908,Peoples Services Directorate,Nursing Care - Ext Provider,G311
http://opendatacommunities.org/id/london-borough-council/sutton,London Borough of Sutton,07/11/2017,40128901,"1,928.24",Chegworth Nursing Home Bayswift Ltd,10908,Peoples Services Directorate,Nursing Care - Ext Provider,G311
http://opendatacommunities.org/id/london-borough-council/sutton,London Borough of Sutton,07/11/2017,40128950,"1,904.00",Chegworth Nursing Home Bayswift Ltd,10908,Peoples Services Directorate,Nursing Care - Ext Provider,G311
http://opendatacommunities.org/id/london-borough-council/sutton,London Borough of Sutton,07/11/2017,40129000,"3,200.00",Chegworth Nursing Home Bayswift Ltd,10908,Peoples Services Directorate,Nursing Care - Ext Provider,G311
http://opendatacommunities.org/id/london-borough-council/sutton,London Borough of Sutton,07/11/2017,40129082,"3,400.00",Chegworth Nursing Home Bayswift Ltd,10908,Peoples Services Directorate,Nursing Care - Ext Provider,G311
http://opendatacommunities.org/id/london-borough-council/sutton,London Borough of Sutton,07/11/2017,40129158,"3,400.00",Chegworth Nursing Home Bayswift Ltd,10908,Peoples Services Directorate,Nursing Care - Ext Provider,G311
http://opendatacommunities.org/id/london-borough-council/sutton,London Borough of Sutton,26/10/2017,6919379,"89,739.37",Chelsea and Westminster NHS ft,28891,Peoples Services Directorate,Provider Contract Payments,F470
http://opendatacommunities.org/id/london-borough-council/sutton,London Borough of Sutton,01/11/2017,6919765,"6,219.58",Chelsea and Westminster NHS ft,28891,Peoples Services Directorate,Provider Contract Payments,F470
http://opendatacommunities.org/id/london-borough-council/sutton,London Borough of Sutton,01/11/2017,6919767,"9,513.61",Chelsea and Westminster NHS ft,28891,Peoples Services Directorate,Provider Contract Payments,F470
http://opendatacommunities.org/id/london-borough-council/sutton,London Borough of Sutton,26/09/2017,6920953,"-1,330.35",Chelsea and Westminster NHS ft,28891,Peoples Services Directorate,Provider Contract Payments,F470
http://opendatacommunities.org/id/london-borough-council/sutton,London Borough of Sutton,02/10/2017,40135296,"2,114.00",Chenash Homecare Specialists And Care Agency,25667,Peoples Services Directorate,Home Care,G334
http://opendatacommunities.org/id/london-borough-council/sutton,London Borough of Sutton,07/11/2017,40129138,"2,725.00",Cherry Lodge,10934,Peoples Services Directorate,Residential Care - Ext Provider,G310
http://opendatacommunities.org/id/london-borough-council/sutton,London Borough of Sutton,07/11/2017,40129188,"3,360.00",Cherry Lodge,10934,Peoples Services Directorate,Residential Care - Ext Provider,G310
http://opendatacommunities.org/id/london-borough-council/sutton,London Borough of Sutton,04/10/2017,40130274,"4,565.06",Children of All Nations,19625,Peoples Services Directorate,Foster Parents,G326
http://opendatacommunities.org/id/london-borough-council/sutton,London Borough of Sutton,03/10/2017,6919456,"3,558.80",Children of Colour,16870,Peoples Services Directorate,Approved Lodgings,H323
http://opendatacommunities.org/id/london-borough-council/sutton,London Borough of Sutton,01/09/2017,6919475,"3,903.20",Children of Colour,16870,Peoples Services Directorate,Approved Lodgings,H323
http://opendatacommunities.org/id/london-borough-council/sutton,London Borough of Sutton,01/11/2017,6920841,"3,444.00",Children of Colour,16870,Peoples Services Directorate,Approved Lodgings,H323
http://opendatacommunities.org/id/london-borough-council/sutton,London Borough of Sutton,18/10/2017,1244547,"12,948.94",Children's Trust,10927,Peoples Services Directorate,NMSS Payments,G061
http://opendatacommunities.org/id/london-borough-council/sutton,London Borough of Sutton,17/10/2017,1244548,"12,948.94",Children's Trust,10927,Peoples Services Directorate,NMSS Payments,G061
http://opendatacommunities.org/id/london-borough-council/sutton,London Borough of Sutton,22/11/2017,1245830,"4,283.32",Chipstead Valey Primary Trust T/A Chipstead Valley Primary School,26265,Peoples Services Directorate,Top-up Funding,G064
http://opendatacommunities.org/id/london-borough-council/sutton,London Borough of Sutton,22/11/2017,1245831,"2,833.32",Chipstead Valey Primary Trust T/A Chipstead Valley Primary School,26265,Peoples Services Directorate,Top-up Funding,G064
http://opendatacommunities.org/id/london-borough-council/sutton,London Borough of Sutton,07/11/2017,40128876,"7,682.20",Choice Care Group,22029,Peoples Services Directorate,Residential Care - Ext Provider,G310
http://opendatacommunities.org/id/london-borough-council/sutton,London Borough of Sutton,07/11/2017,40128927,"7,511.00",Choice Care Group,22029,Peoples Services Directorate,Residential Care - Ext Provider,G310
http://opendatacommunities.org/id/london-borough-council/sutton,London Borough of Sutton,01/10/2017,40131276,802.01,Choice Support,22320,Peoples Services Directorate,Supported Living - Ext Provider,G306
http://opendatacommunities.org/id/london-borough-council/sutton,London Borough of Sutton,01/10/2017,40131276,"5,524.78",Choice Support,22320,Peoples Services Directorate,Supported Living - Ext Provider,G306
http://opendatacommunities.org/id/london-borough-council/sutton,London Borough of Sutton,01/10/2017,40131277,"3,402.21",Choice Support,22320,Peoples Services Directorate,Supported Living - Ext Provider,G306
http://opendatacommunities.org/id/london-borough-council/sutton,London Borough of Sutton,01/10/2017,40131277,572.88,Choice Support,22320,Peoples Services Directorate,Supported Living - Ext Provider,G306
http://opendatacommunities.org/id/london-borough-council/sutton,London Borough of Sutton,01/10/2017,40131277,"2,978.52",Choice Support,22320,Peoples Services Directorate,Supported Living - Ext Provider,G306
http://opendatacommunities.org/id/london-borough-council/sutton,London Borough of Sutton,01/10/2017,40131278,"1,611.25",Choice Support,22320,Peoples Services Directorate,Supported Living - Ext Provider,G306
http://opendatacommunities.org/id/london-borough-council/sutton,London Borough of Sutton,01/10/2017,40131278,572.88,Choice Support,22320,Peoples Services Directorate,Supported Living - Ext Provider,G306
http://opendatacommunities.org/id/london-borough-council/sutton,London Borough of Sutton,01/10/2017,40131278,"1,682.81",Choice Support,22320,Peoples Services Directorate,Supported Living - Ext Provider,G306
http://opendatacommunities.org/id/london-borough-council/sutton,London Borough of Sutton,01/10/2017,40131279,"2,219.91",Choice Support,22320,Peoples Services Directorate,Supported Living - Ext Provider,G306
http://opendatacommunities.org/id/london-borough-council/sutton,London Borough of Sutton,01/10/2017,40131279,572.88,Choice Support,22320,Peoples Services Directorate,Supported Living - Ext Provider,G306
http://opendatacommunities.org/id/london-borough-council/sutton,London Borough of Sutton,01/10/2017,40131279,"1,432.20",Choice Support,22320,Peoples Services Directorate,Supported Living - Ext Provider,G306
http://opendatacommunities.org/id/london-borough-council/sutton,London Borough of Sutton,01/10/2017,40131280,"1,303.28",Choice Support,22320,Peoples Services Directorate,Supported Living - Ext Provider,G306
http://opendatacommunities.org/id/london-borough-council/sutton,London Borough of Sutton,01/10/2017,40131280,572.88,Choice Support,22320,Peoples Services Directorate,Supported Living - Ext Provider,G306
http://opendatacommunities.org/id/london-borough-council/sutton,London Borough of Sutton,01/10/2017,40131280,"1,761.69",Choice Support,22320,Peoples Services Directorate,Supported Living - Ext Provider,G306
http://opendatacommunities.org/id/london-borough-council/sutton,London Borough of Sutton,01/10/2017,40131283,802.01,Choice Support,22320,Peoples Services Directorate,Supported Living - Ext Provider,G306
http://opendatacommunities.org/id/london-borough-council/sutton,London Borough of Sutton,01/10/2017,40131283,"6,548.71",Choice Support,22320,Peoples Services Directorate,Supported Living - Ext Provider,G306
http://opendatacommunities.org/id/london-borough-council/sutton,London Borough of Sutton,01/10/2017,40131284,802.01,Choice Support,22320,Peoples Services Directorate,Supported Living - Ext Provider,G306
http://opendatacommunities.org/id/london-borough-council/sutton,London Borough of Sutton,01/10/2017,40131284,"5,288.56",Choice Support,22320,Peoples Services Directorate,Supported Living - Ext Provider,G306
http://opendatacommunities.org/id/london-borough-council/sutton,London Borough of Sutton,01/10/2017,40131285,"4,262.35",Choice Support,22320,Peoples Services Directorate,Supported Living - Ext Provider,G306
http://opendatacommunities.org/id/london-borough-council/sutton,London Borough of Sutton,01/10/2017,40131286,"1,568.25",Choice Support,22320,Peoples Services Directorate,Supported Living - Ext Provider,G306
http://opendatacommunities.org/id/london-borough-council/sutton,London Borough of Sutton,01/10/2017,40131286,572.88,Choice Support,22320,Peoples Services Directorate,Supported Living - Ext Provider,G306
http://opendatacommunities.org/id/london-borough-council/sutton,London Borough of Sutton,01/10/2017,40131286,"1,897.55",Choice Support,22320,Peoples Services Directorate,Supported Living - Ext Provider,G306
http://opendatacommunities.org/id/london-borough-council/sutton,London Borough of Sutton,01/10/2017,40131289,802.01,Choice Support,22320,Peoples Services Directorate,Supported Living - Ext Provider,G306
http://opendatacommunities.org/id/london-borough-council/sutton,London Borough of Sutton,01/10/2017,40131289,"4,737.07",Choice Support,22320,Peoples Services Directorate,Supported Living - Ext Provider,G306
http://opendatacommunities.org/id/london-borough-council/sutton,London Borough of Sutton,01/10/2017,40131298,802.01,Choice Support,22320,Peoples Services Directorate,Supported Living - Ext Provider,G306
http://opendatacommunities.org/id/london-borough-council/sutton,London Borough of Sutton,01/10/2017,40131298,"5,173.86",Choice Support,22320,Peoples Services Directorate,Supported Living - Ext Provider,G306
http://opendatacommunities.org/id/london-borough-council/sutton,London Borough of Sutton,01/10/2017,40131302,802.01,Choice Support,22320,Peoples Services Directorate,Supported Living - Ext Provider,G306
http://opendatacommunities.org/id/london-borough-council/sutton,London Borough of Sutton,01/10/2017,40131302,"5,166.73",Choice Support,22320,Peoples Services Directorate,Supported Living - Ext Provider,G306
http://opendatacommunities.org/id/london-borough-council/sutton,London Borough of Sutton,01/10/2017,40131303,802.01,Choice Support,22320,Peoples Services Directorate,Supported Living - Ext Provider,G306
http://opendatacommunities.org/id/london-borough-council/sutton,London Borough of Sutton,01/10/2017,40131303,"5,546.17",Choice Support,22320,Peoples Services Directorate,Supported Living - Ext Provider,G306
http://opendatacommunities.org/id/london-borough-council/sutton,London Borough of Sutton,01/10/2017,40131304,"2,673.93",Choice Support,22320,Peoples Services Directorate,Supported Living - Ext Provider,G306
http://opendatacommunities.org/id/london-borough-council/sutton,London Borough of Sutton,01/10/2017,40131304,572.88,Choice Support,22320,Peoples Services Directorate,Supported Living - Ext Provider,G306
http://opendatacommunities.org/id/london-borough-council/sutton,London Borough of Sutton,01/10/2017,40131304,"1,431.71",Choice Support,22320,Peoples Services Directorate,Supported Living - Ext Provider,G306
http://opendatacommunities.org/id/london-borough-council/sutton,London Borough of Sutton,01/10/2017,40131309,802.01,Choice Support,22320,Peoples Services Directorate,Supported Living - Ext Provider,G306
http://opendatacommunities.org/id/london-borough-council/sutton,London Borough of Sutton,01/10/2017,40131309,"5,968.70",Choice Support,22320,Peoples Services Directorate,Supported Living - Ext Provider,G306
http://opendatacommunities.org/id/london-borough-council/sutton,London Borough of Sutton,07/11/2017,40128843,"3,000.00",Christchurch Fairmile Village Llp,27141,Peoples Services Directorate,Nursing Care - Ext Provider,G311
http://opendatacommunities.org/id/london-borough-council/sutton,London Borough of Sutton,10/11/2017,6920117,"1,201.00",Chroma Vision Limited,20351,"Environment, Housing & Regeneration Directorate",IT Equipment - Repair and Maintenance,F382
http://opendatacommunities.org/id/london-borough-council/sutton,London Borough of Sutton,10/11/2017,6920123,548,Chroma Vision Limited,20351,"Environment, Housing & Regeneration Directorate",Civic Amenity,G172
http://opendatacommunities.org/id/london-borough-council/sutton,London Borough of Sutton,17/11/2017,6920560,495.6,Chroma Vision Limited,20351,"Environment, Housing & Regeneration Directorate",IT Equipment - Repair and Maintenance,F382
http://opendatacommunities.org/id/london-borough-council/sutton,London Borough of Sutton,21/11/2017,6920575,"22,697.50",Chroma Vision Limited,20351,Resources Directorate,Other,Y450
http://opendatacommunities.org/id/london-borough-council/sutton,London Borough of Sutton,27/02/2017,5015688,"-8,100.00",CIPFA Business Limited,12335,Resources Directorate,Subscriptions - General,F450
http://opendatacommunities.org/id/london-borough-council/sutton,London Borough of Sutton,24/02/2017,5015689,"-3,015.00",CIPFA Business Limited,12335,Resources Directorate,Subscriptions - General,F450
http://opendatacommunities.org/id/london-borough-council/sutton,London Borough of Sutton,24/02/2017,5015689,"-3,015.00",CIPFA Business Limited,12335,Unknown Directorate,Subscriptions - General,F450
http://opendatacommunities.org/id/london-borough-council/sutton,London Borough of Sutton,31/10/2017,6919393,"3,000.00",CIPFA Business Limited,12335,Resources Directorate,Contractual Consultant Fees,G430
http://opendatacommunities.org/id/london-borough-council/sutton,London Borough of Sutton,20/10/2017,6919128,"7,954.49",City of London Corporation,22388,"Environment, Housing & Regeneration Directorate",Asbestos CA Disposal,G173
http://opendatacommunities.org/id/london-borough-council/sutton,London Borough of Sutton,31/10/2017,6920902,"5,000.00",City of London Corporation,22388,Peoples Services Directorate,Subscriptions - General,F450
http://opendatacommunities.org/id/london-borough-council/sutton,London Borough of Sutton,31/10/2017,6919958,"3,230.00",City Sprint UK (Excel) Ltd,26267,Peoples Services Directorate,Hired Vehicles,E070
http://opendatacommunities.org/id/london-borough-council/sutton,London Borough of Sutton,18/08/2017,6915261,"4,036.84",City Suburban Tree Surgeons,24817,"Environment, Housing & Regeneration Directorate",Trees - SCH,D875
http://opendatacommunities.org/id/london-borough-council/sutton,London Borough of Sutton,18/08/2017,6915265,"1,192.96",City Suburban Tree Surgeons,24817,"Environment, Housing & Regeneration Directorate",Emergency Repairs,D540
http://opendatacommunities.org/id/london-borough-council/sutton,London Borough of Sutton,02/10/2017,6917656,"2,139.46",City Suburban Tree Surgeons,24817,"Environment, Housing & Regeneration Directorate",Emergency Repairs,D540
http://opendatacommunities.org/id/london-borough-council/sutton,London Borough of Sutton,02/10/2017,6917658,"4,423.68",City Suburban Tree Surgeons,24817,"Environment, Housing & Regeneration Directorate",Trees - SCH,D875
http://opendatacommunities.org/id/london-borough-council/sutton,London Borough of Sutton,07/11/2017,6919836,"3,732.60",City Suburban Tree Surgeons,24817,"Environment, Housing & Regeneration Directorate",Trees - SCH,D875
http://opendatacommunities.org/id/london-borough-council/sutton,London Borough of Sutton,07/11/2017,6919837,"2,053.96",City Suburban Tree Surgeons,24817,"Environment, Housing & Regeneration Directorate",Trees - SCH,D875
http://opendatacommunities.org/id/london-borough-council/sutton,London Borough of Sutton,07/11/2017,6919838,"5,533.80",City Suburban Tree Surgeons,24817,"Environment, Housing & Regeneration Directorate",Trees - SCH,D875
http://opendatacommunities.org/id/london-borough-council/sutton,London Borough of Sutton,07/11/2017,6919840,"4,775.92",City Suburban Tree Surgeons,24817,"Environment, Housing & Regeneration Directorate",Trees - SCH,D875
http://opendatacommunities.org/id/london-borough-council/sutton,London Borough of Sutton,07/11/2017,6919841,"17,121.50",City Suburban Tree Surgeons,24817,"Environment, Housing & Regeneration Directorate",Highway Trees - Maintenance,D560
http://opendatacommunities.org/id/london-borough-council/sutton,London Borough of Sutton,07/11/2017,6919842,"7,531.00",City Suburban Tree Surgeons,24817,"Environment, Housing & Regeneration Directorate",Highway Trees - Maintenance,D560
http://opendatacommunities.org/id/london-borough-council/sutton,London Borough of Sutton,01/11/2017,6920916,"12,087.00",Cityglen Ltd T/A Hytyme ltd,24115,"Environment, Housing & Regeneration Directorate",Bed and Breakfast Accommodation,G400
http://opendatacommunities.org/id/london-borough-council/sutton,London Borough of Sutton,21/09/2017,6918105,"6,000.00",Civica UK Ltd,10978,"Environment, Housing & Regeneration Directorate",Fees - Computer Software,F384
http://opendatacommunities.org/id/london-borough-council/sutton,London Borough of Sutton,06/11/2017,6919824,"1,025.00",Civica UK Ltd,10978,Resources Directorate,IT Licences,F385
http://opendatacommunities.org/id/london-borough-council/sutton,London Borough of Sutton,10/03/2017,6920001,654.02,Civica UK Ltd,10978,Resources Directorate,Purchase of IT Equipment,F380
http://opendatacommunities.org/id/london-borough-council/sutton,London Borough of Sutton,07/11/2017,40128851,"4,200.00",Claremont Care Svs Ltd,18724,Peoples Services Directorate,Nursing Care - Ext Provider,G311
http://opendatacommunities.org/id/london-borough-council/sutton,London Borough of Sutton,07/11/2017,40129040,"3,200.00",Claremont Care Svs Ltd,18724,Peoples Services Directorate,Interim Placements - Ext Provider,G317
http://opendatacommunities.org/id/london-borough-council/sutton,London Borough of Sutton,07/11/2017,40129047,"3,400.00",Claremont Care Svs Ltd,18724,Peoples Services Directorate,Nursing Care - Ext Provider,G311
http://opendatacommunities.org/id/london-borough-council/sutton,London Borough of Sutton,07/11/2017,40129208,"2,805.00",Claremont Care Svs Ltd,18724,Peoples Services Directorate,Nursing Care - Ext Provider,G311
http://opendatacommunities.org/id/london-borough-council/sutton,London Borough of Sutton,07/11/2017,40129209,"4,000.00",Claremont Care Svs Ltd,18724,Peoples Services Directorate,Nursing Care - Ext Provider,G311
http://opendatacommunities.org/id/london-borough-council/sutton,London Borough of Sutton,15/07/2017,1245531,"60,914.33",Clay Hill School Priory,29031,Peoples Services Directorate,Independent Schools,G325
http://opendatacommunities.org/id/london-borough-council/sutton,London Borough of Sutton,01/11/2017,40136116,"2,527.43",Clay Hill School Priory,29031,Peoples Services Directorate,Residential Care-Children,G330
http://opendatacommunities.org/id/london-borough-council/sutton,London Borough of Sutton,02/11/2017,40136117,"19,587.57",Clay Hill School Priory,29031,Peoples Services Directorate,Residential Care-Children,G330
http://opendatacommunities.org/id/london-borough-council/sutton,London Borough of Sutton,03/11/2017,40136118,"14,532.71",Clay Hill School Priory,29031,Peoples Services Directorate,Residential Care-Children,G330
http://opendatacommunities.org/id/london-borough-council/sutton,London Borough of Sutton,15/11/2017,6920297,"7,225.00",Cleaner Greener Safer Happier Ltd,29981,"Environment, Housing & Regeneration Directorate",Materials - General,F100
http://opendatacommunities.org/id/london-borough-council/sutton,London Borough of Sutton,24/11/2017,6921050,"1,963.15",Click Netherfield Ltd,23314,"Environment, Housing & Regeneration Directorate",Furniture & Fittings,Y500
http://opendatacommunities.org/id/london-borough-council/sutton,London Borough of Sutton,07/11/2017,40129193,"2,000.00",Cloyda Limited,20402,Peoples Services Directorate,Residential Care - Ext Provider,G310
http://opendatacommunities.org/id/london-borough-council/sutton,London Borough of Sutton,07/11/2017,40129230,"2,600.00",Cloyda Limited,20402,Peoples Services Directorate,Residential Care - Ext Provider,G310
http://opendatacommunities.org/id/london-borough-council/sutton,London Borough of Sutton,07/11/2017,40128924,"7,036.00",Cmg Homes Ltd,11026,Peoples Services Directorate,Residential Care - Ext Provider,G310
http://opendatacommunities.org/id/london-borough-council/sutton,London Borough of Sutton,07/11/2017,40128989,"7,000.00",Cmg Homes Ltd,11026,Peoples Services Directorate,Residential Care - Ext Provider,G310
http://opendatacommunities.org/id/london-borough-council/sutton,London Borough of Sutton,07/11/2017,40129140,"5,416.92",Cmg Homes Ltd,11026,Peoples Services Directorate,Residential Care - Ext Provider,G310
http://opendatacommunities.org/id/london-borough-council/sutton,London Borough of Sutton,31/10/2017,6919600,"2,246.91",Cobalt Telephone Technologies,15645,"Environment, Housing & Regeneration Directorate",Credit Card Commission,F460
http://opendatacommunities.org/id/london-borough-council/sutton,London Borough of Sutton,31/10/2017,6919394,"181,860.41",Cognus Ltd,26829,Peoples Services Directorate,Provision for Redundancies,F502
http://opendatacommunities.org/id/london-borough-council/sutton,London Borough of Sutton,31/10/2017,6919396,"6,684.00",Cognus Ltd,26829,Peoples Services Directorate,Other Services,F340
http://opendatacommunities.org/id/london-borough-council/sutton,London Borough of Sutton,07/11/2017,40129126,"11,882.94",Coleg Elidyr Camphill Communities,28764,Peoples Services Directorate,Residential Care - Ext Provider,G310
http://opendatacommunities.org/id/london-borough-council/sutton,London Borough of Sutton,13/11/2017,6920322,"2,260.04",Compass Minerals,13961,"Environment, Housing & Regeneration Directorate",Materials - General,F100
http://opendatacommunities.org/id/london-borough-council/sutton,London Borough of Sutton,10/11/2017,6920326,"3,392.19",Compass Minerals,13961,"Environment, Housing & Regeneration Directorate",Materials - General,F100
http://opendatacommunities.org/id/london-borough-council/sutton,London Borough of Sutton,14/11/2017,6920371,"2,230.28",Compass Minerals,13961,"Environment, Housing & Regeneration Directorate",Materials - General,F100
http://opendatacommunities.org/id/london-borough-council/sutton,London Borough of Sutton,15/11/2017,6920465,"2,288.96",Compass Minerals,13961,"Environment, Housing & Regeneration Directorate",Materials - General,F100
http://opendatacommunities.org/id/london-borough-council/sutton,London Borough of Sutton,16/11/2017,6920508,"2,288.97",Compass Minerals,13961,"Environment, Housing & Regeneration Directorate",Materials - General,F100
http://opendatacommunities.org/id/london-borough-council/sutton,London Borough of Sutton,20/10/2017,6919763,"1,207.19",Consult54 Ltd,26814,"Environment, Housing & Regeneration Directorate",Fees - Consultants (Ad Hoc),F283
http://opendatacommunities.org/id/london-borough-council/sutton,London Borough of Sutton,31/10/2017,6919618,"1,524.32",Contract Security Services,23827,Chief Executive's Directorate,Security - Cash In Transit,G410
http://opendatacommunities.org/id/london-borough-council/sutton,London Borough of Sutton,05/06/2017,6919808,"2,591.00",Coram Childrens Legal Centre Limited,29927,Peoples Services Directorate,Personal Requisites,F106
http://opendatacommunities.org/id/london-borough-council/sutton,London Borough of Sutton,21/07/2016,6919315,648.3,Coram Voice,21584,Peoples Services Directorate,Other Services,F340
http://opendatacommunities.org/id/london-borough-council/sutton,London Borough of Sutton,26/05/2017,6920484,453.83,Coram Voice,21584,Peoples Services Directorate,Services Rendered by Voluntary Organisations - Gen,G300
http://opendatacommunities.org/id/london-borough-council/sutton,London Borough of Sutton,28/10/2017,6920255,"5,652.54",Core Assets Children's Services Ltd,27511,Peoples Services Directorate,Provider Contract Payments,F470
http://opendatacommunities.org/id/london-borough-council/sutton,London Borough of Sutton,06/10/2017,6919583,700,Core Assets Expert Services LTD T/A Carter Brown,29709,Peoples Services Directorate,Training - Course Fees,A520
http://opendatacommunities.org/id/london-borough-council/sutton,London Borough of Sutton,13/11/2017,6920163,"15,910.32",Corelogic Ltd,24747,Peoples Services Directorate,Fees - Computer Software,F384
http://opendatacommunities.org/id/london-borough-council/sutton,London Borough of Sutton,28/11/2017,6920860,"15,910.66",Corelogic Ltd,24747,Peoples Services Directorate,Fees - Computer Software,F384
http://opendatacommunities.org/id/london-borough-council/sutton,London Borough of Sutton,26/09/2017,40130314,"13,728.66",Cornerways Childrens Services Ltd,18435,Peoples Services Directorate,Residential Care-Children,G330
http://opendatacommunities.org/id/london-borough-council/sutton,London Borough of Sutton,01/11/2017,6919625,"166,565.17",Cranstoun,11184,Peoples Services Directorate,Provider Contract Payments,F470
http://opendatacommunities.org/id/london-borough-council/sutton,London Borough of Sutton,03/11/2017,6919746,"23,000.00",Cranstoun,11184,Peoples Services Directorate,Provider Contract Payments,F470
http://opendatacommunities.org/id/london-borough-council/sutton,London Borough of Sutton,26/07/2017,1245333,"20,373.00",Cressey Oasis Education Ltd,27626,Peoples Services Directorate,Independent Schools,G325
http://opendatacommunities.org/id/london-borough-council/sutton,London Borough of Sutton,26/07/2017,1245334,"26,668.00",Cressey Oasis Education Ltd,27626,Peoples Services Directorate,Independent Schools,G325
http://opendatacommunities.org/id/london-borough-council/sutton,London Borough of Sutton,26/07/2017,1245335,"16,992.00",Cressey Oasis Education Ltd,27626,Peoples Services Directorate,Independent Schools,G325
http://opendatacommunities.org/id/london-borough-council/sutton,London Borough of Sutton,26/07/2017,1245336,"8,600.67",Cressey Oasis Education Ltd,27626,Peoples Services Directorate,Independent Schools,G325
http://opendatacommunities.org/id/london-borough-council/sutton,London Borough of Sutton,01/09/2017,1245337,"8,600.66",Cressey Oasis Education Ltd,27626,Peoples Services Directorate,Independent Schools,G325
http://opendatacommunities.org/id/london-borough-council/sutton,London Borough of Sutton,26/07/2017,1245529,"19,125.33",Cressey Oasis Education Ltd,27626,Peoples Services Directorate,Independent Schools,G325
http://opendatacommunities.org/id/london-borough-council/sutton,London Borough of Sutton,21/02/2017,1245534,"13,180.26",Cressey Oasis Education Ltd,27626,Peoples Services Directorate,Independent Schools,G325
http://opendatacommunities.org/id/london-borough-council/sutton,London Borough of Sutton,20/11/2017,1245535,"-6,590.13",Cressey Oasis Education Ltd,27626,Peoples Services Directorate,Independent Schools,G325
http://opendatacommunities.org/id/london-borough-council/sutton,London Borough of Sutton,21/02/2017,1245814,"17,553.60",Cressey Oasis Education Ltd,27626,Peoples Services Directorate,Independent Schools,G325
http://opendatacommunities.org/id/london-borough-council/sutton,London Borough of Sutton,16/10/2017,6919575,"1,645.00",Crest Manor Ltd,25469,Peoples Services Directorate,Approved Lodgings,H323
http://opendatacommunities.org/id/london-borough-council/sutton,London Borough of Sutton,16/10/2017,6919576,"1,275.00",Crest Manor Ltd,25469,Peoples Services Directorate,Approved Lodgings,H323
http://opendatacommunities.org/id/london-borough-council/sutton,London Borough of Sutton,16/10/2017,6919577,"2,363.00",Crest Manor Ltd,25469,Peoples Services Directorate,Approved Lodgings,H323
http://opendatacommunities.org/id/london-borough-council/sutton,London Borough of Sutton,16/10/2017,6919602,"1,695.00",Crest Manor Ltd,25469,Peoples Services Directorate,Approved Lodgings,H323
http://opendatacommunities.org/id/london-borough-council/sutton,London Borough of Sutton,16/10/2017,6919604,770.28,Crest Manor Ltd,25469,Peoples Services Directorate,Approved Lodgings,H323
http://opendatacommunities.org/id/london-borough-council/sutton,London Borough of Sutton,16/10/2017,6919605,"1,922.00",Crest Manor Ltd,25469,Peoples Services Directorate,C.C.A Rent & Utilities,H211
http://opendatacommunities.org/id/london-borough-council/sutton,London Borough of Sutton,16/10/2017,6919621,"1,695.00",Crest Manor Ltd,25469,Peoples Services Directorate,Approved Lodgings,H323
http://opendatacommunities.org/id/london-borough-council/sutton,London Borough of Sutton,16/10/2017,6919623,"1,695.00",Crest Manor Ltd,25469,Peoples Services Directorate,Approved Lodgings,H323
http://opendatacommunities.org/id/london-borough-council/sutton,London Borough of Sutton,16/10/2017,6919626,"1,790.00",Crest Manor Ltd,25469,Peoples Services Directorate,Approved Lodgings,H323
http://opendatacommunities.org/id/london-borough-council/sutton,London Borough of Sutton,16/10/2017,6919628,"1,375.00",Crest Manor Ltd,25469,Peoples Services Directorate,Approved Lodgings,H323
http://opendatacommunities.org/id/london-borough-council/sutton,London Borough of Sutton,07/11/2017,40128910,"2,200.00",CRNH Ltd T/A St Judes Nursing Home,14297,Peoples Services Directorate,Nursing Care - Ext Provider,G311
http://opendatacommunities.org/id/london-borough-council/sutton,London Borough of Sutton,07/11/2017,40129007,"3,400.00",CRNH Ltd T/A St Judes Nursing Home,14297,Peoples Services Directorate,Nursing Care - Ext Provider,G311
http://opendatacommunities.org/id/london-borough-council/sutton,London Borough of Sutton,07/11/2017,40129008,"3,799.04",CRNH Ltd T/A St Judes Nursing Home,14297,Peoples Services Directorate,Nursing Care - Ext Provider,G311
http://opendatacommunities.org/id/london-borough-council/sutton,London Borough of Sutton,07/11/2017,40129064,"2,556.52",CRNH Ltd T/A St Judes Nursing Home,14297,Peoples Services Directorate,Nursing Care - Ext Provider,G311
http://opendatacommunities.org/id/london-borough-council/sutton,London Borough of Sutton,07/11/2017,40129095,"3,984.00",CRNH Ltd T/A St Judes Nursing Home,14297,Peoples Services Directorate,Nursing Care - Ext Provider,G311
http://opendatacommunities.org/id/london-borough-council/sutton,London Borough of Sutton,07/11/2017,40129096,"3,700.00",CRNH Ltd T/A St Judes Nursing Home,14297,Peoples Services Directorate,Nursing Care - Ext Provider,G311
http://opendatacommunities.org/id/london-borough-council/sutton,London Borough of Sutton,01/11/2017,6920799,"1,953.00",Cromwood Ltd,26178,"Environment, Housing & Regeneration Directorate",Bed and Breakfast Accommodation,G400
http://opendatacommunities.org/id/london-borough-council/sutton,London Borough of Sutton,01/09/2017,6920800,"2,673.00",Cromwood Ltd,26178,"Environment, Housing & Regeneration Directorate",Bed and Breakfast Accommodation,G400
http://opendatacommunities.org/id/london-borough-council/sutton,London Borough of Sutton,01/07/2017,6920801,"2,970.00",Cromwood Ltd,26178,"Environment, Housing & Regeneration Directorate",Bed and Breakfast Accommodation,G400
http://opendatacommunities.org/id/london-borough-council/sutton,London Borough of Sutton,01/10/2017,6920802,"1,890.00",Cromwood Ltd,26178,"Environment, Housing & Regeneration Directorate",Bed and Breakfast Accommodation,G400
http://opendatacommunities.org/id/london-borough-council/sutton,London Borough of Sutton,07/11/2017,40129011,"2,404.28",Crossways Community,11187,Peoples Services Directorate,Residential Care - Ext Provider,G310
http://opendatacommunities.org/id/london-borough-council/sutton,London Borough of Sutton,07/11/2017,40129070,"4,168.24",Crossways Community,11187,Peoples Services Directorate,Residential Care - Ext Provider,G310
http://opendatacommunities.org/id/london-borough-council/sutton,London Borough of Sutton,13/10/2017,1245004,"7,440.00",Croydon Council,11227,Peoples Services Directorate,Hired Peoples Transport (Children),E072
http://opendatacommunities.org/id/london-borough-council/sutton,London Borough of Sutton,16/11/2017,6920462,"73,512.00",Croydon Council,11227,"Environment, Housing & Regeneration Directorate",Idverde - Contract Payment,G250
http://opendatacommunities.org/id/london-borough-council/sutton,London Borough of Sutton,16/11/2017,6920462,"9,265.19",Croydon Council,11227,"Environment, Housing & Regeneration Directorate",Idverde - Contract Payment,G250
http://opendatacommunities.org/id/london-borough-council/sutton,London Borough of Sutton,03/11/2017,6920463,"36,922.75",Croydon Council,11227,"Environment, Housing & Regeneration Directorate",Civic Amenity,G172
http://opendatacommunities.org/id/london-borough-council/sutton,London Borough of Sutton,06/11/2017,6920832,"9,137.45",Croydon Health Service NHST,26283,Peoples Services Directorate,Provider Contract Payments,F470
http://opendatacommunities.org/id/london-borough-council/sutton,London Borough of Sutton,31/10/2017,1245072,"2,640.00",Cruisers Ltd,18087,Peoples Services Directorate,Hired Peoples Transport (Children),E072
http://opendatacommunities.org/id/london-borough-council/sutton,London Borough of Sutton,31/10/2017,1245073,"2,416.00",Cruisers Ltd,18087,Peoples Services Directorate,Hired Peoples Transport (Children),E072
http://opendatacommunities.org/id/london-borough-council/sutton,London Borough of Sutton,23/11/2017,5015679,"-12,000.00",CSGA London Borough of Sutton (Soc Srv),99827,Resources Directorate,Fees - Computer Software,F384
http://opendatacommunities.org/id/london-borough-council/sutton,London Borough of Sutton,07/11/2017,40128816,"8,926.00",CSS Ltd t/a Grove Care,19184,Peoples Services Directorate,Residential Care - Ext Provider,G310
http://opendatacommunities.org/id/london-borough-council/sutton,London Borough of Sutton,15/11/2017,6920340,698.75,Curl La Tourelle Architects,18610,"Environment, Housing & Regeneration Directorate",External Fees  - Architects,Y100
http://opendatacommunities.org/id/london-borough-council/sutton,London Borough of Sutton,15/11/2017,6920341,"5,985.40",Curl La Tourelle Architects,18610,Resources Directorate,External Fees  - Architects,Y100
http://opendatacommunities.org/id/london-borough-council/sutton,London Borough of Sutton,31/10/2017,6920152,"2,077.00",Cyberstyle Letting Limited,29264,"Environment, Housing & Regeneration Directorate",Bed and Breakfast Accommodation,G400
http://opendatacommunities.org/id/london-borough-council/sutton,London Borough of Sutton,31/10/2017,6920153,"1,116.00",Cyberstyle Letting Limited,29264,"Environment, Housing & Regeneration Directorate",Bed and Breakfast Accommodation,G400
http://opendatacommunities.org/id/london-borough-council/sutton,London Borough of Sutton,31/10/2017,6920154,"1,116.00",Cyberstyle Letting Limited,29264,"Environment, Housing & Regeneration Directorate",Bed and Breakfast Accommodation,G400
http://opendatacommunities.org/id/london-borough-council/sutton,London Borough of Sutton,31/10/2017,6920155,"2,077.00",Cyberstyle Letting Limited,29264,"Environment, Housing & Regeneration Directorate",Bed and Breakfast Accommodation,G400
http://opendatacommunities.org/id/london-borough-council/sutton,London Borough of Sutton,31/10/2017,6920156,"1,658.50",Cyberstyle Letting Limited,29264,"Environment, Housing & Regeneration Directorate",Bed and Breakfast Accommodation,G400
http://opendatacommunities.org/id/london-borough-council/sutton,London Borough of Sutton,31/10/2017,6920157,"2,170.00",Cyberstyle Letting Limited,29264,"Environment, Housing & Regeneration Directorate",Bed and Breakfast Accommodation,G400
http://opendatacommunities.org/id/london-borough-council/sutton,London Borough of Sutton,16/11/2017,6920381,"26,420.00",Cygnet IT Services CIC,25840,Peoples Services Directorate,IT Equipment - Repair and Maintenance,F382
http://opendatacommunities.org/id/london-borough-council/sutton,London Borough of Sutton,07/11/2017,6919846,"4,438.61",Daley Bread Ltd T/A Daley Care,28917,Peoples Services Directorate,Approved Lodgings,H323
http://opendatacommunities.org/id/london-borough-council/sutton,London Borough of Sutton,07/11/2017,6919847,"7,025.01",Daley Bread Ltd T/A Daley Care,28917,Peoples Services Directorate,Approved Lodgings,H323
http://opendatacommunities.org/id/london-borough-council/sutton,London Borough of Sutton,04/11/2017,40130408,"4,481.41",Daley Bread Ltd T/A Daley Care,28917,Peoples Services Directorate,Approved Lodgings,H323
http://opendatacommunities.org/id/london-borough-council/sutton,London Borough of Sutton,13/11/2017,6920378,"12,000.00",Datatank Ltd,22841,Resources Directorate,Fees - Consultants (Ad Hoc),F283
http://opendatacommunities.org/id/london-borough-council/sutton,London Borough of Sutton,15/11/2017,6920359,"1,209.00",David V.  Randall,29122,"Environment, Housing & Regeneration Directorate",General Office Expenses,F235
http://opendatacommunities.org/id/london-borough-council/sutton,London Borough of Sutton,31/10/2017,40127776,734,Day and Nite Services,26773,Peoples Services Directorate,Home Care,G334
http://opendatacommunities.org/id/london-borough-council/sutton,London Borough of Sutton,31/10/2017,40127777,417,Day and Nite Services,26773,Peoples Services Directorate,Home Care,G334
http://opendatacommunities.org/id/london-borough-council/sutton,London Borough of Sutton,31/10/2017,40127779,492,Day and Nite Services,26773,Peoples Services Directorate,Home Care,G334
http://opendatacommunities.org/id/london-borough-council/sutton,London Borough of Sutton,31/10/2017,40127789,562,Day and Nite Services,26773,Peoples Services Directorate,Home Care,G334
http://opendatacommunities.org/id/london-borough-council/sutton,London Borough of Sutton,31/10/2017,40127792,520,Day and Nite Services,26773,Peoples Services Directorate,Home Care,G334
http://opendatacommunities.org/id/london-borough-council/sutton,London Borough of Sutton,31/10/2017,40127793,505.5,Day and Nite Services,26773,Peoples Services Directorate,Home Care,G334
http://opendatacommunities.org/id/london-borough-council/sutton,London Borough of Sutton,31/10/2017,40127794,492,Day and Nite Services,26773,Peoples Services Directorate,Home Care,G334
http://opendatacommunities.org/id/london-borough-council/sutton,London Borough of Sutton,31/10/2017,40127795,464,Day and Nite Services,26773,Peoples Services Directorate,Home Care,G334
http://opendatacommunities.org/id/london-borough-council/sutton,London Borough of Sutton,31/10/2017,40127796,660,Day and Nite Services,26773,Peoples Services Directorate,Home Care,G334
http://opendatacommunities.org/id/london-borough-council/sutton,London Borough of Sutton,31/10/2017,40127797,534,Day and Nite Services,26773,Peoples Services Directorate,Home Care,G334
http://opendatacommunities.org/id/london-borough-council/sutton,London Borough of Sutton,31/10/2017,40127799,416,Day and Nite Services,26773,Peoples Services Directorate,Home Care,G334
http://opendatacommunities.org/id/london-borough-council/sutton,London Borough of Sutton,16/10/2017,40131868,416,Day and Nite Services,26773,Peoples Services Directorate,Home Care,G334
http://opendatacommunities.org/id/london-borough-council/sutton,London Borough of Sutton,16/10/2017,40131869,417,Day and Nite Services,26773,Peoples Services Directorate,Home Care,G334
http://opendatacommunities.org/id/london-borough-council/sutton,London Borough of Sutton,06/11/2017,40131871,734,Day and Nite Services,26773,Peoples Services Directorate,Home Care,G334
http://opendatacommunities.org/id/london-borough-council/sutton,London Borough of Sutton,06/11/2017,40131872,562,Day and Nite Services,26773,Peoples Services Directorate,Home Care,G334
http://opendatacommunities.org/id/london-borough-council/sutton,London Borough of Sutton,06/11/2017,40131884,520,Day and Nite Services,26773,Peoples Services Directorate,Home Care,G334
http://opendatacommunities.org/id/london-borough-council/sutton,London Borough of Sutton,06/11/2017,40131885,632,Day and Nite Services,26773,Peoples Services Directorate,Home Care,G334
http://opendatacommunities.org/id/london-borough-council/sutton,London Borough of Sutton,06/11/2017,40131886,464,Day and Nite Services,26773,Peoples Services Directorate,Home Care,G334
http://opendatacommunities.org/id/london-borough-council/sutton,London Borough of Sutton,06/11/2017,40131887,505.5,Day and Nite Services,26773,Peoples Services Directorate,Home Care,G334
http://opendatacommunities.org/id/london-borough-council/sutton,London Borough of Sutton,06/11/2017,40131889,492,Day and Nite Services,26773,Peoples Services Directorate,Home Care,G334
http://opendatacommunities.org/id/london-borough-council/sutton,London Borough of Sutton,06/11/2017,40131891,416,Day and Nite Services,26773,Peoples Services Directorate,Home Care,G334
http://opendatacommunities.org/id/london-borough-council/sutton,London Borough of Sutton,06/11/2017,40131893,534,Day and Nite Services,26773,Peoples Services Directorate,Home Care,G334
http://opendatacommunities.org/id/london-borough-council/sutton,London Borough of Sutton,13/11/2017,40131930,734,Day and Nite Services,26773,Peoples Services Directorate,Home Care,G334
http://opendatacommunities.org/id/london-borough-council/sutton,London Borough of Sutton,13/11/2017,40131931,562,Day and Nite Services,26773,Peoples Services Directorate,Home Care,G334
http://opendatacommunities.org/id/london-borough-council/sutton,London Borough of Sutton,13/11/2017,40131940,492,Day and Nite Services,26773,Peoples Services Directorate,Home Care,G334
http://opendatacommunities.org/id/london-borough-council/sutton,London Borough of Sutton,13/11/2017,40131943,416,Day and Nite Services,26773,Peoples Services Directorate,Home Care,G334
http://opendatacommunities.org/id/london-borough-council/sutton,London Borough of Sutton,13/11/2017,40131945,534,Day and Nite Services,26773,Peoples Services Directorate,Home Care,G334
http://opendatacommunities.org/id/london-borough-council/sutton,London Borough of Sutton,13/11/2017,40131947,464,Day and Nite Services,26773,Peoples Services Directorate,Home Care,G334
http://opendatacommunities.org/id/london-borough-council/sutton,London Borough of Sutton,13/11/2017,40131948,505.5,Day and Nite Services,26773,Peoples Services Directorate,Home Care,G334
http://opendatacommunities.org/id/london-borough-council/sutton,London Borough of Sutton,13/11/2017,40131949,492,Day and Nite Services,26773,Peoples Services Directorate,Home Care,G334
http://opendatacommunities.org/id/london-borough-council/sutton,London Borough of Sutton,13/11/2017,40131950,520,Day and Nite Services,26773,Peoples Services Directorate,Home Care,G334
http://opendatacommunities.org/id/london-borough-council/sutton,London Borough of Sutton,13/11/2017,40132034,576,Day and Nite Services,26773,Peoples Services Directorate,Home Care,G334
http://opendatacommunities.org/id/london-borough-council/sutton,London Borough of Sutton,20/11/2017,40135269,734,Day and Nite Services,26773,Peoples Services Directorate,Home Care,G334
http://opendatacommunities.org/id/london-borough-council/sutton,London Borough of Sutton,21/11/2017,40135279,492,Day and Nite Services,26773,Peoples Services Directorate,Home Care,G334
http://opendatacommunities.org/id/london-borough-council/sutton,London Borough of Sutton,21/11/2017,40135283,534,Day and Nite Services,26773,Peoples Services Directorate,Home Care,G334
http://opendatacommunities.org/id/london-borough-council/sutton,London Borough of Sutton,21/11/2017,40135285,576,Day and Nite Services,26773,Peoples Services Directorate,Home Care,G334
http://opendatacommunities.org/id/london-borough-council/sutton,London Borough of Sutton,21/11/2017,40135287,492,Day and Nite Services,26773,Peoples Services Directorate,Home Care,G334
http://opendatacommunities.org/id/london-borough-council/sutton,London Borough of Sutton,21/11/2017,40135288,518,Day and Nite Services,26773,Peoples Services Directorate,Home Care,G334
http://opendatacommunities.org/id/london-borough-council/sutton,London Borough of Sutton,21/11/2017,40135289,520,Day and Nite Services,26773,Peoples Services Directorate,Home Care,G334
http://opendatacommunities.org/id/london-borough-council/sutton,London Borough of Sutton,20/11/2017,40135292,464,Day and Nite Services,26773,Peoples Services Directorate,Home Care,G334
http://opendatacommunities.org/id/london-borough-council/sutton,London Borough of Sutton,04/01/2017,6920912,500,Debigno Ltd t/a Pathway Analytics,28654,Peoples Services Directorate,Provider Contract Payments,F470
http://opendatacommunities.org/id/london-borough-council/sutton,London Borough of Sutton,31/10/2017,6919871,445.83,Deepstore Ltd,21074,Resources Directorate,Offsite Storage,F231
http://opendatacommunities.org/id/london-borough-council/sutton,London Borough of Sutton,31/10/2017,6919873,477.02,Deepstore Ltd,21074,Resources Directorate,Offsite Storage,F231
http://opendatacommunities.org/id/london-borough-council/sutton,London Borough of Sutton,31/10/2017,6919874,602.35,Deepstore Ltd,21074,Resources Directorate,Offsite Storage,F231
http://opendatacommunities.org/id/london-borough-council/sutton,London Borough of Sutton,11/10/2017,6919039,"1,395.00",Denhan Property Services,28353,"Environment, Housing & Regeneration Directorate",Bed and Breakfast Accommodation,G400
http://opendatacommunities.org/id/london-borough-council/sutton,London Borough of Sutton,25/10/2017,6919545,"1,300.00",D'Gama Ltd,26438,"Environment, Housing & Regeneration Directorate",General Office Expenses,F235
http://opendatacommunities.org/id/london-borough-council/sutton,London Borough of Sutton,25/10/2017,6919553,"1,300.00",D'Gama Ltd,26438,"Environment, Housing & Regeneration Directorate",General Office Expenses,F235
http://opendatacommunities.org/id/london-borough-council/sutton,London Borough of Sutton,22/11/2017,6920679,"1,300.00",D'Gama Ltd,26438,"Environment, Housing & Regeneration Directorate",General Office Expenses,F235
http://opendatacommunities.org/id/london-borough-council/sutton,London Borough of Sutton,31/10/2017,6920072,"11,647.34",DHP (UK) Ltd,27763,Peoples Services Directorate,External Fees  - Psa,Y131
http://opendatacommunities.org/id/london-borough-council/sutton,London Borough of Sutton,24/11/2017,6920979,"6,226.00",DHP (UK) Ltd,27763,Peoples Services Directorate,External Fees  - Psa,Y131
http://opendatacommunities.org/id/london-borough-council/sutton,London Borough of Sutton,17/10/2017,40130338,"15,477.99",Direct Care Ltd,28832,Peoples Services Directorate,Residential Care-Children,G330
http://opendatacommunities.org/id/london-borough-council/sutton,London Borough of Sutton,27/11/2017,6920822,"1,904.00",DMA Signs Limited,20534,Resources Directorate,General Works,D400
http://opendatacommunities.org/id/london-borough-council/sutton,London Borough of Sutton,01/11/2017,6919471,"1,000.00",Dr Bilikisu A Alatishe,27008,"Environment, Housing & Regeneration Directorate",General Office Expenses,F235
http://opendatacommunities.org/id/london-borough-council/sutton,London Borough of Sutton,13/11/2017,6920273,"1,209.00",Dr L Lysakova & Mr M Ivan,99898,"Environment, Housing & Regeneration Directorate",Depositors,X460
http://opendatacommunities.org/id/london-borough-council/sutton,London Borough of Sutton,29/09/2017,6920819,538.3,Dr L Spirling,27020,Peoples Services Directorate,Fees - Other,F299
http://opendatacommunities.org/id/london-borough-council/sutton,London Borough of Sutton,30/11/2017,6921047,"2,655.30",Dr L Spirling,27020,Peoples Services Directorate,Fees - Other,F299
http://opendatacommunities.org/id/london-borough-council/sutton,London Borough of Sutton,16/09/2017,6919637,"1,454.50",Dr M O Oladinni,26649,Peoples Services Directorate,Fees - Consultants (Ad Hoc),F283
http://opendatacommunities.org/id/london-borough-council/sutton,London Borough of Sutton,01/11/2017,6919957,"2,360.00",Dreamlettings,11391,"Environment, Housing & Regeneration Directorate",General Office Expenses,F235
http://opendatacommunities.org/id/london-borough-council/sutton,London Borough of Sutton,03/11/2017,6919789,888.26,DSI Billing Services Ltd,17962,Resources Directorate,Postages - General,F350
http://opendatacommunities.org/id/london-borough-council/sutton,London Borough of Sutton,10/11/2017,6920076,781.41,DSI Billing Services Ltd,17962,Resources Directorate,Postages - General,F350
http://opendatacommunities.org/id/london-borough-council/sutton,London Borough of Sutton,16/11/2017,6920464,"1,246.09",DSI Billing Services Ltd,17962,Resources Directorate,Postages - General,F350
http://opendatacommunities.org/id/london-borough-council/sutton,London Borough of Sutton,23/11/2017,6920714,"1,031.73",DSI Billing Services Ltd,17962,Resources Directorate,Postages - General,F350
http://opendatacommunities.org/id/london-borough-council/sutton,London Borough of Sutton,16/10/2017,6919708,"1,285.71",Dunfield & Mead Ltd,28055,Peoples Services Directorate,Approved Lodgings,H323
http://opendatacommunities.org/id/london-borough-council/sutton,London Borough of Sutton,16/10/2017,6919709,"2,250.00",Dunfield & Mead Ltd,28055,Peoples Services Directorate,Approved Lodgings,H323
http://opendatacommunities.org/id/london-borough-council/sutton,London Borough of Sutton,16/10/2017,6919710,"2,500.00",Dunfield & Mead Ltd,28055,Peoples Services Directorate,Approved Lodgings,H323
http://opendatacommunities.org/id/london-borough-council/sutton,London Borough of Sutton,16/10/2017,6919711,"2,500.00",Dunfield & Mead Ltd,28055,Peoples Services Directorate,Approved Lodgings,H323
http://opendatacommunities.org/id/london-borough-council/sutton,London Borough of Sutton,16/10/2017,6919712,"2,500.00",Dunfield & Mead Ltd,28055,Peoples Services Directorate,Approved Lodgings,H323
http://opendatacommunities.org/id/london-borough-council/sutton,London Borough of Sutton,16/10/2017,6919713,"2,250.00",Dunfield & Mead Ltd,28055,Peoples Services Directorate,Approved Lodgings,H323
http://opendatacommunities.org/id/london-borough-council/sutton,London Borough of Sutton,16/10/2017,6919714,"2,250.00",Dunfield & Mead Ltd,28055,Peoples Services Directorate,Approved Lodgings,H323
http://opendatacommunities.org/id/london-borough-council/sutton,London Borough of Sutton,16/10/2017,6919719,"2,250.00",Dunfield & Mead Ltd,28055,Peoples Services Directorate,Approved Lodgings,H323
http://opendatacommunities.org/id/london-borough-council/sutton,London Borough of Sutton,30/10/2017,40130357,"3,830.27",Dunfield & Mead Ltd,28055,Peoples Services Directorate,Approved Lodgings,H323
http://opendatacommunities.org/id/london-borough-council/sutton,London Borough of Sutton,30/10/2017,40130369,"4,574.27",Dunfield & Mead Ltd,28055,Peoples Services Directorate,Approved Lodgings,H323
http://opendatacommunities.org/id/london-borough-council/sutton,London Borough of Sutton,30/10/2017,40130370,578.57,Dunfield & Mead Ltd,28055,Peoples Services Directorate,Accommodation - Supported Living,H201
http://opendatacommunities.org/id/london-borough-council/sutton,London Borough of Sutton,30/10/2017,40130371,"2,214.29",Dunfield & Mead Ltd,28055,Peoples Services Directorate,Accommodation - Supported Living,H201
http://opendatacommunities.org/id/london-borough-council/sutton,London Borough of Sutton,30/10/2017,40130372,"1,992.86",Dunfield & Mead Ltd,28055,Peoples Services Directorate,Accommodation - Supported Living,H201
http://opendatacommunities.org/id/london-borough-council/sutton,London Borough of Sutton,07/11/2017,40129236,"2,999.92",Dunheved Lodge,11403,Peoples Services Directorate,Residential Care - Ext Provider,G310
http://opendatacommunities.org/id/london-borough-council/sutton,London Borough of Sutton,01/10/2017,6919385,"1,313.00",Dunheved Partnership Ltd,26353,"Environment, Housing & Regeneration Directorate",Bed and Breakfast Accommodation,G400
http://opendatacommunities.org/id/london-borough-council/sutton,London Borough of Sutton,08/10/2017,6919465,"1,519.00",Dunheved Partnership Ltd,26353,"Environment, Housing & Regeneration Directorate",Bed and Breakfast Accommodation,G400
http://opendatacommunities.org/id/london-borough-council/sutton,London Borough of Sutton,15/10/2017,6919560,"2,079.00",Dunheved Partnership Ltd,26353,"Environment, Housing & Regeneration Directorate",Bed and Breakfast Accommodation,G400
http://opendatacommunities.org/id/london-borough-council/sutton,London Borough of Sutton,22/10/2017,6919760,"1,834.00",Dunheved Partnership Ltd,26353,"Environment, Housing & Regeneration Directorate",Bed and Breakfast Accommodation,G400
http://opendatacommunities.org/id/london-borough-council/sutton,London Borough of Sutton,08/11/2017,40136121,"27,745.00",Durham County Council,22986,Peoples Services Directorate,Secure Accommodation,G332
http://opendatacommunities.org/id/london-borough-council/sutton,London Borough of Sutton,24/11/2017,40136300,"3,700.00",DWT Windows & Doors,97215,Peoples Services Directorate,Building Works -Main Contractor,Y350
http://opendatacommunities.org/id/london-borough-council/sutton,London Borough of Sutton,24/11/2017,40136301,840,DWT Windows & Doors,97215,Peoples Services Directorate,Building Works -Main Contractor,Y350
http://opendatacommunities.org/id/london-borough-council/sutton,London Borough of Sutton,30/10/2017,6919326,"1,175.83",DX Network Services,16141,Resources Directorate,Postages - General,F350
http://opendatacommunities.org/id/london-borough-council/sutton,London Borough of Sutton,31/10/2017,40136115,"4,020.69",Dynamic Care Ltd,29928,Peoples Services Directorate,Approved Lodgings,H323
http://opendatacommunities.org/id/london-borough-council/sutton,London Borough of Sutton,31/10/2017,40136138,"3,400.95",Dynamic Care Ltd,29928,Peoples Services Directorate,Approved Lodgings,H323
http://opendatacommunities.org/id/london-borough-council/sutton,London Borough of Sutton,30/09/2017,40136139,485.7,Dynamic Care Ltd,29928,Peoples Services Directorate,Approved Lodgings,H323
http://opendatacommunities.org/id/london-borough-council/sutton,London Borough of Sutton,30/09/2017,6919879,"12,096.00",E Homes And Shelters,28378,"Environment, Housing & Regeneration Directorate",Bed and Breakfast Accommodation,G400
http://opendatacommunities.org/id/london-borough-council/sutton,London Borough of Sutton,31/10/2017,6920292,"11,355.00",E Homes And Shelters,28378,"Environment, Housing & Regeneration Directorate",Bed and Breakfast Accommodation,G400
http://opendatacommunities.org/id/london-borough-council/sutton,London Borough of Sutton,30/10/2017,40128104,"2,940.00",Eager Health TA Care24Seven,29920,Peoples Services Directorate,Home Care,G334
http://opendatacommunities.org/id/london-borough-council/sutton,London Borough of Sutton,06/11/2017,40131870,"2,940.00",Eager Health TA Care24Seven,29920,Peoples Services Directorate,Home Care,G334
http://opendatacommunities.org/id/london-borough-council/sutton,London Borough of Sutton,13/11/2017,40132033,"2,940.00",Eager Health TA Care24Seven,29920,Peoples Services Directorate,Home Care,G334
http://opendatacommunities.org/id/london-borough-council/sutton,London Borough of Sutton,20/11/2017,40135271,"2,940.00",Eager Health TA Care24Seven,29920,Peoples Services Directorate,Home Care,G334
http://opendatacommunities.org/id/london-borough-council/sutton,London Borough of Sutton,17/11/2017,6920483,624,Earth Anchors Ltd,15290,"Environment, Housing & Regeneration Directorate",Furniture - Purchase,F080
http://opendatacommunities.org/id/london-borough-council/sutton,London Borough of Sutton,24/11/2017,6920746,618,Earth Anchors Ltd,15290,"Environment, Housing & Regeneration Directorate",Furniture & Fittings,Y500
http://opendatacommunities.org/id/london-borough-council/sutton,London Borough of Sutton,07/11/2017,40128869,"3,400.00",Eastcroft Nursing Home,11420,Peoples Services Directorate,Nursing Care - Ext Provider,G311
http://opendatacommunities.org/id/london-borough-council/sutton,London Borough of Sutton,07/11/2017,40128922,"3,400.00",Eastcroft Nursing Home,11420,Peoples Services Directorate,Nursing Care - Ext Provider,G311
http://opendatacommunities.org/id/london-borough-council/sutton,London Borough of Sutton,07/11/2017,40129136,"3,300.00",Eastcroft Nursing Home,11420,Peoples Services Directorate,Nursing Care - Ext Provider,G311
http://opendatacommunities.org/id/london-borough-council/sutton,London Borough of Sutton,31/10/2017,6920285,486.45,Ecolocal Services Ltd,11438,Resources Directorate,Courier Post,F355
http://opendatacommunities.org/id/london-borough-council/sutton,London Borough of Sutton,01/11/2017,6919831,596.11,EDF Energy (Seeboard),13999,"Environment, Housing & Regeneration Directorate",Electricity - General,D620
http://opendatacommunities.org/id/london-borough-council/sutton,London Borough of Sutton,13/11/2017,6920420,-421.58,EDF Energy (Seeboard),13999,HRA Directorate,Electricity - Anti Hypothermia Heating,D622
http://opendatacommunities.org/id/london-borough-council/sutton,London Borough of Sutton,13/11/2017,6920420,427.68,EDF Energy (Seeboard),13999,HRA Directorate,Electricity - Anti Hypothermia Heating,D622
http://opendatacommunities.org/id/london-borough-council/sutton,London Borough of Sutton,14/11/2017,6920428,-629,EDF Energy (Seeboard),13999,HRA Directorate,Electricity - Anti Hypothermia Heating,D622
http://opendatacommunities.org/id/london-borough-council/sutton,London Borough of Sutton,14/11/2017,6920428,"1,616.88",EDF Energy (Seeboard),13999,HRA Directorate,Electricity - Anti Hypothermia Heating,D622
http://opendatacommunities.org/id/london-borough-council/sutton,London Borough of Sutton,25/07/2017,6913776,875,Edge Training,22919,Peoples Services Directorate,Training - Course Fees,A520
http://opendatacommunities.org/id/london-borough-council/sutton,London Borough of Sutton,19/11/2017,6920442,875,Edge Training,22919,Peoples Services Directorate,Training - Course Fees,A520
http://opendatacommunities.org/id/london-borough-council/sutton,London Borough of Sutton,24/10/2017,6919324,922.97,EE Airtime,24846,Resources Directorate,"Telephones - Mobile, Pagers etc.",F374
http://opendatacommunities.org/id/london-borough-council/sutton,London Borough of Sutton,24/10/2017,6919325,466.28,EE Airtime,24846,Resources Directorate,"Telephones - Mobile, Pagers etc.",F374
http://opendatacommunities.org/id/london-borough-council/sutton,London Borough of Sutton,24/10/2017,6919329,"5,368.01",EE Airtime,24846,Resources Directorate,"Telephones - Mobile, Pagers etc.",F374
http://opendatacommunities.org/id/london-borough-council/sutton,London Borough of Sutton,31/08/2017,6920609,"5,781.66",Eldercare,22163,Peoples Services Directorate,Equipment,H250
http://opendatacommunities.org/id/london-borough-council/sutton,London Borough of Sutton,07/11/2017,40128836,"4,484.80",Eleanor Nursing & Social Care Ltd,25134,Peoples Services Directorate,Residential Care - Ext Provider,G310
http://opendatacommunities.org/id/london-borough-council/sutton,London Borough of Sutton,17/09/2017,40128126,441,Elite CarePlus Ltd,26199,Peoples Services Directorate,Home Care,G334
http://opendatacommunities.org/id/london-borough-council/sutton,London Borough of Sutton,01/10/2017,40128127,441,Elite CarePlus Ltd,26199,Peoples Services Directorate,Home Care,G334
http://opendatacommunities.org/id/london-borough-council/sutton,London Borough of Sutton,08/10/2017,40128128,441,Elite CarePlus Ltd,26199,Peoples Services Directorate,Home Care,G334
http://opendatacommunities.org/id/london-borough-council/sutton,London Borough of Sutton,17/09/2017,40128135,686,Elite CarePlus Ltd,26199,Peoples Services Directorate,Home Care,G334
http://opendatacommunities.org/id/london-borough-council/sutton,London Borough of Sutton,01/10/2017,40128136,686,Elite CarePlus Ltd,26199,Peoples Services Directorate,Home Care,G334
http://opendatacommunities.org/id/london-borough-council/sutton,London Borough of Sutton,08/10/2017,40128137,686,Elite CarePlus Ltd,26199,Peoples Services Directorate,Home Care,G334
http://opendatacommunities.org/id/london-borough-council/sutton,London Borough of Sutton,17/09/2017,40128139,490,Elite CarePlus Ltd,26199,Peoples Services Directorate,Home Care,G334
http://opendatacommunities.org/id/london-borough-council/sutton,London Borough of Sutton,01/10/2017,40128140,490,Elite CarePlus Ltd,26199,Peoples Services Directorate,Home Care,G334
http://opendatacommunities.org/id/london-borough-council/sutton,London Borough of Sutton,08/10/2017,40128141,490,Elite CarePlus Ltd,26199,Peoples Services Directorate,Home Care,G334
http://opendatacommunities.org/id/london-borough-council/sutton,London Borough of Sutton,17/09/2017,40128175,637,Elite CarePlus Ltd,26199,Peoples Services Directorate,Home Care,G334
http://opendatacommunities.org/id/london-borough-council/sutton,London Borough of Sutton,01/10/2017,40128176,637,Elite CarePlus Ltd,26199,Peoples Services Directorate,Home Care,G334
http://opendatacommunities.org/id/london-borough-council/sutton,London Borough of Sutton,08/10/2017,40128177,637,Elite CarePlus Ltd,26199,Peoples Services Directorate,Home Care,G334
http://opendatacommunities.org/id/london-borough-council/sutton,London Borough of Sutton,17/09/2017,40128232,490,Elite CarePlus Ltd,26199,Peoples Services Directorate,Home Care,G334
http://opendatacommunities.org/id/london-borough-council/sutton,London Borough of Sutton,01/10/2017,40128233,490,Elite CarePlus Ltd,26199,Peoples Services Directorate,Home Care,G334
http://opendatacommunities.org/id/london-borough-council/sutton,London Borough of Sutton,08/10/2017,40128234,490,Elite CarePlus Ltd,26199,Peoples Services Directorate,Home Care,G334
http://opendatacommunities.org/id/london-borough-council/sutton,London Borough of Sutton,01/10/2017,40128237,441,Elite CarePlus Ltd,26199,Peoples Services Directorate,Home Care,G334
http://opendatacommunities.org/id/london-borough-council/sutton,London Borough of Sutton,08/10/2017,40128238,441,Elite CarePlus Ltd,26199,Peoples Services Directorate,Home Care,G334
http://opendatacommunities.org/id/london-borough-council/sutton,London Borough of Sutton,17/09/2017,40128282,539,Elite CarePlus Ltd,26199,Peoples Services Directorate,Home Care,G334
http://opendatacommunities.org/id/london-borough-council/sutton,London Borough of Sutton,01/10/2017,40128283,539,Elite CarePlus Ltd,26199,Peoples Services Directorate,Home Care,G334
http://opendatacommunities.org/id/london-borough-council/sutton,London Borough of Sutton,08/10/2017,40128284,539,Elite CarePlus Ltd,26199,Peoples Services Directorate,Home Care,G334
http://opendatacommunities.org/id/london-borough-council/sutton,London Borough of Sutton,21/11/2017,6920779,"1,782.48",Elizabethan Security,22830,"Environment, Housing & Regeneration Directorate",Special,D535
http://opendatacommunities.org/id/london-borough-council/sutton,London Borough of Sutton,21/11/2017,6920779,"1,782.48",Elizabethan Security,22830,"Environment, Housing & Regeneration Directorate",Special,D535
http://opendatacommunities.org/id/london-borough-council/sutton,London Borough of Sutton,07/11/2016,6920763,"2,600.00",Emap Publishing Ltd,25476,Peoples Services Directorate,Personal Requisites,F106
http://opendatacommunities.org/id/london-borough-council/sutton,London Borough of Sutton,31/10/2017,6920734,476.4,Emizon Networks Ltd,26950,Resources Directorate,FM - Planned Maintenance Contract - Mitie,G613
http://opendatacommunities.org/id/london-borough-council/sutton,London Borough of Sutton,01/09/2017,6919724,"733,400.00",Encompass,29087,"Environment, Housing & Regeneration Directorate",Housing Contract Fee,G025
http://opendatacommunities.org/id/london-borough-council/sutton,London Borough of Sutton,06/11/2017,6919794,"1,056.30",Encompass-Latc Ltd (Direct Payments),29120,Unknown Directorate,Suspense/Holding Accounts,X550
http://opendatacommunities.org/id/london-borough-council/sutton,London Borough of Sutton,21/11/2017,40132617,500,Encompass-Latc Ltd (Direct Payments),29120,Peoples Services Directorate,Carers Flexible Fund,H257
http://opendatacommunities.org/id/london-borough-council/sutton,London Borough of Sutton,29/09/2017,6920046,"30,182.36",Eneteq Services Ltd,97718,"Environment, Housing & Regeneration Directorate",Building Works -Main Contractor,Y350
http://opendatacommunities.org/id/london-borough-council/sutton,London Borough of Sutton,29/09/2017,6920394,"28,673.24",Eneteq Services Ltd,97718,"Environment, Housing & Regeneration Directorate",Building Works -Main Contractor,Y350
http://opendatacommunities.org/id/london-borough-council/sutton,London Borough of Sutton,27/10/2017,6920826,"274,180.29",Eneteq Services Ltd,97718,"Environment, Housing & Regeneration Directorate",Building Works -Main Contractor,Y350
http://opendatacommunities.org/id/london-borough-council/sutton,London Borough of Sutton,25/10/2017,40131650,"1,099.30",Enviva Paediatric Care/formerlyPNL Nursing Link Ltd (Pnl),28212,Peoples Services Directorate,Provider Contract Payments,F470
http://opendatacommunities.org/id/london-borough-council/sutton,London Borough of Sutton,01/11/2017,40131658,"1,053.86",Enviva Paediatric Care/formerlyPNL Nursing Link Ltd (Pnl),28212,Peoples Services Directorate,Provider Contract Payments,F470
http://opendatacommunities.org/id/london-borough-council/sutton,London Borough of Sutton,15/11/2017,40131681,935.77,Enviva Paediatric Care/formerlyPNL Nursing Link Ltd (Pnl),28212,Peoples Services Directorate,Provider Contract Payments,F470
http://opendatacommunities.org/id/london-borough-council/sutton,London Borough of Sutton,09/11/2017,40131690,735.89,Enviva Paediatric Care/formerlyPNL Nursing Link Ltd (Pnl),28212,Peoples Services Directorate,Provider Contract Payments,F470
http://opendatacommunities.org/id/london-borough-council/sutton,London Borough of Sutton,07/11/2017,40128855,"1,724.00",Eothen Homes Ltd,11539,Peoples Services Directorate,Residential Care - Ext Provider,G310
http://opendatacommunities.org/id/london-borough-council/sutton,London Borough of Sutton,07/11/2017,40128903,"1,724.16",Eothen Homes Ltd,11539,Peoples Services Directorate,Residential Care - Ext Provider,G310
http://opendatacommunities.org/id/london-borough-council/sutton,London Borough of Sutton,07/11/2017,40129160,"1,724.16",Eothen Homes Ltd,11539,Peoples Services Directorate,Residential Care - Ext Provider,G310
http://opendatacommunities.org/id/london-borough-council/sutton,London Borough of Sutton,07/11/2017,40129161,"2,948.00",Eothen Homes Ltd,11539,Peoples Services Directorate,Residential Care - Ext Provider,G310
http://opendatacommunities.org/id/london-borough-council/sutton,London Borough of Sutton,15/10/2017,6919383,"2,842.00",Euro Hotels (Croydon Court) Ltd,21414,"Environment, Housing & Regeneration Directorate",Bed and Breakfast Accommodation,G400
http://opendatacommunities.org/id/london-borough-council/sutton,London Borough of Sutton,22/10/2017,6919384,"2,877.00",Euro Hotels (Croydon Court) Ltd,21414,"Environment, Housing & Regeneration Directorate",Bed and Breakfast Accommodation,G400
http://opendatacommunities.org/id/london-borough-council/sutton,London Borough of Sutton,27/08/2017,6920447,"3,010.00",Euro Hotels (Croydon Court) Ltd,21414,"Environment, Housing & Regeneration Directorate",Bed and Breakfast Accommodation,G400
http://opendatacommunities.org/id/london-borough-council/sutton,London Borough of Sutton,29/10/2017,6920585,"3,241.00",Euro Hotels (Croydon Court) Ltd,21414,"Environment, Housing & Regeneration Directorate",Bed and Breakfast Accommodation,G400
http://opendatacommunities.org/id/london-borough-council/sutton,London Borough of Sutton,03/09/2017,6920172,749,Euro Hotels (Gilroy Court) Ltd,25822,"Environment, Housing & Regeneration Directorate",Bed and Breakfast Accommodation,G400
http://opendatacommunities.org/id/london-borough-council/sutton,London Borough of Sutton,10/09/2017,6920173,"1,029.00",Euro Hotels (Gilroy Court) Ltd,25822,"Environment, Housing & Regeneration Directorate",Bed and Breakfast Accommodation,G400
http://opendatacommunities.org/id/london-borough-council/sutton,London Borough of Sutton,27/08/2017,6920174,749,Euro Hotels (Gilroy Court) Ltd,25822,"Environment, Housing & Regeneration Directorate",Bed and Breakfast Accommodation,G400
http://opendatacommunities.org/id/london-borough-council/sutton,London Borough of Sutton,17/09/2017,6920176,994,Euro Hotels (Gilroy Court) Ltd,25822,"Environment, Housing & Regeneration Directorate",Bed and Breakfast Accommodation,G400
http://opendatacommunities.org/id/london-borough-council/sutton,London Borough of Sutton,24/09/2017,6920177,"1,159.00",Euro Hotels (Gilroy Court) Ltd,25822,"Environment, Housing & Regeneration Directorate",Bed and Breakfast Accommodation,G400
http://opendatacommunities.org/id/london-borough-council/sutton,London Borough of Sutton,01/10/2017,6919743,"2,085.00",Euro Hotels (Thornton Heath) Ltd,10030,"Environment, Housing & Regeneration Directorate",Bed and Breakfast Accommodation,G400
http://opendatacommunities.org/id/london-borough-council/sutton,London Borough of Sutton,01/10/2017,6919744,595,Euro Hotels (Thornton Heath) Ltd,10030,"Environment, Housing & Regeneration Directorate",Bed and Breakfast Accommodation,G400
http://opendatacommunities.org/id/london-borough-council/sutton,London Borough of Sutton,08/10/2017,6919745,"2,261.00",Euro Hotels (Thornton Heath) Ltd,10030,"Environment, Housing & Regeneration Directorate",Bed and Breakfast Accommodation,G400
http://opendatacommunities.org/id/london-borough-council/sutton,London Borough of Sutton,08/10/2017,6919772,595,Euro Hotels (Thornton Heath) Ltd,10030,"Environment, Housing & Regeneration Directorate",Bed and Breakfast Accommodation,G400
http://opendatacommunities.org/id/london-borough-council/sutton,London Borough of Sutton,15/10/2017,6919773,"2,261.00",Euro Hotels (Thornton Heath) Ltd,10030,"Environment, Housing & Regeneration Directorate",Bed and Breakfast Accommodation,G400
http://opendatacommunities.org/id/london-borough-council/sutton,London Borough of Sutton,15/10/2017,6919774,595,Euro Hotels (Thornton Heath) Ltd,10030,"Environment, Housing & Regeneration Directorate",Bed and Breakfast Accommodation,G400
http://opendatacommunities.org/id/london-borough-council/sutton,London Borough of Sutton,22/10/2017,6919775,"2,626.00",Euro Hotels (Thornton Heath) Ltd,10030,"Environment, Housing & Regeneration Directorate",Bed and Breakfast Accommodation,G400
http://opendatacommunities.org/id/london-borough-council/sutton,London Borough of Sutton,22/10/2017,6919776,595,Euro Hotels (Thornton Heath) Ltd,10030,"Environment, Housing & Regeneration Directorate",Bed and Breakfast Accommodation,G400
http://opendatacommunities.org/id/london-borough-council/sutton,London Borough of Sutton,29/10/2017,6920614,"3,049.00",Euro Hotels (Thornton Heath) Ltd,10030,"Environment, Housing & Regeneration Directorate",Bed and Breakfast Accommodation,G400
http://opendatacommunities.org/id/london-borough-council/sutton,London Borough of Sutton,29/10/2017,6920615,595,Euro Hotels (Thornton Heath) Ltd,10030,"Environment, Housing & Regeneration Directorate",Bed and Breakfast Accommodation,G400
http://opendatacommunities.org/id/london-borough-council/sutton,London Borough of Sutton,31/08/2017,1244556,"6,666.66",Everyday Arts Ltd ( t/a The Green Room School),29110,Peoples Services Directorate,Independent Schools,G325
http://opendatacommunities.org/id/london-borough-council/sutton,London Borough of Sutton,29/11/2017,6921013,"8,645.62",F M Conway Limited,97060,"Environment, Housing & Regeneration Directorate",Roads & Sewers Etc-Main Contract,Y300
http://opendatacommunities.org/id/london-borough-council/sutton,London Borough of Sutton,30/11/2017,6921020,"8,385.74",F M Conway Limited,97060,"Environment, Housing & Regeneration Directorate",Roads & Sewers Etc-Main Contract,Y300
http://opendatacommunities.org/id/london-borough-council/sutton,London Borough of Sutton,22/09/2017,40130315,"14,241.17",Fairport Care Services Ltd,29873,Peoples Services Directorate,Residential Care-Children,G330
http://opendatacommunities.org/id/london-borough-council/sutton,London Borough of Sutton,31/10/2017,40130388,"5,757.14",Family First Fostering,27926,Peoples Services Directorate,Foster Parents,G326
http://opendatacommunities.org/id/london-borough-council/sutton,London Borough of Sutton,28/11/2017,1245746,"25,916.67",Family Mosaic Housing,21012,"Environment, Housing & Regeneration Directorate",Supporting People - Mental Health Services,H243
http://opendatacommunities.org/id/london-borough-council/sutton,London Borough of Sutton,28/11/2017,1245747,"18,833.33",Family Mosaic Housing,21012,"Environment, Housing & Regeneration Directorate",Supporting People - Generic Services,H241
http://opendatacommunities.org/id/london-borough-council/sutton,London Borough of Sutton,07/11/2017,40128930,"3,400.00",Family Star Ltd,19653,Peoples Services Directorate,Nursing Care - Ext Provider,G311
http://opendatacommunities.org/id/london-borough-council/sutton,London Borough of Sutton,07/11/2017,40129233,"2,400.00",Family Star Ltd,19653,Peoples Services Directorate,Nursing Care - Ext Provider,G311
http://opendatacommunities.org/id/london-borough-council/sutton,London Borough of Sutton,01/11/2017,6920847,"4,510.00",Fern Court London Limited,26961,"Environment, Housing & Regeneration Directorate",Bed and Breakfast Accommodation,G400
http://opendatacommunities.org/id/london-borough-council/sutton,London Borough of Sutton,01/11/2017,6920852,"3,302.00",Fern Court London Limited,26961,"Environment, Housing & Regeneration Directorate",Bed and Breakfast Accommodation,G400
http://opendatacommunities.org/id/london-borough-council/sutton,London Borough of Sutton,01/11/2017,6919417,"7,867.13",Field And Lawn Ltd,29955,"Environment, Housing & Regeneration Directorate",General Works,D400
http://opendatacommunities.org/id/london-borough-council/sutton,London Borough of Sutton,01/11/2017,6919417,"4,953.38",Field And Lawn Ltd,29955,"Environment, Housing & Regeneration Directorate",General Works,D400
http://opendatacommunities.org/id/london-borough-council/sutton,London Borough of Sutton,01/11/2017,6919417,"6,701.63",Field And Lawn Ltd,29955,"Environment, Housing & Regeneration Directorate",General Works,D400
http://opendatacommunities.org/id/london-borough-council/sutton,London Borough of Sutton,01/11/2017,6919417,"6,993.00",Field And Lawn Ltd,29955,"Environment, Housing & Regeneration Directorate",General Works,D400
http://opendatacommunities.org/id/london-borough-council/sutton,London Borough of Sutton,01/11/2017,6919417,"2,622.38",Field And Lawn Ltd,29955,"Environment, Housing & Regeneration Directorate",General Works,D400
http://opendatacommunities.org/id/london-borough-council/sutton,London Borough of Sutton,02/11/2017,6919658,"-2,960.00",Field And Lawn Ltd,29955,"Environment, Housing & Regeneration Directorate",General Works,D400
http://opendatacommunities.org/id/london-borough-council/sutton,London Borough of Sutton,03/02/2017,6919953,"1,395.00",Fierce Neutral Ltd,16535,"Environment, Housing & Regeneration Directorate",Bed and Breakfast Accommodation,G400
http://opendatacommunities.org/id/london-borough-council/sutton,London Borough of Sutton,05/09/2017,6919954,"1,395.00",Fierce Neutral Ltd,16535,"Environment, Housing & Regeneration Directorate",Bed and Breakfast Accommodation,G400
http://opendatacommunities.org/id/london-borough-council/sutton,London Borough of Sutton,06/11/2017,6919959,"1,395.00",Fierce Neutral Ltd,16535,"Environment, Housing & Regeneration Directorate",Bed and Breakfast Accommodation,G400
http://opendatacommunities.org/id/london-borough-council/sutton,London Borough of Sutton,02/10/2017,6919720,"14,776.57",Financial Data Management PLC,28773,Resources Directorate,Printing - General,F215
http://opendatacommunities.org/id/london-borough-council/sutton,London Borough of Sutton,07/11/2017,40128800,"3,438.00",Fircroft Homes,11660,Peoples Services Directorate,Residential Care - Ext Provider,G310
http://opendatacommunities.org/id/london-borough-council/sutton,London Borough of Sutton,07/11/2017,40128973,"2,600.00",Firtree House Nursing Home,11653,Peoples Services Directorate,Nursing Care - Ext Provider,G311
http://opendatacommunities.org/id/london-borough-council/sutton,London Borough of Sutton,07/11/2017,40128977,"3,758.08",Fitzroy,11657,Peoples Services Directorate,Residential Care - Ext Provider,G310
http://opendatacommunities.org/id/london-borough-council/sutton,London Borough of Sutton,01/10/2017,40131236,"1,224.28",Fitzroy,11657,Peoples Services Directorate,Day Care,G337
http://opendatacommunities.org/id/london-borough-council/sutton,London Borough of Sutton,01/10/2017,40130358,"17,492.86",Five Rivers Child Care Ltd,29141,Peoples Services Directorate,Residential Care-Children,G330
http://opendatacommunities.org/id/london-borough-council/sutton,London Borough of Sutton,31/10/2017,6920225,"1,536.00",Fleet Tutors,18973,Peoples Services Directorate,Payments to Schools,G065
http://opendatacommunities.org/id/london-borough-council/sutton,London Borough of Sutton,07/11/2017,40129241,"7,200.00",Florence Avenue Care Home Ltd,26881,Peoples Services Directorate,Residential Care - Ext Provider,G310
http://opendatacommunities.org/id/london-borough-council/sutton,London Borough of Sutton,31/10/2017,40136119,"3,374.48",Fostering For You,24993,Peoples Services Directorate,Foster Parents,G326
http://opendatacommunities.org/id/london-borough-council/sutton,London Borough of Sutton,30/09/2017,40136122,"3,265.63",Fostering For You,24993,Peoples Services Directorate,Foster Parents,G326
http://opendatacommunities.org/id/london-borough-council/sutton,London Borough of Sutton,31/10/2017,40136125,"4,332.01",Fostering For You,24993,Peoples Services Directorate,Foster Parents,G326
http://opendatacommunities.org/id/london-borough-council/sutton,London Borough of Sutton,31/10/2017,40136126,"3,374.48",Fostering For You,24993,Peoples Services Directorate,Foster Parents,G326
http://opendatacommunities.org/id/london-borough-council/sutton,London Borough of Sutton,31/10/2017,40136134,"3,232.86",Fostering For You,24993,Peoples Services Directorate,Foster Parents,G326
http://opendatacommunities.org/id/london-borough-council/sutton,London Borough of Sutton,31/10/2017,40136135,888.62,Fostering For You,24993,Peoples Services Directorate,Foster Parents,G326
http://opendatacommunities.org/id/london-borough-council/sutton,London Borough of Sutton,31/10/2017,40136136,"2,166.00",Fostering For You,24993,Peoples Services Directorate,Foster Parents,G326
http://opendatacommunities.org/id/london-borough-council/sutton,London Borough of Sutton,30/09/2017,40136137,"2,932.44",Fostering For You,24993,Peoples Services Directorate,Foster Parents,G326
http://opendatacommunities.org/id/london-borough-council/sutton,London Borough of Sutton,07/11/2017,40128917,"2,800.00",Friends Of The Elderly,11766,Peoples Services Directorate,Residential Care - Ext Provider,G310
http://opendatacommunities.org/id/london-borough-council/sutton,London Borough of Sutton,07/11/2017,40128918,"1,692.00",Friends Of The Elderly,11766,Peoples Services Directorate,Residential Care - Ext Provider,G310
http://opendatacommunities.org/id/london-borough-council/sutton,London Borough of Sutton,07/11/2017,40128960,"3,212.00",Friends Of The Elderly,11766,Peoples Services Directorate,Residential Care - Ext Provider,G310
http://opendatacommunities.org/id/london-borough-council/sutton,London Borough of Sutton,07/11/2017,40129018,"2,928.00",Friends Of The Elderly,11766,Peoples Services Directorate,Residential Care - Ext Provider,G310
http://opendatacommunities.org/id/london-borough-council/sutton,London Borough of Sutton,07/11/2017,40129071,"3,212.00",Friends Of The Elderly,11766,Peoples Services Directorate,Residential Care - Ext Provider,G310
http://opendatacommunities.org/id/london-borough-council/sutton,London Borough of Sutton,07/11/2017,40129221,"4,192.00",Friends Of The Elderly,11766,Peoples Services Directorate,Nursing Care - Ext Provider,G311
http://opendatacommunities.org/id/london-borough-council/sutton,London Borough of Sutton,07/11/2017,40129224,"1,692.00",Friends Of The Elderly,11766,Peoples Services Directorate,Residential Care - Ext Provider,G310
http://opendatacommunities.org/id/london-borough-council/sutton,London Borough of Sutton,07/11/2017,40128931,"2,600.00",Gable Lodge,11789,Peoples Services Directorate,Residential Care - Ext Provider,G310
http://opendatacommunities.org/id/london-borough-council/sutton,London Borough of Sutton,07/11/2017,40129057,"2,294.12",Gable Lodge,11789,Peoples Services Directorate,Nursing Care - Ext Provider,G311
http://opendatacommunities.org/id/london-borough-council/sutton,London Borough of Sutton,07/11/2017,40129152,"3,000.00",Galleon Care Homes Ltd,23693,Peoples Services Directorate,Nursing Care - Ext Provider,G311
http://opendatacommunities.org/id/london-borough-council/sutton,London Borough of Sutton,07/11/2017,40128867,"2,600.00",Gate Lodge Care Home,16164,Peoples Services Directorate,Residential Care - Ext Provider,G310
http://opendatacommunities.org/id/london-borough-council/sutton,London Borough of Sutton,07/11/2017,40128920,"2,400.00",Gate Lodge Care Home,16164,Peoples Services Directorate,Residential Care - Ext Provider,G310
http://opendatacommunities.org/id/london-borough-council/sutton,London Borough of Sutton,07/11/2017,40129181,"1,744.00",Gate Lodge Care Home,16164,Peoples Services Directorate,Residential Care - Ext Provider,G310
http://opendatacommunities.org/id/london-borough-council/sutton,London Borough of Sutton,03/11/2017,6919687,"2,250.21",Gladman & Norman Ltd,99879,Resources Directorate,Materials - General,F100
http://opendatacommunities.org/id/london-borough-council/sutton,London Borough of Sutton,07/11/2017,40129023,"1,357.14",Glancestyle Care Homes Ltd,25502,Peoples Services Directorate,Nursing Care - Short Term Placements,G328
http://opendatacommunities.org/id/london-borough-council/sutton,London Borough of Sutton,01/11/2017,6919526,"1,215.00",Glen Hellings,29637,"Environment, Housing & Regeneration Directorate",General Office Expenses,F235
http://opendatacommunities.org/id/london-borough-council/sutton,London Borough of Sutton,07/11/2017,40128856,"1,882.40",Grange Cottage Ltd,11892,Peoples Services Directorate,Residential Care - Ext Provider,G310
http://opendatacommunities.org/id/london-borough-council/sutton,London Borough of Sutton,07/11/2017,40129085,"2,500.00",Grange Cottage Ltd,11892,Peoples Services Directorate,Residential Care - Ext Provider,G310
http://opendatacommunities.org/id/london-borough-council/sutton,London Borough of Sutton,07/11/2017,40129120,"1,000.00",Grange Cottage Ltd,11892,Peoples Services Directorate,Respite Care - Residential,G327
http://opendatacommunities.org/id/london-borough-council/sutton,London Borough of Sutton,07/11/2017,40129162,"2,800.00",Grange Cottage Ltd,11892,Peoples Services Directorate,Residential Care - Ext Provider,G310
http://opendatacommunities.org/id/london-borough-council/sutton,London Borough of Sutton,07/11/2017,40129163,"2,600.00",Grange Cottage Ltd,11892,Peoples Services Directorate,Residential Care - Ext Provider,G310
http://opendatacommunities.org/id/london-borough-council/sutton,London Borough of Sutton,07/11/2017,40129164,"3,238.40",Grange Cottage Ltd,11892,Peoples Services Directorate,Residential Care - Ext Provider,G310
http://opendatacommunities.org/id/london-borough-council/sutton,London Borough of Sutton,29/09/2017,6919951,"23,573.00",Grant Thornton Uk LLP,27828,Resources Directorate,External Audit Fees,F291
http://opendatacommunities.org/id/london-borough-council/sutton,London Borough of Sutton,29/09/2017,6920682,"10,500.00",Grant Thornton Uk LLP,27828,Unknown Directorate,External Audit Fees,F291
http://opendatacommunities.org/id/london-borough-council/sutton,London Borough of Sutton,07/11/2017,40128857,"2,600.00",Grasmere Rest Home,11893,Peoples Services Directorate,Residential Care - Ext Provider,G310
http://opendatacommunities.org/id/london-borough-council/sutton,London Borough of Sutton,07/11/2017,40128858,"1,680.16",Grasmere Rest Home,11893,Peoples Services Directorate,Residential Care - Ext Provider,G310
http://opendatacommunities.org/id/london-borough-council/sutton,London Borough of Sutton,07/11/2017,40128904,"1,801.36",Grasmere Rest Home,11893,Peoples Services Directorate,Residential Care - Ext Provider,G310
http://opendatacommunities.org/id/london-borough-council/sutton,London Borough of Sutton,07/11/2017,40129002,"1,712.32",Grasmere Rest Home,11893,Peoples Services Directorate,Residential Care - Ext Provider,G310
http://opendatacommunities.org/id/london-borough-council/sutton,London Borough of Sutton,07/11/2017,40129058,"2,300.00",Grasmere Rest Home,11893,Peoples Services Directorate,Residential Care - Ext Provider,G310
http://opendatacommunities.org/id/london-borough-council/sutton,London Borough of Sutton,07/11/2017,40129059,"2,408.56",Grasmere Rest Home,11893,Peoples Services Directorate,Residential Care - Ext Provider,G310
http://opendatacommunities.org/id/london-borough-council/sutton,London Borough of Sutton,07/11/2017,40129086,"1,801.36",Grasmere Rest Home,11893,Peoples Services Directorate,Residential Care - Ext Provider,G310
http://opendatacommunities.org/id/london-borough-council/sutton,London Borough of Sutton,07/11/2017,40129165,"2,274.96",Grasmere Rest Home,11893,Peoples Services Directorate,Residential Care - Ext Provider,G310
http://opendatacommunities.org/id/london-borough-council/sutton,London Borough of Sutton,07/11/2017,40129216,"2,600.00",Grasmere Rest Home,11893,Peoples Services Directorate,Residential Care - Ext Provider,G310
http://opendatacommunities.org/id/london-borough-council/sutton,London Borough of Sutton,07/11/2017,40129240,650,Grasmere Rest Home,11893,Peoples Services Directorate,Respite Care - Residential,G327
http://opendatacommunities.org/id/london-borough-council/sutton,London Borough of Sutton,07/11/2017,40128812,"5,616.08",Greenfield Care Homes Limited,22712,Peoples Services Directorate,Residential Care - Ext Provider,G310
http://opendatacommunities.org/id/london-borough-council/sutton,London Borough of Sutton,06/10/2017,6919652,750,Greenshaw High School (Academy),23985,Peoples Services Directorate,LAC - Education,F269
http://opendatacommunities.org/id/london-borough-council/sutton,London Borough of Sutton,30/10/2017,5015658,-779.1,Greenshaw Learning Trust t/a Victor Seymour Infants School,29002,Peoples Services Directorate,Payments to Schools,G065
http://opendatacommunities.org/id/london-borough-council/sutton,London Borough of Sutton,30/10/2017,6919334,"3,510.00",Gresham Office Furniture,29904,Peoples Services Directorate,Furniture & Fittings,Y500
http://opendatacommunities.org/id/london-borough-council/sutton,London Borough of Sutton,11/11/2017,6920160,"1,400.00",Guardian News & Media,15893,Peoples Services Directorate,Staff Advertising,A500
http://opendatacommunities.org/id/london-borough-council/sutton,London Borough of Sutton,30/09/2017,6920085,"33,465.00",Gunfire Ltd,97713,Peoples Services Directorate,Building Works -Main Contractor,Y350
http://opendatacommunities.org/id/london-borough-council/sutton,London Borough of Sutton,17/11/2017,6920823,"2,397.00",Guys and St Thomas NHS Foundation Trust,25430,Peoples Services Directorate,Provider Contract Payments,F470
http://opendatacommunities.org/id/london-borough-council/sutton,London Borough of Sutton,06/11/2017,6919727,"3,939.00",H & C Property Investment Co Ltd,99898,"Environment, Housing & Regeneration Directorate",Depositors,X460
http://opendatacommunities.org/id/london-borough-council/sutton,London Borough of Sutton,16/09/2017,6919768,675,Hallmark Connections Ltd,29139,"Environment, Housing & Regeneration Directorate",Fees - Other,F299
http://opendatacommunities.org/id/london-borough-council/sutton,London Borough of Sutton,31/10/2017,6920667,"76,754.01",Harris Federation,30039,Peoples Services Directorate,Building Works -Main Contractor,Y350
http://opendatacommunities.org/id/london-borough-council/sutton,London Borough of Sutton,07/11/2017,40128875,"3,316.88",Haydon Park Lodge,12002,Peoples Services Directorate,Residential Care - Ext Provider,G310
